Workbook

Sheet Page démarrage

Sheet Données de base - Mon programme
B1: DONNÉES DE BASE POUR ESTIMER LE PRIX DE LA VIANDE DE BOUVILLON
B2: PROGRAMME ALIMENTAIRE PERSONNEL
B3: Mise en garde des auteurs : Ce calculateur a été conçu pour tester différents scénarios en estimant le prix minimum et le prix cible de la viande de bouvillon produite par de petits élevages. Pour l’option « MON PROGRAMME », il faut s’assurer que vos programmes alimentaires sont adaptés aux performances possibles pour le type de bouvillon visé (race, sexe, poids, gain visé, environnement, etc.). Cet outil n’a pas été conçu pour vérifier la cohérence des données retenues par l’utilisateur. Comme points de référence, des données ou des commentaires ont été insérés dans différentes cellules afin de faciliter la compréhension et l’utilisation du calculateur. Les données servant à poser les différentes hypothèses retenues doivent être adaptées à chaque situation, et l’utilisation des résultats de ce budget est sous la responsabilité de l’utilisateur. Éric Lepage et Véronique Poulin, agronomes, MAPAQ, 2018
B5: Client : | C5: Yvan Dubœuf
B6: Budget adapté par : | C6: Jean Untel
B7: Date : | C7: 2018-03-01
B8: Scénario : | C8: 10 bouvillons
W13: phase 1 | X13: phase 2 | Y13: phase 3 | Z13: phase 4
R14: 2 | T14: mâle | V14: durée | W14: =C26-C25 -> 61
B15: DONNÉES TECHNIQUES | T15: femelle
B17: A. ANIMAUX
B19: Sexe | Q19: 300 | R19: 1
B20: Poids d’abattage visé | C20: 500 | D20: kg ou | E20: =C20*2.2 -> 1100 | F20: lb | Q20: 350 | R20: 2
B21: Alimentation | Q21: 400 | R21: 3
B22: Phase 1 | Q22: 450 | R22: 4
B23: Âge en mois | C23: 10 | Q23: 500 | R23: 5
B24: Poids au début de l’engraissement | C24: 300 | D24: kg ou | E24: =C24*2.2 -> 660 | F24: lb | Q24: 550 | R24: 6
B25: Date de début | C25: 2017-11-01 | Q25: 600 | R25: 7
B26: Date de fin | C26: 2018-01-01
B27: Durée de la phase | C27: =C26-C25 -> 61 | D27: jours | L27: gmq | R27: Pâturage H.E. | S27: 5 | T27: 5 | U27: 5 | V27: 5 | X27: nombre de jour au pâuurage | AB27: pâturage | AC27: logement | AD27: totale=
B28: Type d’alimentation | C28: mon programme | E28: =IF(AND(S27=6,C24<350),"N.B. ration disponible à partir de 350 kg","") ->  | L28: 2 | M28: =IF($S$27=2,VLOOKUP($C$24,'gain permis'!$A$3:$E$9,2,TRUE),IF($S$27=3,VLOOKUP($C$24,'gain permis'!$A$10:$E$16,2,TRUE),IF($S$27=4,VLOOKUP($C$24,'gain permis'!$A$17:$E$23,2,TRUE),IF($S$27=5,VLOOKUP($C$24,'gain permis'!$A$24:$E$30,2,TRUE),IF($S$27=6,VLOOKUP($C$24,'gain permis'!$A$31:$E$37,2,TRUE),""))))) -> 0.7 | R28: Pâturage H.E.+ avoine | X28: =IF(OR(S27=2,S27=3),C27,0) -> 0 | Y28: =IF(OR(T27=2,T27=3),C34,0) -> 0 | Z28: =IF(OR(U27=2,U27=3),C42,0) -> 0 | AA28: =IF(OR(V27=2,V27=3),C50,0) -> 0 | AB28: =SUM(X28:AA28) -> 0 | AC28: =(C27+C34+C42+C50)-AB28 -> 229 | AD28: =AB28+AC28 -> 229
B29: Gain moyen quotidien (GMQ) permis | C29: 0.8 | D29: kg/j ou | E29: =C29*2.2 -> 1.76 | F29: lb/j | L29: =E29/2.2 -> 0.8 | M29: =IF($S$27=2,VLOOKUP($C$24,'gain permis'!$A$3:$E$9,3,TRUE),IF($S$27=3,VLOOKUP($C$24,'gain permis'!$A$10:$E$16,3,TRUE),IF($S$27=4,VLOOKUP($C$24,'gain permis'!$A$17:$E$23,3,TRUE),IF($S$27=5,VLOOKUP($C$24,'gain permis'!$A$24:$E$30,3,TRUE),IF($S$27=6,VLOOKUP($C$24,'gain permis'!$A$31:$E$37,3,TRUE),""))))) -> 0 | N29: =VLOOKUP(L29,$Q$35:$R$45,2,TRUE) -> 5 | R29: Fourrage H.E. | X29: =IF(X28=0,0,Budget!D32/M75) -> 0 | Y29: =IF(Y28=0,0,Budget!D42/M75) -> 0 | Z29: =IF(Z28=0,0,Budget!D52/$M$75) -> 0 | AA29: =IF(AA28=0,0,Budget!D63/$M$75) -> 0 | AB29: =IF(AB28=0,"",((X28*X29)+(Y28*Y29)+(Z28*Z29)+(AA28*AA29))/(X28+Y28+Z28+AA28)) -> 
B30: Poids à la fin | C30: =C24+C27*C29 -> 348.8 | D30: kg ou | E30: =C30*2.2 -> 767.36 | F30: lb | G30: =IF(C30>C20," poids d'abattage dépassée, ajuster votre date","") ->  | M30: =IF($S$27=2,VLOOKUP($C$24,'gain permis'!$A$3:$E$9,4,TRUE),IF($S$27=3,VLOOKUP($C$24,'gain permis'!$A$10:$E$16,4,TRUE),IF($S$27=4,VLOOKUP($C$24,'gain permis'!$A$17:$E$23,4,TRUE),IF($S$27=5,VLOOKUP($C$24,'gain permis'!$A$24:$E$30,4,TRUE),IF($S$27=6,VLOOKUP($C$24,'gain permis'!$A$31:$E$37,4,TRUE),""))))) -> 0 | R30: Fourrage H.E. + avoine
B31: Phase 2 | M31: =IF($S$27=2,VLOOKUP($C$24,'gain permis'!$A$3:$E$9,5,TRUE),IF($S$27=3,VLOOKUP($C$24,'gain permis'!$A$10:$E$16,5,TRUE),IF($S$27=4,VLOOKUP($C$24,'gain permis'!$A$17:$E$23,5,TRUE),IF($S$27=5,VLOOKUP($C$24,'gain permis'!$A$24:$E$30,5,TRUE),IF($S$27=6,VLOOKUP($C$24,'gain permis'!$A$31:$E$37,5,TRUE),""))))) -> 0 | R31: Ensilage maïs+Fourrage H.E.(<40%grain)
B32: Date de début | C32: =C26 -> 2018-01-01
B33: Date de fin | C33: 2018-04-07 | AE33: 2 | AI33: 1
B34: Durée de la phase | C34: =IF(OR(C32=0,C33=0),0,C33-C32) -> 96 | D34: jours | R34: 2
B35: Type d’alimentation | C35: mon programme | L35: 2 | M35: =IF($T$27=2,VLOOKUP($C$36,'gain permis'!$A$3:$E$9,2,TRUE),IF($T$27=3,VLOOKUP($C$36,'gain permis'!$A$10:$E$16,2,TRUE),IF($T$27=4,VLOOKUP($C$36,'gain permis'!$A$17:$E$23,2,TRUE),IF($T$27=5,VLOOKUP($C$36,'gain permis'!$A$24:$E$30,2,TRUE),IF($T$27=6,VLOOKUP($C$36,'gain permis'!$A$31:$E$37,2,TRUE),""))))) -> 0.7 | Q35: 0.5 | R35: =R34 -> 2
B36: Poids au début de l’engraissement | C36: =C30 -> 348.8 | D36: kg ou | E36: =C36*2.2 -> 767.36 | F36: lb | L36: =E37/2.2 -> 0.8 | M36: =IF($T$27=2,VLOOKUP($C$36,'gain permis'!$A$3:$E$9,3,TRUE),IF($T$27=3,VLOOKUP($C$36,'gain permis'!$A$10:$E$16,3,TRUE),IF($T$27=4,VLOOKUP($C$36,'gain permis'!$A$17:$E$23,3,TRUE),IF($T$27=5,VLOOKUP($C$36,'gain permis'!$A$24:$E$30,3,TRUE),IF($T$27=6,VLOOKUP($C$36,'gain permis'!$A$31:$E$37,3,TRUE),""))))) -> 0 | N36: =VLOOKUP(L36,$Q$35:$R$45,2,TRUE) -> 5 | Q36: 0.6 | R36: =R35+1 -> 3
B37: GMQ visé | C37: 0.8 | D37: kg/j ou | E37: =C37*2.2 -> 1.76 | F37: lb/j | M37: =IF($T$27=2,VLOOKUP($C$36,'gain permis'!$A$3:$E$9,4,TRUE),IF($T$27=3,VLOOKUP($C$36,'gain permis'!$A$10:$E$16,4,TRUE),IF($T$27=4,VLOOKUP($C$36,'gain permis'!$A$17:$E$23,4,TRUE),IF($T$27=5,VLOOKUP($C$36,'gain permis'!$A$24:$E$30,4,TRUE),IF($T$27=6,VLOOKUP($C$36,'gain permis'!$A$31:$E$37,4,TRUE),""))))) -> 0 | Q37: 0.7 | R37: =R36+1 -> 4
B38: Poids à la fin | C38: =C36+C34*C37 -> 425.6 | D38: kg ou | E38: =C38*2.2 -> 936.32 | F38: lb | G38: =IF(C38>C20," poids d'abattage dépassée, ajuster votre date","") ->  | M38: =IF($T$27=2,VLOOKUP($C$36,'gain permis'!$A$3:$E$9,5,TRUE),IF($T$27=3,VLOOKUP($C$36,'gain permis'!$A$10:$E$16,5,TRUE),IF($T$27=4,VLOOKUP($C$36,'gain permis'!$A$17:$E$23,5,TRUE),IF($T$27=5,VLOOKUP($C$36,'gain permis'!$A$24:$E$30,5,TRUE),IF($T$27=6,VLOOKUP($C$36,'gain permis'!$A$31:$E$37,5,TRUE),""))))) -> 0 | Q38: 0.8 | R38: 5
B39: Phase 3 | Q39: 0.9 | R39: 6
B40: Date de début | C40: =C33 -> 2018-04-07 | Q40: 1 | R40: 7
B41: Date de fin | C41: 2018-06-18 | Q41: 1.1 | R41: 8
B42: Durée de la phase | C42: =IF(OR(C40=0,C41=0),0,C41-C40) -> 72 | Q42: 1.2 | R42: 9
B43: Type d’alimentation | C43: mon programme | L43: 4 | M43: =IF($U$27=2,VLOOKUP($C$44,'gain permis'!$A$3:$E$9,2,TRUE),IF($U$27=3,VLOOKUP($C$44,'gain permis'!$A$10:$E$16,2,TRUE),IF($U$27=4,VLOOKUP($C$44,'gain permis'!$A$17:$E$23,2,TRUE),IF($U$27=5,VLOOKUP($C$44,'gain permis'!$A$24:$E$30,2,TRUE),IF($U$27=6,VLOOKUP($C$44,'gain permis'!$A$31:$E$37,2,TRUE),""))))) -> 0.9 | Q43: 1.3 | R43: 10
B44: Poids au début de l’engraissement | C44: =C38 -> 425.6 | D44: kg ou | E44: =C44*2.2 -> 936.32 | F44: lb | L44: =E45/2.2 -> 0.8 | M44: =IF($U$27=2,VLOOKUP($C$44,'gain permis'!$A$3:$E$9,3,TRUE),IF($U$27=3,VLOOKUP($C$44,'gain permis'!$A$10:$E$16,3,TRUE),IF($U$27=4,VLOOKUP($C$44,'gain permis'!$A$17:$E$23,3,TRUE),IF($U$27=5,VLOOKUP($C$44,'gain permis'!$A$24:$E$30,3,TRUE),IF($U$27=6,VLOOKUP($C$44,'gain permis'!$A$31:$E$37,3,TRUE),""))))) -> 1 | N44: =VLOOKUP(L44,$Q$35:$R$45,2,TRUE) -> 5 | Q44: 1.4 | R44: 11
B45: GMQ visé | C45: 0.8 | D45: kg/j ou | E45: =C45*2.2 -> 1.76 | F45: lb/j | M45: =IF($U$27=2,VLOOKUP($C$44,'gain permis'!$A$3:$E$9,4,TRUE),IF($U$27=3,VLOOKUP($C$44,'gain permis'!$A$10:$E$16,4,TRUE),IF($U$27=4,VLOOKUP($C$44,'gain permis'!$A$17:$E$23,4,TRUE),IF($U$27=5,VLOOKUP($C$44,'gain permis'!$A$24:$E$30,4,TRUE),IF($U$27=6,VLOOKUP($C$44,'gain permis'!$A$31:$E$37,4,TRUE),""))))) -> 0 | Q45: 1.5 | R45: 12
B46: Poids à la fin | C46: =C44+C42*C45 -> 483.2 | D46: kg ou | E46: =C46*2.2 -> 1063.04 | F46: lb | G46: =IF(C46>C20," poids d'abattage dépassé, ajuster votre date","") ->  | M46: =IF($U$27=2,VLOOKUP($C$44,'gain permis'!$A$3:$E$9,5,TRUE),IF($U$27=3,VLOOKUP($C$44,'gain permis'!$A$10:$E$16,5,TRUE),IF($U$27=4,VLOOKUP($C$44,'gain permis'!$A$17:$E$23,5,TRUE),IF($U$27=5,VLOOKUP($C$44,'gain permis'!$A$24:$E$30,5,TRUE),IF($U$27=6,VLOOKUP($C$44,'gain permis'!$A$31:$E$37,5,TRUE),""))))) -> 0
B47: Phase 4
B48: Date de début | C48: =C41 -> 2018-06-18
B49: Date de fin | D49: =IF(AND(C46>C20,C50<>0),"svp inscrire la même date que celle du début","") -> 
B50: Durée de la phase | C50: =IF(OR(C48=0,C49=0),0,C49-C48) -> 0
B51: Type d’alimentation | C51: mon programme | L51: 3 | M51: =IF($V$27=2,VLOOKUP($C$52,'gain permis'!$A$3:$E$9,2,TRUE),IF($V$27=3,VLOOKUP($C$52,'gain permis'!$A$10:$E$16,2,TRUE),IF($V$27=4,VLOOKUP($C$52,'gain permis'!$A$17:$E$23,2,TRUE),IF($V$27=5,VLOOKUP($C$52,'gain permis'!$A$24:$E$30,2,TRUE),IF($V$27=6,VLOOKUP($C$52,'gain permis'!$A$31:$E$37,2,TRUE),""))))) -> 0.9
B52: Poids au début de l’engraissement | C52: =C46 -> 483.2 | D52: kg ou | E52: =C52*2.2 -> 1063.04 | F52: lb | L52: =E53/2.2 -> 0.8 | M52: =IF($V$27=2,VLOOKUP($C$52,'gain permis'!$A$3:$E$9,3,TRUE),IF($V$27=3,VLOOKUP($C$52,'gain permis'!$A$10:$E$16,3,TRUE),IF($V$27=4,VLOOKUP($C$52,'gain permis'!$A$17:$E$23,3,TRUE),IF($V$27=5,VLOOKUP($C$52,'gain permis'!$A$24:$E$30,3,TRUE),IF($V$27=6,VLOOKUP($C$52,'gain permis'!$A$31:$E$37,3,TRUE),""))))) -> 1 | N52: =VLOOKUP(L52,$Q$35:$R$45,2,TRUE) -> 5
B53: GMQ visé | C53: 0.8 | D53: kg/j ou | E53: =C53*2.2 -> 1.76 | F53: lb/j | M53: =IF($V$27=2,VLOOKUP($C$52,'gain permis'!$A$3:$E$9,4,TRUE),IF($V$27=3,VLOOKUP($C$52,'gain permis'!$A$10:$E$16,4,TRUE),IF($V$27=4,VLOOKUP($C$52,'gain permis'!$A$17:$E$23,4,TRUE),IF($V$27=5,VLOOKUP($C$52,'gain permis'!$A$24:$E$30,4,TRUE),IF($V$27=6,VLOOKUP($C$52,'gain permis'!$A$31:$E$37,4,TRUE),""))))) -> 1.1
B54: Poids à la fin | C54: =C52+C50*C53 -> 483.2 | D54: kg ou | E54: =IF(C54="","",C54*2.2) -> 1063.04 | F54: lb | G54: =IF(C54>C20," poids d'abattage dépassée, ajuster votre date","") ->  | M54: =IF($V$27=2,VLOOKUP($C$52,'gain permis'!$A$3:$E$9,5,TRUE),IF($V$27=3,VLOOKUP($C$52,'gain permis'!$A$10:$E$16,5,TRUE),IF($V$27=4,VLOOKUP($C$52,'gain permis'!$A$17:$E$23,5,TRUE),IF($V$27=5,VLOOKUP($C$52,'gain permis'!$A$24:$E$30,5,TRUE),IF($V$27=6,VLOOKUP($C$52,'gain permis'!$A$31:$E$37,5,TRUE),""))))) -> 0
B57: Abattage
B58: Âge à l’abattage en mois | C58: =C23+(C27+C34+C42+C50)/30 -> 17.63333333
B59: GMQ de l’engraissement | C59: =(C54-C24)/(C27+C34+C42+C50) -> 0.8 | D59: kg/j ou | E59: =C59*2.2 -> 1.76 | F59: lb/j
B60: Poids à la ferme (eb kg) | C60: =C54 -> 483.2 | D60: Poids après la perte | L60: 1
B61: Freinte pré-abattage | C61: 0.04 | D61: =C60*(1-C61) -> 463.872 | E61: kg ou | F61: =D61*2.2 -> 1020.5184 | G61: lb
B62: Rendement de la carcasse | C62: 0.54 | D62: =D61*C62 -> 250.49088 | E62: kg ou | F62: =D62*2.2 -> 551.079936 | G62: lb
B63: Perte lors du ressuyage, maturation | C63: 0.04 | D63: =D62*(1-C63) -> 240.4712448 | E63: kg ou | F63: =D63*2.2 -> 529.0367386 | G63: lb | L63: 3
B64: Perte à la découpe | C64: 0.3458 | D64: =D63*(1-C64) -> 157.3162883 | E64: kg ou | F64: =D64*2.2 -> 346.0958344 | G64: lb = poids en viande maigre
B65: Perte due à des problèmes de qualité | C65: 0.02 | L65: 2
B67: B- CHAMPS | C67: =IF(AE33=5,"SVP utilisez la feuille BUDGET PERSONNALISÉ pour la suite","") -> 
B69: Hectares disponibles | C69: 8
B70: Prairie, tonne m.s./ha | C70: 3500
B71: Maïs-ensilage, tonne m.s./ha | C71: 12 | E71: Estimateur du rendement des pâturages
E72: % de la productivité des prairies | H72: 0.9 | L72: 3 | M72: en bande | N72: 4 | O72: à forfait, $/tête/saison | Q72: =IF(N72=2,(C75/C73)*0.2,"") ->  | R72: "$/t
B73: Pâturage, tonne m.s./ha | C73: 3.825 | E73: Mode de paissance | H73: =IF(L72=2,0.85,IF(L72=3,0.75,IF(L72=4,"non recommandé",""))) -> 0.75 | M73: en rotation | O73: à forfait,$/tête/jour | Q73: =C75/M75 -> 0.000126984127 | R73: "$/t
B74: Pâturage: forfait ou à la ferme | E74: Rendement, tonnes m.s./ha | H74: =IF(L72=4,"",C70*H72*H73) -> 2362.5 | M74: en continu | O74: à la ferme | Q74: =IF(N72=4,C75*0.2,"") -> 0.4 | R74: "$/t
B75: =IF(N72=2,"Coût du pâturage à forfait, $/tête/saison",IF(N72=3,"Coût du pâturage à forfait, $/tête/j",IF(N72=4,"Coût de production à la ferme, $/t m.s.",""))) -> Coût de production à la ferme, $/t m.s. | C75: 2 | M75: =H74*1000/C76 -> 15750 | N75: kg/j
B76: Durée | C76: 150

Sheet Budget - Mon programme
B1: BUDGET ESTIMANT LES PRIX CIBLE ET MINIMUM DE LA VIANDE DE BOUVILLON
B2: PROGRAMME ALIMENTAIRE PERSONNEL
B3: Client: | D3: ='Données de base - Mon programme'!C5 -> Yvan Dubœuf
B4: Budget adapté par: | D4: ='Données de base - Mon programme'!C6 -> Jean Untel
B5: Date: | D5: ='Données de base - Mon programme'!C7 -> 2018-03-01
B6: Scénario: | D6: ='Données de base - Mon programme'!C8 -> 10 bouvillons
B8: ÉLEVAGE
B9: A. Valeur estimée du veau | BJ9: type
I11: $/bouvillon | J11: ($/kg de viande)
B13: Coût de production du veau à la ferme | D13: 2 | E13: /livre ou | F13: =D13*2.2 -> 4.4 | G13: /kg = | H13: =F13*'Données de base - Mon programme'!C24 -> 1320
B15: Poids à l’encan | D15: 0.05 | E15: perte de poids | F15: pour un poids de vente | G15: ='Données de base - Mon programme'!C24*(1-D15) -> 285 | H15: kg
B17: Bouvillon (sexe, poids) : | D17: =IF('Données de base - Mon programme'!R14=2,"Mâle",IF('Données de base - Mon programme'!R14=3,"Femelle","")) -> Mâle | E17: =CONCATENATE(G15*2.2," lb ou ",G15," kg") -> 627 lb ou 285 kg
B18: =CONCATENATE("Prix au ",TEXT('Données de base'!C25,"AAAA/MM/JJ")) -> Prix au 2017/11/01 | D18: 2.25 | E18: /livre
B19: Prix de vente à l’encan | D19: =D18*2.2 -> 4.95 | E19: /kg | G19: =D19*G15 -> 1410.75
B20: Frais de transport | D20: 30 | E20: /animal | G20: =D20 -> 30
B21: Frais de vente | D21: 22 | E21: /animal | G21: =D21 -> 22
B22: Valeur nette estimée du veau | G22: =G19-G20-G21 -> 1358.75
M23: 1 | N23: valeur à l'encan
B24: Valeur estimée du veau pour les calculs | D24: option : | I24: =IF(L24=1,G22,H13) -> 1320 | J24: =I24/'Données de base - Mon programme'!$D$64 -> 8.390739534 | L24: 2 | M24: 2 | N24: coût de production
B26: Nombre de bouvillons par lot (volume de la production annuelle) | D26: 10
B28: B. Alimentation
B29: =CONCATENATE(" PHASE 1 : Durée de ",'Données de base - Mon programme'!C27," jours"," et GMQ de ",ROUNDUP('Données de base - Mon programme'!C29,2), " kg/jour avec un poids moyen de ",('Données de base - Mon programme'!C24+'Données de base - Mon programme'!C30)/2," kg") -> PHASE 1 : Durée de 61 jours et GMQ de 0,8 kg/jour avec un poids moyen de 324,4 kg
C30: MS | D30: Quantité | E30: Perte | F30: Prix | H30: Quantité
B31: Aliments | C31: % | D31: (MS kg/j) | E31: (%) | F31: ($/t TQS) | H31: (t TQS) | I31: $/bouvillon | J31: ($/kg de viande)
C32: 1 | D32: 5 | E32: 0.045 | F32: 100 | H32: =IF(D32="",0,'Données de base - Mon programme'!$C$27*((D32/C32)/(1-E32))/1000) -> 0.3193717277 | I32: =H32*F32 -> 31.93717277 | J32: =I32/'Données de base - Mon programme'!$D$64 -> 0.2030124986
C33: 1 | D33: 2 | E33: 0.025 | F33: 180 | H33: =IF(D33="",0,'Données de base - Mon programme'!$C$27*((D33/C33)/(1-E33))/1000) -> 0.1251282051 | I33: =H33*F33 -> 22.52307692 | J33: =I33/'Données de base - Mon programme'!$D$64 -> 0.1431706606
C34: 1 | E34: 0 | H34: =IF(D34="",0,'Données de base - Mon programme'!$C$27*((D34/C34)/(1-E34))/1000) -> 0 | I34: =H34*F34 -> 0 | J34: =I34/'Données de base - Mon programme'!$D$64 -> 0
C35: 1 | D35: 0.1 | E35: 0.025 | F35: 1500 | H35: =IF(D35="",0,'Données de base - Mon programme'!$C$27*((D35/C35)/(1-E35))/1000) -> 0.006256410256 | I35: =H35*F35 -> 9.384615385 | J35: =I35/'Données de base - Mon programme'!$D$64 -> 0.05965444191
C36: 1 | E36: 0.025 | H36: =IF(D36="",0,'Données de base - Mon programme'!$C$27*((D36/C36)/(1-E36))/1000) -> 0 | I36: =H36*F36 -> 0 | J36: =I36/'Données de base - Mon programme'!$D$64 -> 0
B37: Coût total des aliments pour la période | I37: =SUM(I32:I36) -> 63.84486508 | J37: =SUM(J32:J36) -> 0.4058376011
B39: =CONCATENATE(" PHASE 2 : Durée de ",'Données de base - Mon programme'!C34," jours"," et GMQ de ",ROUNDUP('Données de base - Mon programme'!C37,2), " kg/jour avec un poids moyen de ",('Données de base - Mon programme'!C36+'Données de base - Mon programme'!C38)/2," kg") -> PHASE 2 : Durée de 96 jours et GMQ de 0,8 kg/jour avec un poids moyen de 387,2 kg
C40: MS | D40: Quantité | E40: Perte | F40: Prix | H40: Quantité
B41: Aliments | C41: % | D41: (MS kg/j) | E41: (%) | F41: ($/t TQS) | H41: (t TQS) | I41: $/bouvillon | J41: ($/kg de viande)
C42: 0.55 | D42: 5 | E42: 0.045 | F42: 100 | H42: =IF(D42="",0,'Données de base - Mon programme'!$C$34*((D42/C42)/(1-E42))/1000) -> 0.9138505474 | I42: =H42*F42 -> 91.38505474 | J42: =I42/'Données de base - Mon programme'!$D$64 -> 0.5809001451
C43: 0.86 | D43: 2 | E43: 0.025 | F43: 180 | H43: =IF(D43="",0,'Données de base - Mon programme'!$C$34*((D43/C43)/(1-E43))/1000) -> 0.228980322 | I43: =H43*F43 -> 41.21645796 | J43: =I43/'Données de base - Mon programme'!$D$64 -> 0.2619973964
C44: 0.87 | E44: 0 | H44: =IF(D44="",0,'Données de base - Mon programme'!$C$34*((D44/C44)/(1-E44))/1000) -> 0 | I44: =H44*F44 -> 0 | J44: =I44/'Données de base - Mon programme'!$D$64 -> 0
C45: 0.98 | D45: 0.1 | E45: 0.025 | F45: 1500 | H45: =IF(D45="",0,'Données de base - Mon programme'!$C$34*((D45/C45)/(1-E45))/1000) -> 0.01004709576 | I45: =H45*F45 -> 15.07064364 | J45: =I45/'Données de base - Mon programme'!$D$64 -> 0.09579836774
C46: 0.98 | E46: 0.025 | H46: =IF(D46="",0,'Données de base - Mon programme'!$C$34*((D46/C46)/(1-E46))/1000) -> 0 | I46: =H46*F46 -> 0 | J46: =I46/'Données de base - Mon programme'!$D$64 -> 0
B47: Coût total des aliments pour la période | I47: =SUM(I42:I46) -> 147.6721563 | J47: =SUM(J42:J46) -> 0.9386959093
B49: =CONCATENATE(" PHASE 3 : Durée de ",'Données de base - Mon programme'!C42," jours"," et GMQ de ",ROUNDUP('Données de base - Mon programme'!C45,2), " kg/jour avec un poids moyen de ",('Données de base - Mon programme'!C44+'Données de base - Mon programme'!C46)/2," kg") -> PHASE 3 : Durée de 72 jours et GMQ de 0,8 kg/jour avec un poids moyen de 454,4 kg
C50: MS | D50: Quantité | E50: Perte | F50: Prix | H50: Quantité
B51: Aliments | C51: % | D51: (MS kg/j) | E51: (%) | F51: ($/t TQS) | H51: (t TQS) | I51: $/bouvillon | J51: ($/kg de viande)
C52: 0.2 | D52: 5 | E52: 0 | F52: 18 | H52: =IF(D52="",0,'Données de base - Mon programme'!$C$42*(D52/C52/(1-E52))/1000) -> 1.8 | I52: =H52*F52 -> 32.4 | J52: =I52/'Données de base - Mon programme'!$D$64 -> 0.2059545158
C53: 0.5 | D53: 2 | E53: 0.05 | H53: =IF(D53="",0,'Données de base - Mon programme'!$C$42*(D53/C53/(1-E53))/1000) -> 0.3031578947 | I53: =H53*F53 -> 0 | J53: =I53/'Données de base - Mon programme'!$D$64 -> 0
C54: 0.87 | E54: 0.025 | H54: =IF(D54="",0,'Données de base - Mon programme'!$C$42*(D54/C54/(1-E54))/1000) -> 0 | I54: =H54*F54 -> 0 | J54: =I54/'Données de base - Mon programme'!$D$64 -> 0
C55: 0.98 | D55: 0.1 | E55: 0.025 | F55: 1500 | H55: =IF(D55="",0,'Données de base - Mon programme'!$C$42*(D55/C55/(1-E55))/1000) -> 0.007535321821 | I55: =H55*F55 -> 11.30298273 | J55: =I55/'Données de base - Mon programme'!$D$64 -> 0.0718487758
C56: 0.98 | E56: 0.025 | H56: =IF(D56="",0,'Données de base - Mon programme'!$C$42*(D56/C56/(1-E56))/1000) -> 0 | I56: =H56*F56 -> 0 | J56: =I56/'Données de base - Mon programme'!$D$64 -> 0
B57: Coût total des aliments pour la période | I57: =SUM(I52:I56) -> 43.70298273 | J57: =SUM(J52:J56) -> 0.2778032916
B60: =CONCATENATE(" PHASE 4 : Durée de ",'Données de base - Mon programme'!C50," jours"," et GMQ de ",ROUNDUP('Données de base - Mon programme'!C53,2), " kg/jour avec un poids moyen de ",('Données de base - Mon programme'!C52+'Données de base - Mon programme'!C54)/2," kg") -> PHASE 4 : Durée de 0 jours et GMQ de 0,8 kg/jour avec un poids moyen de 483,2 kg
C61: MS | D61: Quantité | E61: Perte | F61: Prix | H61: Quantité
C62: % | D62: (MS kg/j) | E62: (%) | F62: ($/t TQS) | H62: (t TQS) | I62: $/bouvillon | J62: ($/kg de viande)
C63: 0.2 | D63: 5 | E63: 0 | F63: 18 | H63: =IF(D63="",0,'Données de base - Mon programme'!$C$50*(D63/C63/(1-E63))/1000) -> 0 | I63: =H63*F63 -> 0 | J63: =I63/'Données de base - Mon programme'!$D$64 -> 0
C64: 0.5 | D64: 2 | E64: 0.05 | H64: =IF(D64="",0,'Données de base - Mon programme'!$C$50*(D64/C64/(1-E64))/1000) -> 0 | I64: =H64*F64 -> 0 | J64: =I64/'Données de base - Mon programme'!$D$64 -> 0
C65: 0.87 | E65: 0.025 | H65: =IF(D65="",0,'Données de base - Mon programme'!$C$50*(D65/C65/(1-E65))/1000) -> 0 | I65: =H65*F65 -> 0 | J65: =I65/'Données de base - Mon programme'!$D$64 -> 0
C66: 0.98 | D66: 0.1 | E66: 0.025 | F66: 1500 | H66: =IF(D66="",0,'Données de base - Mon programme'!$C$50*(D66/C66/(1-E66))/1000) -> 0 | I66: =H66*F66 -> 0 | J66: =I66/'Données de base - Mon programme'!$D$64 -> 0
C67: 0.98 | E67: 0.025 | H67: =IF(D67="",0,'Données de base - Mon programme'!$C$50*(D67/C67/(1-E67))/1000) -> 0 | I67: =H67*F67 -> 0 | J67: =I67/'Données de base - Mon programme'!$D$64 -> 0
B68: Coût total des aliments pour la période | I68: =SUM(I63:I67) -> 0 | J68: =SUM(J63:J67) -> 0
B70: Coût total des aliments | I70: =I68+I57+I47+I37 -> 255.2200042 | J70: =I70/'Données de base - Mon programme'!$D$64 -> 1.622336802
B72: C. Autres coûts
B74: Médicaments, vermifuge et vétérinaire | D74: 1 | G74: 10 | I74: =D74*G74 -> 10 | J74: =I74/'Données de base - Mon programme'!$D$64 -> 0.06356620859
B75: Litière (kg/jour) | D75: 1.75 | E75: kg/j | F75: =CONCATENATE('Données de base - Mon programme'!AC28," j") -> 229 j | G75: 130 | H75: / t | I75: =G75*(D75*'Données de base'!AC28)/1000 -> 79.17 | J75: =I75/'Données de base - Mon programme'!$D$64 -> 0.5032536734
B76: Autres frais liés aux animaux | D76: 1 | G76: 5 | I76: =G76*D76 -> 5 | J76: =I76/'Données de base - Mon programme'!$D$64 -> 0.0317831043
B77: Fumier ($/tête) | D77: 0.02 | E77: m3/tête/jour | F77: =F75 -> 229 j | G77: 1.88 | H77: $/m3 | I77: ='Données de base'!AC28*D77*G77 -> 13.0848 | J77: =I77/'Données de base - Mon programme'!$D$64 -> 0.08317511262
B78: Rejets | D78: 0.02 | E78: par élevage | G78: =I24+(I70+I74+I75+I76+I77)/2 -> 1501.237402 | I78: =(G78*D78) -> 30.02474804 | J78: =I78/'Données de base - Mon programme'!$D$64 -> 0.1908559397
B79: Perte par mortalité | D79: 0.014 | E79: par élevage | G79: =(G78) -> 1501.237402 | I79: =D79*G79 -> 21.01732363 | J79: =I79/'Données de base - Mon programme'!$D$64 -> 0.1335991578
B80: Frais pour l’élimination des animaux morts | D80: =D79 -> 0.014 | G80: 80 | I80: =G80*D80 -> 1.12 | J80: =I80/'Données de base - Mon programme'!$D$64 -> 0.007119415362
B81: Assurance animaux | D81: =G79+I79+I80 -> 1523.374726 | G81: 5.5 | H81: /1000 $ | I81: =G81*D81/1000 -> 8.378560991 | J81: =I81/'Données de base - Mon programme'!$D$64 -> 0.05325933557
B82: Logement - réparation, taxes, assurances (30 ans) | C82: m2/tête | D82: 4.5 | E82: 265 | F82: $/m2 | G82: 0.028 | H82: /1000$/élevage | I82: =D82*E82*G82*(('Données de base'!AB28+'Données de base'!AC28)/365) -> 31.83484932 | J82: =I82/'Données de base - Mon programme'!$D$64 -> 0.2023620672
B83: Main-d’œuvre pour la phase 1, (heure/jour/lot) | D83: 1.25 | E83: ='Données de base - Mon programme'!C27 -> 61 | F83: 15 | G83: / h payé | H83: 0.25 | I83: =(D83*E83*F83*H83)/$D$26 -> 28.59375 | J83: =I83/'Données de base - Mon programme'!$D$64 -> 0.1817596277
B84: Main-d’œuvre pour la phase 2, (heure/jour/lot) | D84: 1.25 | E84: ='Données de base - Mon programme'!C34 -> 96 | F84: 15 | G84: / h payé | H84: 0.25 | I84: =(D84*E84*F84*H84)/$D$26 -> 45 | J84: =I84/'Données de base - Mon programme'!$D$64 -> 0.2860479387
B85: Main-d’œuvre pour la phase 3, (heure/jour/lot) | D85: 0.75 | E85: ='Données de base - Mon programme'!C42 -> 72 | F85: 15 | G85: / h payé | H85: 0 | I85: 0 | J85: =I85/'Données de base - Mon programme'!$D$64 -> 0
B86: Main-d’œuvre pour la phase 4, (heure/jour/lot) | D86: 0.75 | E86: ='Données de base - Mon programme'!C50 -> 0 | F86: 15 | G86: / h payé | H86: 0 | I86: 0 | J86: =I86/'Données de base - Mon programme'!$D$64 -> 0
B87: Intérêt sur emprunt à moyen ou long terme | D87: 5 | E87: % emprunt | F87: 2000 | G87: /2 montant= | H87: =D87*F87/100/2 -> 50 | I87: =H87/D26 -> 5 | J87: =I87/'Données de base - Mon programme'!$D$64 -> 0.0317831043
B88: Intérêt sur ouverture de crédit | D88: 1 | E88: =G79+I79+I80+I81+I82+I83+I84+I85+I86 -> 1637.181886 | G88: 0.042 | H88: =CONCATENATE('Données de base'!AD28,"/365 j") -> 348/365 j | I88: =D88*E88*G88 -> 68.76163921 | J88: =I88/'Données de base - Mon programme'!$D$64 -> 0.4370916701
B89: Total des coûts | I89: =SUM(I74:I88) -> 346.9856712 | J89: =SUM(J74:J88) -> 2.205656355
B91: Total des frais variables | I91: =I24+I70+I89 -> 1922.205675 | J91: =I91/'Données de base - Mon programme'!$D$64 -> 12.21873269
B94: D. Frais généraux
I95: $/bouvillon | J95: ($/kg de viande)
B96: Téléphone et électricité | D96: 100 | F96: =$D$26 -> 10 | G96: têtes | I96: =D96/F96 -> 10 | J96: =I96/'Données de base - Mon programme'!$D$64 -> 0.06356620859
B97: Frais professionnels (comptable, UPA, consultant, association, etc.) | D97: 400 | F97: =$D$26 -> 10 | G97: têtes | I97: =D97/F97 -> 40 | J97: =I97/'Données de base - Mon programme'!$D$64 -> 0.2542648344
B98: Divers (fournitures de bureau ou autres) | D98: 100 | F98: =$D$26 -> 10 | G98: têtes | I98: =D98/F98 -> 10 | J98: =I98/'Données de base - Mon programme'!$D$64 -> 0.06356620859
F99: =$D$26 -> 10 | G99: têtes | I99: =D99/F99 -> 0 | J99: =I99/'Données de base - Mon programme'!$D$64 -> 0
I100: =SUM(I96:I99) -> 60 | J100: =I100/'Données de base - Mon programme'!$D$64 -> 0.3813972515
B102: E. Revenus à déduire
P103: =I123/#REF! ->  | Q103: =P103/2.2 -> 
B104: Moins : | I104: $/bouvillon | J104: ($/kg de viande)
B105: Revenus nets des rejets | D105: =D78 -> 0.02 | E105: =('Données de base - Mon programme'!C60+'Données de base - Mon programme'!C24)/2 -> 391.6 | F105: kg poids moyen | G105: 4 | H105: /kg | I105: =(D105*E105*G105)-(D105*(G20+G21)) -> 30.288 | J105: =I105/'Données de base - Mon programme'!$D$64 -> 0.1925293326
B106: Compensation nette de l’ASRA pour les rejets | D106: =D105 -> 0.02 | E106: =IF('Données de base - Mon programme'!$C$24>340,$E$105-'Données de base - Mon programme'!C24,$E$105-340) -> 51.6 | F106: kg gain animal rejeté | G106: =0.3302-0.0731 -> 0.2571 | H106: /kg | I106: =IF((E107*D26)<(1500/2.2),"",(D106*E106*G106)) -> 0.2653272 | J106: =I106/'Données de base - Mon programme'!$D$64 -> 0.001686584414
B107: Compensation nette de l’ASRA pour les bouvillons | D107: =1-D106 -> 0.98 | E107: =IF('Données de base - Mon programme'!$C$24>340,'Données de base'!$C$60-'Données de base'!C24,'Données de base - Mon programme'!$C$60-340) -> 143.2 | F107: kg gain bouvillon | G107: 0.257 | H107: /kg | I107: =IF((E107*D26)<(1500/2.2),"",(D107*E107*G107)) -> 36.066352 | J107: =I107/'Données de base - Mon programme'!$D$64 -> 0.2292601254
G108: , | I108: =SUM(I105:I107) -> 66.6196792 | J108: =I108/'Données de base - Mon programme'!$D$64 -> 0.4234760424
B111: Valeur du bouvillon avant l’amortissement et la rémunération du travail de l’exploitant : | I111: =I91+I100-I108 -> 1915.585996 | J111: =I111/'Données de base - Mon programme'!$D$64 -> 12.1766539
B113: F. Amortissement des bâtiments et des équipements d’élevage | I113: $/bouvillon | J113: ($/kg de viande)
B115: Logement : bâtiment ou enclos d’hivernage | D115: =E82*D82 -> 1192.5 | E115: valeur de remplacement | F115: 0.03 | G115: ='Données de base - Mon programme'!AD28 -> 229 | H115: /365 j | I115: =D115*F115*G115/365 -> 22.44513699 | J115: =I115/'Données de base - Mon programme'!$D$64 -> 0.142675226
B116: Équipement | D116: 3000 | E116: valeur de remplacement | F116: 0.06 | G116: =G115 -> 229 | H116: /365 j | I116: =(D116*F116*G116/365)/D26 -> 11.29315068 | J116: =I116/'Données de base - Mon programme'!$D$64 -> 0.07178627721
I117: =SUM(I115:I116) -> 33.73828767 | J117: =I117/'Données de base - Mon programme'!$D$64 -> 0.2144615032
B119: G. Travail de l’exploitant | P119: prix - base carcasse
I120: $/bouvillon | J120: ($/kg de viande) | P120: $/kg | Q120: $/lb
B121: Travail non rémunéré (heures) | E121: =((D83*E83*(1-H83))+(D84*E84*(1-H84))+(D85*E85*(1-H85))+(D86*E86*(1-H86)))/D26 -> 20.11875 | F121: heures non payées | G121: 15 | H121: /h | I121: =E121*G121 -> 301.78125 | J121: =I121/'Données de base - Mon programme'!$D$64 -> 1.918308989 | P121: =#REF!/#REF! ->  | Q121: =P121/2.2 -> 
B123: Prix cible du bouvillon avant la mise en marché (avant la rémunération de l’avoir du propriétaire) | I123: =I111+I121+I117 -> 2251.105534 | J123: =I123/'Données de base - Mon programme'!$D$64 -> 14.30942439
B126: H. Frais de transformation et de mise en marché
I127: $/bouvillon | J127: ($/kg de viande)
B128: Transport vers l’abattoir | E128: 50 | F128: /voyage | G128: 1 | H128: animal/voyage | I128: =E128/G128 -> 50 | J128: =I128/'Données de base - Mon programme'!$D$64 -> 0.317831043
B129: Frais d’abattage | E129: 100 | F129: /animal | I129: =E129 -> 100 | J129: =I129/'Données de base - Mon programme'!$D$64 -> 0.6356620859
B130: Frais de réfrigération (vieillissement) | F130: /jour/carcasse | G130: 14 | H130: jours | I130: =E130*G130 -> 0 | J130: =I130/'Données de base - Mon programme'!$D$64 -> 0
B131: Frais de vente ( communication, transport ) | G131: =D26 -> 10 | I131: =E131/G131 -> 0 | J131: =I131/'Données de base - Mon programme'!$D$64 -> 0 | L131: =(#REF!-(D150*(1-G150)*(E150-E149-E148)))/(#REF!*(1-#REF!)) ->  | P131: =I163/#REF! ->  | Q131: =P131/2.2 -> 
B132: Frais de découpe, d’emballage, d’étiquetage | D132: kg de carcasse | E132: ='Données de base - Mon programme'!D62 -> 250.49088 | F132: 0.85 | G132: $/kg de carcasse | I132: =E132*F132 -> 212.917248 | J132: =I132/'Données de base - Mon programme'!$D$64 -> 1.35343422
B133: Transport de la viande (retour) | F133: 50 | G133: =G128 -> 1 | H133: animal/voyage | I133: =F133/G133 -> 50 | J133: =I133/'Données de base - Mon programme'!$D$64 -> 0.317831043
B134: Frais de congélation | E134: ='Données de base - Mon programme'!D64 -> 157.3162883 | F134: 0 | G134: /kg de viande | I134: =E134*F134 -> 0 | J134: =I134/'Données de base - Mon programme'!$D$64 -> 0
B135: Frais de livraison et autres | E135: ='Données de base - Mon programme'!D64 -> 157.3162883 | F135: 0 | G135: /kg de viande | I135: =F135*E135 -> 0 | J135: =I135/'Données de base - Mon programme'!$D$64 -> 0
B136: Frais de promotion | F136: 0 | G136: =D26 -> 10 | H136: animal/an | I136: =F136/G136 -> 0 | J136: =I136/'Données de base - Mon programme'!$D$64 -> 0
B137: Frais de location d'un kiosque ou autre | F137: 0 | G137: =D26 -> 10 | H137: animal/an | I137: =F137/G137 -> 0 | J137: =I137/'Données de base - Mon programme'!$D$64 -> 0
B138: Frais de permis | F138: 300 | G138: =D26 -> 10 | H138: animal/an | I138: 30 | J138: =I138/'Données de base - Mon programme'!$D$64 -> 0.1906986258
B139: Réparation, taxes, assurances des équipements | D139: 0.0519 | E139: %/an valeur | F139: 5000 | G139: =D26 -> 10 | H139: animal/an | I139: =(F139*D139)/G139 -> 25.95 | J139: =I139/'Données de base - Mon programme'!$D$64 -> 0.1649543113
B140: Réparation, taxes, assurances des bâtiments | D140: 0.04 | E140: %/an valeur | F140: 0 | G140: =D26 -> 10 | H140: animal/an | I140: =(F140*D140)/G140 -> 0 | J140: =I140/'Données de base - Mon programme'!$D$64 -> 0
B141: Intérêt sur emprunt à moyen ou long terme | D141: 5 | E141: % emprunt | F141: 5000 | G141: /2 montant= | H141: =D141*F141/100/2 -> 125 | I141: =H141/D26 -> 12.5 | J141: =I141/'Données de base - Mon programme'!$D$64 -> 0.07945776074
B142: Main-d’œuvre: | D142: 250 | E142: heures | J142: =I142/'Données de base - Mon programme'!$D$64 -> 0
B143: Salaire payé (lot, heures) | D143: 0.4 | E143: =D142*D143 -> 100 | F143: 15 | G143: / h | I143: =E143*F143/D26 -> 150 | J143: =I143/'Données de base - Mon programme'!$D$64 -> 0.9534931289
B144: Propriétaire (lot, heures) | D144: =(1-D143) -> 0.6 | E144: =D142*D144 -> 150 | I144: =E144*F144/D26 -> 0 | J144: =I144/'Données de base - Mon programme'!$D$64 -> 0
I145: =SUM(I128:I144) -> 631.367248 | J145: =I145/'Données de base - Mon programme'!$D$64 -> 4.013362218
B147: Frais dus à des problèmes de qualité | D147: ='Données de base - Mon programme'!C65 -> 0.02 | F147: =I123+I145 -> 2882.472782 | I147: =F147*D147 -> 57.64945564 | J147: =I147/'Données de base - Mon programme'!$D$64 -> 0.3664557322
B148: Récupération, transport, etc. (kg) | D148: ='Données de base - Mon programme'!D64*'Budget - Mon programme'!D147 -> 3.146325767 | E148: 0.22 | F148: /kg | I148: =D148*E148 -> 0.6921916687 | J148: =I148/'Données de base - Mon programme'!$D$64 -> 0.0044
B149: Création de produits transformés (kg) | D149: =D148 -> 3.146325767 | E149: 5.2 | F149: /kg | I149: =D149*E149 -> 16.36089399 | J149: =I149/'Données de base - Mon programme'!$D$64 -> 0.104
B150: Moins la vente de produits transformés (kg) | D150: =D148 -> 3.146325767 | F150: /kg avec un poucentage de perte de | G150: 0.1 | I150: =D150*E150*(1-G150) -> 0 | J150: =I150/'Données de base - Mon programme'!$D$64 -> 0
I151: =I147+I148+I149-I150 -> 74.70254129 | J151: =I151/'Données de base - Mon programme'!$D$64 -> 0.4748557322
J152: =I152/'Données de base - Mon programme'!$D$64 -> 0
B153: Frais de mise en marché avant l’amortissement et la rémunération du travail du propriétaire | I153: =I145+I151 -> 706.0697893 | J153: =I153/'Données de base - Mon programme'!$D$64 -> 4.488217951
B155: Amortissement des bâtiments et des équipements liés à la mise en marché
B156: Bâtiment | D156: 0.03 | E156: %/an valeur | F156: =F140 -> 0 | G156: =D26 -> 10 | H156: animal/an | I156: =(F156*D156)/G156 -> 0 | J156: =I156/'Données de base - Mon programme'!$D$64 -> 0
B157: Équipement | D157: 0.0633 | E157: %/an valeur | F157: =F139 -> 5000 | G157: =D26 -> 10 | H157: animal/an | I157: =((F157*D157)/G157) -> 31.65 | J157: =I157/'Données de base - Mon programme'!$D$64 -> 0.2011870502
I158: =I156+I157 -> 31.65 | J158: =I158/'Données de base - Mon programme'!$D$64 -> 0.2011870502
B159: Travail de l’exploitant | J159: =I159/'Données de base - Mon programme'!$D$64 -> 0
B160: Travail non rémunéré (heures) | E160: =E144/D26 -> 15 | F160: heures non payées | G160: 15 | H160: /h | I160: =(E160*G160) -> 225 | J160: =I160/'Données de base - Mon programme'!$D$64 -> 1.430239693
J161: =I161/'Données de base - Mon programme'!$D$64 -> 0
J162: =I162/'Données de base - Mon programme'!$D$64 -> 0
B163: Prix cible du bouvillon en découpe avant la rémunération de l’avoir du propriétaire | I163: =I123+I153+I158+I160 -> 3213.825323 | J163: =I163/'Données de base - Mon programme'!$D$64 -> 20.42906909
B164: (Le prix cible tient compte de l’amortissement ainsi que de la rémunération du travail et de l’avoir du propriétaire)
B167: I. Remboursement en capital annuel
B168: Emprunt pour l’élevage | E168: 10000 | F168: Pourcentage attribué à l’atelier bouvillon viande = | H168: 0.1 | I168: =(E168*H168)/D26 -> 100 | J168: =I168/'Données de base - Mon programme'!$D$64 -> 0.6356620859
B169: Emprunt pour la transformation et la mise en marché | E169: 1000 | F169: Pourcentage attribué à l’atelier bouvillon viande = | H169: 1 | I169: =(E169*H169)/D26 -> 100 | J169: =I169/'Données de base - Mon programme'!$D$64 -> 0.6356620859
I170: =I168+I169 -> 200 | J170: =I170/'Données de base - Mon programme'!$D$64 -> 1.271324172
J171: =I171/'Données de base - Mon programme'!$D$64 -> 0
B172: Prix minimum du bouvillon en découpe | I172: =I163-I158-I117+I170 -> 3348.437035 | J172: =I172/'Données de base - Mon programme'!$D$64 -> 21.28474471
B173: (Le prix minimum inclut les annuités, mais il exclut l’amortissement et la rémunération de l’avoir du propriétaire)
U178: Veau | V178: =J24/$J$172 -> 0.3942137738
U179: Alimentation | V179: =J70/$J$172 -> 0.07622063711
U180: Autres coûts variables + fixes + intérêts Court Terme- revenus ASRA | V180: =(J74+J75+J76+J77++J78+J79+J80+J81+J82+J88+J100-J108)/$J$172 -> 0.07817744196
U181: Travail de production | V181: =(J83+J84+J85+J86+J121)/J172 -> 0.1121045419
U182: Mise en marché | V182: =(SUM(J128:J140))/$J$172 -> 0.1400257025
U183: Travail de mise en marché | V183: =(J143+J160)/$J$172 -> 0.1119925494
U184: Problème de qualité | V184: =J151/$J$172 -> 0.02230967478
U185: Annuité (capital + intérêts) | V185: =(J87+J141+J170)/J172 -> 0.06495567863
V186: =SUM(V178:V185) -> 1

Sheet Tableau d'analyse - Mon program
B1: TABLEAU D’ANALYSE DE SENSIBILITÉ
B2: PROGRAMME ALIMENTAIRE PERSONNEL
B4: Client | D4: ='Données de base - Mon programme'!C5 -> Yvan Dubœuf
B5: Budget adapté par | D5: ='Données de base - Mon programme'!C6 -> Jean Untel
B6: Date | D6: ='Données de base - Mon programme'!C7 -> 2018-03-01
B7: Scénario | D7: ='Données de base - Mon programme'!C8 -> 10 bouvillons
B9: Effet du taux de rémunération du travail du propriétaire ($/h)
C10: Salaire du proprio | D10: Prix cible | F10: Prix minimum
B11: $/heure | C11: $/lot | D11: $/bouvillon | E11: $/kg de viande | F11: $/bouvillon | G11: $/kg de viande
C12: =('Budget - Mon programme'!$E$160+'Budget - Mon programme'!$E$121)*'Budget - Mon programme'!$D$26*B12 -> 0 | D12: ='Budget - Mon programme'!I163-'Budget - Mon programme'!$I$160+('Budget - Mon programme'!$E$160*'Tableau d''analyse - Mon program'!B12)-'Budget - Mon programme'!$I$121+('Budget - Mon programme'!$E$121*'Tableau d''analyse - Mon program'!B12) -> 2687.044073 | E12: =D12/'Données de base - Mon programme'!$D$64 -> 17.0805204 | F12: ='Budget - Mon programme'!$I$172-'Budget - Mon programme'!$I$160+('Budget - Mon programme'!$E$160*'Tableau d''analyse - Mon program'!B12)-'Budget - Mon programme'!$I$121+('Budget - Mon programme'!$E$121*'Tableau d''analyse - Mon program'!B12) -> 2821.655785 | G12: =F12/'Données de base - Mon programme'!$D$64 -> 17.93619602
B13: 5 | C13: =('Budget - Mon programme'!$E$160+'Budget - Mon programme'!$E$121)*'Budget - Mon programme'!$D$26*B13 -> 1755.9375 | D13: ='Budget - Mon programme'!$I$163-'Budget - Mon programme'!$I$160+('Budget - Mon programme'!$E$160*'Tableau d''analyse - Mon program'!B13)-'Budget - Mon programme'!$I$121+('Budget - Mon programme'!$E$121*'Tableau d''analyse - Mon program'!B13) -> 2862.637823 | E13: =D13/'Données de base - Mon programme'!$D$64 -> 18.1967033 | F13: ='Budget - Mon programme'!$I$172-'Budget - Mon programme'!$I$160+('Budget - Mon programme'!$E$160*'Tableau d''analyse - Mon program'!B13)-'Budget - Mon programme'!$I$121+('Budget - Mon programme'!$E$121*'Tableau d''analyse - Mon program'!B13) -> 2997.249535 | G13: =F13/'Données de base - Mon programme'!$D$64 -> 19.05237892
B14: 10 | C14: =('Budget - Mon programme'!$E$160+'Budget - Mon programme'!$E$121)*'Budget - Mon programme'!$D$26*B14 -> 3511.875 | D14: ='Budget - Mon programme'!$I$163-'Budget - Mon programme'!$I$160+('Budget - Mon programme'!$E$160*'Tableau d''analyse - Mon program'!B14)-'Budget - Mon programme'!$I$121+('Budget - Mon programme'!$E$121*'Tableau d''analyse - Mon program'!B14) -> 3038.231573 | E14: =D14/'Données de base - Mon programme'!$D$64 -> 19.31288619 | F14: ='Budget - Mon programme'!$I$172-'Budget - Mon programme'!$I$160+('Budget - Mon programme'!$E$160*'Tableau d''analyse - Mon program'!B14)-'Budget - Mon programme'!$I$121+('Budget - Mon programme'!$E$121*'Tableau d''analyse - Mon program'!B14) -> 3172.843285 | G14: =F14/'Données de base - Mon programme'!$D$64 -> 20.16856181
B15: 15 | C15: =('Budget - Mon programme'!$E$160+'Budget - Mon programme'!$E$121)*'Budget - Mon programme'!$D$26*B15 -> 5267.8125 | D15: ='Budget - Mon programme'!$I$163-'Budget - Mon programme'!$I$160+('Budget - Mon programme'!$E$160*'Tableau d''analyse - Mon program'!B15)-'Budget - Mon programme'!$I$121+('Budget - Mon programme'!$E$121*'Tableau d''analyse - Mon program'!B15) -> 3213.825323 | E15: =D15/'Données de base - Mon programme'!$D$64 -> 20.42906909 | F15: ='Budget - Mon programme'!$I$172-'Budget - Mon programme'!$I$160+('Budget - Mon programme'!$E$160*'Tableau d''analyse - Mon program'!B15)-'Budget - Mon programme'!$I$121+('Budget - Mon programme'!$E$121*'Tableau d''analyse - Mon program'!B15) -> 3348.437035 | G15: =F15/'Données de base - Mon programme'!$D$64 -> 21.28474471
B16: 20 | C16: =('Budget - Mon programme'!$E$160+'Budget - Mon programme'!$E$121)*'Budget - Mon programme'!$D$26*B16 -> 7023.75 | D16: ='Budget - Mon programme'!$I$163-'Budget - Mon programme'!$I$160+('Budget - Mon programme'!$E$160*'Tableau d''analyse - Mon program'!B16)-'Budget - Mon programme'!$I$121+('Budget - Mon programme'!$E$121*'Tableau d''analyse - Mon program'!B16) -> 3389.419073 | E16: =D16/'Données de base - Mon programme'!$D$64 -> 21.54525198 | F16: ='Budget - Mon programme'!$I$172-'Budget - Mon programme'!$I$160+('Budget - Mon programme'!$E$160*'Tableau d''analyse - Mon program'!B16)-'Budget - Mon programme'!$I$121+('Budget - Mon programme'!$E$121*'Tableau d''analyse - Mon program'!B16) -> 3524.030785 | G16: =F16/'Données de base - Mon programme'!$D$64 -> 22.4009276
B19: Salaire du proprio | C19: $/heure | D19: Prix cible | F19: Prix minimum
B20: $/lot | D20: $/bouvillon | E20: $/kg de viande | F20: $/bouvillon | G20: $/kg de viande
B21: 0 | C21: =B21/(('Budget - Mon programme'!$E$121+'Budget - Mon programme'!$E$160)*'Budget - Mon programme'!$D$26) -> 0 | D21: ='Budget - Mon programme'!$I$163-'Budget - Mon programme'!$I$160+('Budget - Mon programme'!$E$160*'Tableau d''analyse - Mon program'!C21)-'Budget - Mon programme'!$I$121+('Budget - Mon programme'!$E$121*'Tableau d''analyse - Mon program'!C21) -> 2687.044073 | E21: =D21/'Données de base - Mon programme'!$D$64 -> 17.0805204 | F21: ='Budget - Mon programme'!$I$172-'Budget - Mon programme'!$I$160+('Budget - Mon programme'!$E$160*'Tableau d''analyse - Mon program'!E21)-'Budget - Mon programme'!$I$121+('Budget - Mon programme'!$E$121*'Tableau d''analyse - Mon program'!E21) -> 3421.502311 | G21: =F21/'Données de base - Mon programme'!$D$64 -> 21.74919296
B22: 5000 | C22: =B22/(('Budget - Mon programme'!$E$121+'Budget - Mon programme'!$E$160)*'Budget - Mon programme'!$D$26) -> 14.23740879 | D22: ='Budget - Mon programme'!$I$163-'Budget - Mon programme'!$I$160+('Budget - Mon programme'!$E$160*'Tableau d''analyse - Mon program'!C22)-'Budget - Mon programme'!$I$121+('Budget - Mon programme'!$E$121*'Tableau d''analyse - Mon program'!C22) -> 3187.044073 | E22: =D22/'Données de base - Mon programme'!$D$64 -> 20.25883083 | F22: ='Budget - Mon programme'!$I$172-'Budget - Mon programme'!$I$160+('Budget - Mon programme'!$E$160*'Tableau d''analyse - Mon program'!E22)-'Budget - Mon programme'!$I$121+('Budget - Mon programme'!$E$121*'Tableau d''analyse - Mon program'!E22) -> 3533.120601 | G22: =F22/'Données de base - Mon programme'!$D$64 -> 22.45870811
B23: 8000 | C23: =B23/(('Budget - Mon programme'!$E$121+'Budget - Mon programme'!$E$160)*'Budget - Mon programme'!$D$26) -> 22.77985407 | D23: ='Budget - Mon programme'!$I$163-'Budget - Mon programme'!$I$160+('Budget - Mon programme'!$E$160*'Tableau d''analyse - Mon program'!C23)-'Budget - Mon programme'!$I$121+('Budget - Mon programme'!$E$121*'Tableau d''analyse - Mon program'!C23) -> 3487.044073 | E23: =D23/'Données de base - Mon programme'!$D$64 -> 22.16581709 | F23: ='Budget - Mon programme'!$I$172-'Budget - Mon programme'!$I$160+('Budget - Mon programme'!$E$160*'Tableau d''analyse - Mon program'!E23)-'Budget - Mon programme'!$I$121+('Budget - Mon programme'!$E$121*'Tableau d''analyse - Mon program'!E23) -> 3600.091574 | G23: =F23/'Données de base - Mon programme'!$D$64 -> 22.8844172
B24: 12000 | C24: =B24/(('Budget - Mon programme'!$E$121+'Budget - Mon programme'!$E$160)*'Budget - Mon programme'!$D$26) -> 34.1697811 | D24: ='Budget - Mon programme'!$I$163-'Budget - Mon programme'!$I$160+('Budget - Mon programme'!$E$160*'Tableau d''analyse - Mon program'!C24)-'Budget - Mon programme'!$I$121+('Budget - Mon programme'!$E$121*'Tableau d''analyse - Mon program'!C24) -> 3887.044073 | E24: =D24/'Données de base - Mon programme'!$D$64 -> 24.70846544 | F24: ='Budget - Mon programme'!$I$172-'Budget - Mon programme'!$I$160+('Budget - Mon programme'!$E$160*'Tableau d''analyse - Mon program'!E24)-'Budget - Mon programme'!$I$121+('Budget - Mon programme'!$E$121*'Tableau d''analyse - Mon program'!E24) -> 3689.386206 | G24: =F24/'Données de base - Mon programme'!$D$64 -> 23.45202931
B25: 15000 | C25: =B25/(('Budget - Mon programme'!$E$121+'Budget - Mon programme'!$E$160)*'Budget - Mon programme'!$D$26) -> 42.71222637 | D25: ='Budget - Mon programme'!$I$163-'Budget - Mon programme'!$I$160+('Budget - Mon programme'!$E$160*'Tableau d''analyse - Mon program'!C25)-'Budget - Mon programme'!$I$121+('Budget - Mon programme'!$E$121*'Tableau d''analyse - Mon program'!C25) -> 4187.044073 | E25: =D25/'Données de base - Mon programme'!$D$64 -> 26.61545169 | F25: ='Budget - Mon programme'!$I$172-'Budget - Mon programme'!$I$160+('Budget - Mon programme'!$E$160*'Tableau d''analyse - Mon program'!E25)-'Budget - Mon programme'!$I$121+('Budget - Mon programme'!$E$121*'Tableau d''analyse - Mon program'!E25) -> 3756.35718 | G25: =F25/'Données de base - Mon programme'!$D$64 -> 23.8777384
B26: * Un lot correspond au volume annuel de production.
B28: Effet du prix du veau ($/kg)
B29: Prix du veau $/kg | C29: Valeur du veau $ | D29: Prix cible | F29: Prix minimum
D30: $/bouvillon | E30: $/kg de viande | F30: $/bouvillon | G30: $/kg de viande
B31: 3 | C31: =('Données de base - Mon programme'!$C$24*'Tableau d''analyse - Mon program'!B31) -> 900 | D31: =('Données de base - Mon programme'!$C$24*'Tableau d''analyse - Mon program'!B31)+'Budget - Mon programme'!$I$163-'Budget - Mon programme'!$I$24 -> 2793.825323 | E31: =D31/'Données de base - Mon programme'!$D$64 -> 17.75928833 | F31: =('Données de base - Mon programme'!$C$24*'Tableau d''analyse - Mon program'!B31)+'Budget - Mon programme'!$I$172-'Budget - Mon programme'!$I$24 -> 2928.437035 | G31: =F31/'Données de base - Mon programme'!$D$64 -> 18.61496394
B32: 4 | C32: =('Données de base - Mon programme'!$C$24*'Tableau d''analyse - Mon program'!B32) -> 1200 | D32: =('Données de base - Mon programme'!$C$24*'Tableau d''analyse - Mon program'!B32)+'Budget - Mon programme'!$I$163-'Budget - Mon programme'!$I$24 -> 3093.825323 | E32: =D32/'Données de base - Mon programme'!$D$64 -> 19.66627458 | F32: =('Données de base - Mon programme'!$C$24*'Tableau d''analyse - Mon program'!B32)+'Budget - Mon programme'!$I$172-'Budget - Mon programme'!$I$24 -> 3228.437035 | G32: =F32/'Données de base - Mon programme'!$D$64 -> 20.5219502
B33: 5 | C33: =('Données de base - Mon programme'!$C$24*'Tableau d''analyse - Mon program'!B33) -> 1500 | D33: =('Données de base - Mon programme'!$C$24*'Tableau d''analyse - Mon program'!B33)+'Budget - Mon programme'!$I$163-'Budget - Mon programme'!$I$24 -> 3393.825323 | E33: =D33/'Données de base - Mon programme'!$D$64 -> 21.57326084 | F33: =('Données de base - Mon programme'!$C$24*'Tableau d''analyse - Mon program'!B33)+'Budget - Mon programme'!$I$172-'Budget - Mon programme'!$I$24 -> 3528.437035 | G33: =F33/'Données de base - Mon programme'!$D$64 -> 22.42893646
B34: 6 | C34: =('Données de base - Mon programme'!$C$24*'Tableau d''analyse - Mon program'!B34) -> 1800 | D34: =('Données de base - Mon programme'!$C$24*'Tableau d''analyse - Mon program'!B34)+'Budget - Mon programme'!$I$163-'Budget - Mon programme'!$I$24 -> 3693.825323 | E34: =D34/'Données de base - Mon programme'!$D$64 -> 23.4802471 | F34: =('Données de base - Mon programme'!$C$24*'Tableau d''analyse - Mon program'!B34)+'Budget - Mon programme'!$I$172-'Budget - Mon programme'!$I$24 -> 3828.437035 | G34: =F34/'Données de base - Mon programme'!$D$64 -> 24.33592272
B35: 7 | C35: =('Données de base - Mon programme'!$C$24*'Tableau d''analyse - Mon program'!B35) -> 2100 | D35: =('Données de base - Mon programme'!$C$24*'Tableau d''analyse - Mon program'!B35)+'Budget - Mon programme'!$I$163-'Budget - Mon programme'!$I$24 -> 3993.825323 | E35: =D35/'Données de base - Mon programme'!$D$64 -> 25.38723336 | F35: =('Données de base - Mon programme'!$C$24*'Tableau d''analyse - Mon program'!B35)+'Budget - Mon programme'!$I$172-'Budget - Mon programme'!$I$24 -> 4128.437035 | G35: =F35/'Données de base - Mon programme'!$D$64 -> 26.24290898
B38: Effet du coût de la mise en marché (avant le remboursement du capital ou de l’amortissement)
B39: (Inclure la congélation, la livraison, la promotion, le kiosque, le permis, l’entretien et la réparation, le salaire payé et le travail.)
B41: Frais de mise en marché $/lot | C41: Frais par | D41: Prix cible | F41: Prix minimum
C42: bouvillon $ | D42: $/bouvillon | E42: $/kg de viande | F42: $/bouvillon | G42: $/kg de viande
B43: Carcasse | C43: 0 | D43: ='Budget - Mon programme'!I163-'Budget - Mon programme'!I160-'Budget - Mon programme'!I158-'Budget - Mon programme'!I144-'Budget - Mon programme'!I143-'Budget - Mon programme'!I140-'Budget - Mon programme'!I139-'Budget - Mon programme'!I138-'Budget - Mon programme'!I137-'Budget - Mon programme'!I136-'Budget - Mon programme'!I135-'Budget - Mon programme'!I134-'Budget - Mon programme'!I132-'Budget - Mon programme'!I133 -> 2488.308075 | E43: ='Budget - Mon programme'!J163-'Budget - Mon programme'!J160-'Budget - Mon programme'!J158-'Budget - Mon programme'!J144-'Budget - Mon programme'!J143-'Budget - Mon programme'!J140-'Budget - Mon programme'!J139-'Budget - Mon programme'!J138-'Budget - Mon programme'!J137-'Budget - Mon programme'!J136-'Budget - Mon programme'!J135-'Budget - Mon programme'!J134-'Budget - Mon programme'!J132-'Budget - Mon programme'!J133 -> 15.81723101 | F43: ='Budget - Mon programme'!I172-'Budget - Mon programme'!I169-'Budget - Mon programme'!I160-'Budget - Mon programme'!I158-'Budget - Mon programme'!I144-'Budget - Mon programme'!I143-'Budget - Mon programme'!I140-'Budget - Mon programme'!I139-'Budget - Mon programme'!I138-'Budget - Mon programme'!I137-'Budget - Mon programme'!I136-'Budget - Mon programme'!I135-'Budget - Mon programme'!I134-'Budget - Mon programme'!I132-'Budget - Mon programme'!I133 -> 2522.919787 | G43: ='Budget - Mon programme'!J172-'Budget - Mon programme'!J169-'Budget - Mon programme'!J160-'Budget - Mon programme'!J158-'Budget - Mon programme'!J144-'Budget - Mon programme'!J143-'Budget - Mon programme'!J140-'Budget - Mon programme'!J139-'Budget - Mon programme'!J138-'Budget - Mon programme'!J137-'Budget - Mon programme'!J136-'Budget - Mon programme'!J135-'Budget - Mon programme'!J134-'Budget - Mon programme'!J132-'Budget - Mon programme'!J133 -> 16.03724455
B44: Vente au détail
B45: 0 | C45: =B45/'Budget - Mon programme'!$D$26 -> 0 | D45: ='Budget - Mon programme'!$I$163-'Budget - Mon programme'!$I$160-'Budget - Mon programme'!$I$158-'Budget - Mon programme'!$I$144-'Budget - Mon programme'!$I$143-'Budget - Mon programme'!$I$140-'Budget - Mon programme'!$I$139-'Budget - Mon programme'!$I$138-'Budget - Mon programme'!$I$137-'Budget - Mon programme'!$I$136-'Budget - Mon programme'!$I$135-'Budget - Mon programme'!$I$134+'Tableau d''analyse - Mon program'!C45 -> 2751.225323 | E45: ='Budget - Mon programme'!$J$163-'Budget - Mon programme'!$J$160-'Budget - Mon programme'!J158-'Budget - Mon programme'!$J$144-'Budget - Mon programme'!$J$143-'Budget - Mon programme'!$J$140-'Budget - Mon programme'!$J$139-'Budget - Mon programme'!$J$138-'Budget - Mon programme'!$J$137-'Budget - Mon programme'!$J$136-'Budget - Mon programme'!$J$135-'Budget - Mon programme'!$J$134+('Tableau d''analyse - Mon program'!C45/'Données de base - Mon programme'!$D$64) -> 17.48849628 | F45: ='Budget - Mon programme'!$I$172-'Budget - Mon programme'!$I$169-'Budget - Mon programme'!$I$160-'Budget - Mon programme'!$I$144-'Budget - Mon programme'!$I$143-'Budget - Mon programme'!$I$140-'Budget - Mon programme'!$I$139-'Budget - Mon programme'!$I$138-'Budget - Mon programme'!$I$137-'Budget - Mon programme'!I$136-'Budget - Mon programme'!$I$135-'Budget - Mon programme'!$I$134+'Tableau d''analyse - Mon program'!B45 -> 2817.487035 | G45: ='Budget - Mon programme'!$J$172-'Budget - Mon programme'!$J$169-'Budget - Mon programme'!$J$160-'Budget - Mon programme'!$J$144-'Budget - Mon programme'!$J$143-'Budget - Mon programme'!$J$140-'Budget - Mon programme'!$J$139-'Budget - Mon programme'!$J$137-'Budget - Mon programme'!$J$136-'Budget - Mon programme'!$J$135-'Budget - Mon programme'!$J$134+('Tableau d''analyse - Mon program'!B45/('Données de base - Mon programme'!$D$64*10)) -> 18.10039549
B46: 2000 | C46: =B46/'Budget - Mon programme'!$D$26 -> 200 | D46: ='Budget - Mon programme'!$I$163-'Budget - Mon programme'!$I$160-'Budget - Mon programme'!$I$158-'Budget - Mon programme'!$I$144-'Budget - Mon programme'!$I$143-'Budget - Mon programme'!$I$140-'Budget - Mon programme'!$I$139-'Budget - Mon programme'!$I$138-'Budget - Mon programme'!$I$137-'Budget - Mon programme'!$I$136-'Budget - Mon programme'!$I$135-'Budget - Mon programme'!$I$134+'Tableau d''analyse - Mon program'!C46 -> 2951.225323 | E46: ='Budget - Mon programme'!$J$163-'Budget - Mon programme'!$J$160-'Budget - Mon programme'!J159-'Budget - Mon programme'!$J$144-'Budget - Mon programme'!$J$143-'Budget - Mon programme'!$J$140-'Budget - Mon programme'!$J$139-'Budget - Mon programme'!$J$138-'Budget - Mon programme'!$J$137-'Budget - Mon programme'!$J$136-'Budget - Mon programme'!$J$135-'Budget - Mon programme'!$J$134+('Tableau d''analyse - Mon program'!C46/'Données de base - Mon programme'!$D$64) -> 18.9610075 | F46: ='Budget - Mon programme'!$I$172-'Budget - Mon programme'!$I$169-'Budget - Mon programme'!$I$160-'Budget - Mon programme'!$I$144-'Budget - Mon programme'!$I$143-'Budget - Mon programme'!$I$140-'Budget - Mon programme'!$I$139-'Budget - Mon programme'!$I$138-'Budget - Mon programme'!$I$137-'Budget - Mon programme'!I$136-'Budget - Mon programme'!$I$135-'Budget - Mon programme'!$I$134+'Tableau d''analyse - Mon program'!B46 -> 4817.487035 | G46: ='Budget - Mon programme'!$J$172-'Budget - Mon programme'!$J$169-'Budget - Mon programme'!$J$160-'Budget - Mon programme'!$J$144-'Budget - Mon programme'!$J$143-'Budget - Mon programme'!$J$140-'Budget - Mon programme'!$J$139-'Budget - Mon programme'!$J$137-'Budget - Mon programme'!$J$136-'Budget - Mon programme'!$J$135-'Budget - Mon programme'!$J$134+('Tableau d''analyse - Mon program'!B46/('Données de base - Mon programme'!$D$64*10)) -> 19.37171966
B47: 4000 | C47: =B47/'Budget - Mon programme'!$D$26 -> 400 | D47: ='Budget - Mon programme'!$I$163-'Budget - Mon programme'!$I$160-'Budget - Mon programme'!$I$158-'Budget - Mon programme'!$I$144-'Budget - Mon programme'!$I$143-'Budget - Mon programme'!$I$140-'Budget - Mon programme'!$I$139-'Budget - Mon programme'!$I$138-'Budget - Mon programme'!$I$137-'Budget - Mon programme'!$I$136-'Budget - Mon programme'!$I$135-'Budget - Mon programme'!$I$134+'Tableau d''analyse - Mon program'!C47 -> 3151.225323 | E47: ='Budget - Mon programme'!$J$163-'Budget - Mon programme'!$J$160-'Budget - Mon programme'!J160-'Budget - Mon programme'!$J$144-'Budget - Mon programme'!$J$143-'Budget - Mon programme'!$J$140-'Budget - Mon programme'!$J$139-'Budget - Mon programme'!$J$138-'Budget - Mon programme'!$J$137-'Budget - Mon programme'!$J$136-'Budget - Mon programme'!$J$135-'Budget - Mon programme'!$J$134+('Tableau d''analyse - Mon program'!C47/'Données de base - Mon programme'!$D$64) -> 18.80209198 | F47: ='Budget - Mon programme'!$I$172-'Budget - Mon programme'!$I$169-'Budget - Mon programme'!$I$160-'Budget - Mon programme'!$I$144-'Budget - Mon programme'!$I$143-'Budget - Mon programme'!$I$140-'Budget - Mon programme'!$I$139-'Budget - Mon programme'!$I$138-'Budget - Mon programme'!$I$137-'Budget - Mon programme'!I$136-'Budget - Mon programme'!$I$135-'Budget - Mon programme'!$I$134+'Tableau d''analyse - Mon program'!B47 -> 6817.487035 | G47: ='Budget - Mon programme'!$J$172-'Budget - Mon programme'!$J$169-'Budget - Mon programme'!$J$160-'Budget - Mon programme'!$J$144-'Budget - Mon programme'!$J$143-'Budget - Mon programme'!$J$140-'Budget - Mon programme'!$J$139-'Budget - Mon programme'!$J$137-'Budget - Mon programme'!$J$136-'Budget - Mon programme'!$J$135-'Budget - Mon programme'!$J$134+('Tableau d''analyse - Mon program'!B47/('Données de base - Mon programme'!$D$64*10)) -> 20.64304383
B48: 5000 | C48: =B48/'Budget - Mon programme'!$D$26 -> 500 | D48: ='Budget - Mon programme'!$I$163-'Budget - Mon programme'!$I$160-'Budget - Mon programme'!$I$158-'Budget - Mon programme'!$I$144-'Budget - Mon programme'!$I$143-'Budget - Mon programme'!$I$140-'Budget - Mon programme'!$I$139-'Budget - Mon programme'!$I$138-'Budget - Mon programme'!$I$137-'Budget - Mon programme'!$I$136-'Budget - Mon programme'!$I$135-'Budget - Mon programme'!$I$134+'Tableau d''analyse - Mon program'!C48 -> 3251.225323 | E48: ='Budget - Mon programme'!$J$163-'Budget - Mon programme'!$J$160-'Budget - Mon programme'!J161-'Budget - Mon programme'!$J$144-'Budget - Mon programme'!$J$143-'Budget - Mon programme'!$J$140-'Budget - Mon programme'!$J$139-'Budget - Mon programme'!$J$138-'Budget - Mon programme'!$J$137-'Budget - Mon programme'!$J$136-'Budget - Mon programme'!$J$135-'Budget - Mon programme'!$J$134+('Tableau d''analyse - Mon program'!C48/'Données de base - Mon programme'!$D$64) -> 20.86799376 | F48: ='Budget - Mon programme'!$I$172-'Budget - Mon programme'!$I$169-'Budget - Mon programme'!$I$160-'Budget - Mon programme'!$I$144-'Budget - Mon programme'!$I$143-'Budget - Mon programme'!$I$140-'Budget - Mon programme'!$I$139-'Budget - Mon programme'!$I$138-'Budget - Mon programme'!$I$137-'Budget - Mon programme'!I$136-'Budget - Mon programme'!$I$135-'Budget - Mon programme'!$I$134+'Tableau d''analyse - Mon program'!B48 -> 7817.487035 | G48: ='Budget - Mon programme'!$J$172-'Budget - Mon programme'!$J$169-'Budget - Mon programme'!$J$160-'Budget - Mon programme'!$J$144-'Budget - Mon programme'!$J$143-'Budget - Mon programme'!$J$140-'Budget - Mon programme'!$J$139-'Budget - Mon programme'!$J$137-'Budget - Mon programme'!$J$136-'Budget - Mon programme'!$J$135-'Budget - Mon programme'!$J$134+('Tableau d''analyse - Mon program'!B48/('Données de base - Mon programme'!$D$64*10)) -> 21.27870592
B49: 10000 | C49: =B49/'Budget - Mon programme'!$D$26 -> 1000 | D49: ='Budget - Mon programme'!$I$163-'Budget - Mon programme'!$I$160-'Budget - Mon programme'!$I$158-'Budget - Mon programme'!$I$144-'Budget - Mon programme'!$I$143-'Budget - Mon programme'!$I$140-'Budget - Mon programme'!$I$139-'Budget - Mon programme'!$I$138-'Budget - Mon programme'!$I$137-'Budget - Mon programme'!$I$136-'Budget - Mon programme'!$I$135-'Budget - Mon programme'!$I$134+'Tableau d''analyse - Mon program'!C49 -> 3751.225323 | E49: ='Budget - Mon programme'!$J$163-'Budget - Mon programme'!$J$160-'Budget - Mon programme'!J162-'Budget - Mon programme'!$J$144-'Budget - Mon programme'!$J$143-'Budget - Mon programme'!$J$140-'Budget - Mon programme'!$J$139-'Budget - Mon programme'!$J$138-'Budget - Mon programme'!$J$137-'Budget - Mon programme'!$J$136-'Budget - Mon programme'!$J$135-'Budget - Mon programme'!$J$134+('Tableau d''analyse - Mon program'!C49/'Données de base - Mon programme'!$D$64) -> 24.04630419 | F49: ='Budget - Mon programme'!$I$172-'Budget - Mon programme'!$I$169-'Budget - Mon programme'!$I$160-'Budget - Mon programme'!$I$144-'Budget - Mon programme'!$I$143-'Budget - Mon programme'!$I$140-'Budget - Mon programme'!$I$139-'Budget - Mon programme'!$I$138-'Budget - Mon programme'!$I$137-'Budget - Mon programme'!I$136-'Budget - Mon programme'!$I$135-'Budget - Mon programme'!$I$134+'Tableau d''analyse - Mon program'!B49 -> 12817.48704 | G49: ='Budget - Mon programme'!$J$172-'Budget - Mon programme'!$J$169-'Budget - Mon programme'!$J$160-'Budget - Mon programme'!$J$144-'Budget - Mon programme'!$J$143-'Budget - Mon programme'!$J$140-'Budget - Mon programme'!$J$139-'Budget - Mon programme'!$J$137-'Budget - Mon programme'!$J$136-'Budget - Mon programme'!$J$135-'Budget - Mon programme'!$J$134+('Tableau d''analyse - Mon program'!B49/('Données de base - Mon programme'!$D$64*10)) -> 24.45701634
B52: Effet du rendement de la carcasse et en viande sur le prix cible (kg de viande)
B53: Rendement | C53: Rendement en viande %
B54: de la carcasse % | C54: 0.55 | D54: 0.59 | E54: 0.61 | F54: 0.63 | G54: 0.65 | J54: kg carcasse | K54: kg viande
B55: 0.5 | C55: =('Budget - Mon programme'!$I$123+'Budget - Mon programme'!$I$128+'Budget - Mon programme'!$I$129+'Budget - Mon programme'!$I$130+'Budget - Mon programme'!$I$131+'Budget - Mon programme'!$I$133+'Budget - Mon programme'!$I$136+'Budget - Mon programme'!$I$137+'Budget - Mon programme'!$I$138+'Budget - Mon programme'!$I$139+'Budget - Mon programme'!$I$140+'Budget - Mon programme'!$I$141+'Budget - Mon programme'!$I$143+'Budget - Mon programme'!$I$144+'Budget - Mon programme'!$I$158+'Budget - Mon programme'!$I$160-'Budget - Mon programme'!$I$151-'Budget - Mon programme'!$I$135-'Budget - Mon programme'!$I$134-'Budget - Mon programme'!$I$132+('Budget - Mon programme'!$F$132*'Tableau d''analyse - Mon program'!$J55)+('Budget - Mon programme'!$F$134*'Tableau d''analyse - Mon program'!K55)+('Budget - Mon programme'!$F$135*'Tableau d''analyse - Mon program'!K55)+('Budget - Mon programme'!$E$148*'Budget - Mon programme'!$D$147*'Tableau d''analyse - Mon program'!K55)+('Budget - Mon programme'!$E$149*'Budget - Mon programme'!$D$147*'Tableau d''analyse - Mon program'!K55)-('Budget - Mon programme'!$E$150*'Budget - Mon programme'!$D$147*'Tableau d''analyse - Mon program'!K55))/K55 -> 23.7369419 | D55: =('Budget - Mon programme'!$I$123+'Budget - Mon programme'!$I$128+'Budget - Mon programme'!$I$129+'Budget - Mon programme'!$I$130+'Budget - Mon programme'!$I$131+'Budget - Mon programme'!$I$133+'Budget - Mon programme'!$I$136+'Budget - Mon programme'!$I$137+'Budget - Mon programme'!$I$138+'Budget - Mon programme'!$I$139+'Budget - Mon programme'!$I$140+'Budget - Mon programme'!$I$141+'Budget - Mon programme'!$I$143+'Budget - Mon programme'!$I$144+'Budget - Mon programme'!$I$158+'Budget - Mon programme'!$I$160-'Budget - Mon programme'!$I$151-'Budget - Mon programme'!$I$135-'Budget - Mon programme'!$I$134-'Budget - Mon programme'!$I$132+('Budget - Mon programme'!$F$132*'Tableau d''analyse - Mon program'!$J55)+('Budget - Mon programme'!$F$134*'Tableau d''analyse - Mon program'!L55)+('Budget - Mon programme'!$F$135*'Tableau d''analyse - Mon program'!L55)+('Budget - Mon programme'!$E$148*'Budget - Mon programme'!$D$147*'Tableau d''analyse - Mon program'!L55)+('Budget - Mon programme'!$E$149*'Budget - Mon programme'!$D$147*'Tableau d''analyse - Mon program'!L55)-('Budget - Mon programme'!$E$150*'Budget - Mon programme'!$D$147*'Tableau d''analyse - Mon program'!L55))/L55 -> 22.13500686 | E55: =('Budget - Mon programme'!$I$123+'Budget - Mon programme'!$I$128+'Budget - Mon programme'!$I$129+'Budget - Mon programme'!$I$130+'Budget - Mon programme'!$I$131+'Budget - Mon programme'!$I$133+'Budget - Mon programme'!$I$136+'Budget - Mon programme'!$I$137+'Budget - Mon programme'!$I$138+'Budget - Mon programme'!$I$139+'Budget - Mon programme'!$I$140+'Budget - Mon programme'!$I$141+'Budget - Mon programme'!$I$143+'Budget - Mon programme'!$I$144+'Budget - Mon programme'!$I$158+'Budget - Mon programme'!$I$160-'Budget - Mon programme'!$I$151-'Budget - Mon programme'!$I$135-'Budget - Mon programme'!$I$134-'Budget - Mon programme'!$I$132+('Budget - Mon programme'!$F$132*'Tableau d''analyse - Mon program'!$J55)+('Budget - Mon programme'!$F$134*'Tableau d''analyse - Mon program'!M55)+('Budget - Mon programme'!$F$135*'Tableau d''analyse - Mon program'!M55)+('Budget - Mon programme'!$E$148*'Budget - Mon programme'!$D$147*'Tableau d''analyse - Mon program'!M55)+('Budget - Mon programme'!$E$149*'Budget - Mon programme'!$D$147*'Tableau d''analyse - Mon program'!M55)-('Budget - Mon programme'!$E$150*'Budget - Mon programme'!$D$147*'Tableau d''analyse - Mon program'!M55))/M55 -> 21.41282302 | F55: =('Budget - Mon programme'!$I$123+'Budget - Mon programme'!$I$128+'Budget - Mon programme'!$I$129+'Budget - Mon programme'!$I$130+'Budget - Mon programme'!$I$131+'Budget - Mon programme'!$I$133+'Budget - Mon programme'!$I$136+'Budget - Mon programme'!$I$137+'Budget - Mon programme'!$I$138+'Budget - Mon programme'!$I$139+'Budget - Mon programme'!$I$140+'Budget - Mon programme'!$I$141+'Budget - Mon programme'!$I$143+'Budget - Mon programme'!$I$144+'Budget - Mon programme'!$I$158+'Budget - Mon programme'!$I$160-'Budget - Mon programme'!$I$151-'Budget - Mon programme'!$I$135-'Budget - Mon programme'!$I$134-'Budget - Mon programme'!$I$132+('Budget - Mon programme'!$F$132*'Tableau d''analyse - Mon program'!$J55)+('Budget - Mon programme'!$F$134*'Tableau d''analyse - Mon program'!N55)+('Budget - Mon programme'!$F$135*'Tableau d''analyse - Mon program'!N55)+('Budget - Mon programme'!$E$148*'Budget - Mon programme'!$D$147*'Tableau d''analyse - Mon program'!N55)+('Budget - Mon programme'!$E$149*'Budget - Mon programme'!$D$147*'Tableau d''analyse - Mon program'!N55)-('Budget - Mon programme'!$E$150*'Budget - Mon programme'!$D$147*'Tableau d''analyse - Mon program'!N55))/N55 -> 20.73649213 | G55: =('Budget - Mon programme'!$I$123+'Budget - Mon programme'!$I$128+'Budget - Mon programme'!$I$129+'Budget - Mon programme'!$I$130+'Budget - Mon programme'!$I$131+'Budget - Mon programme'!$I$133+'Budget - Mon programme'!$I$136+'Budget - Mon programme'!$I$137+'Budget - Mon programme'!$I$138+'Budget - Mon programme'!$I$139+'Budget - Mon programme'!$I$140+'Budget - Mon programme'!$I$141+'Budget - Mon programme'!$I$143+'Budget - Mon programme'!$I$144+'Budget - Mon programme'!$I$158+'Budget - Mon programme'!$I$160-'Budget - Mon programme'!$I$151-'Budget - Mon programme'!$I$135-'Budget - Mon programme'!$I$134-'Budget - Mon programme'!$I$132+('Budget - Mon programme'!$F$132*'Tableau d''analyse - Mon program'!$J55)+('Budget - Mon programme'!$F$134*'Tableau d''analyse - Mon program'!O55)+('Budget - Mon programme'!$F$135*'Tableau d''analyse - Mon program'!O55)+('Budget - Mon programme'!$E$148*'Budget - Mon programme'!$D$147*'Tableau d''analyse - Mon program'!O55)+('Budget - Mon programme'!$E$149*'Budget - Mon programme'!$D$147*'Tableau d''analyse - Mon program'!O55)-('Budget - Mon programme'!$E$150*'Budget - Mon programme'!$D$147*'Tableau d''analyse - Mon program'!O55))/O55 -> 20.10178161 | J55: ='Données de base - Mon programme'!$D$61*'Tableau d''analyse - Mon program'!B55 -> 231.936 | K55: =J55*(1-'Données de base - Mon programme'!$C$63)*'Tableau d''analyse - Mon program'!$C$54*(1-'Données de base - Mon programme'!$C$65) -> 120.0129638 | L55: =$J55*(1-'Données de base - Mon programme'!$C$63)*'Tableau d''analyse - Mon program'!D$54*(1-'Données de base - Mon programme'!$C$65) -> 128.7411794 | M55: =$J55*(1-'Données de base - Mon programme'!$C$63)*'Tableau d''analyse - Mon program'!E$54*(1-'Données de base - Mon programme'!$C$65) -> 133.1052872 | N55: =$J55*(1-'Données de base - Mon programme'!$C$63)*'Tableau d''analyse - Mon program'!F$54*(1-'Données de base - Mon programme'!$C$65) -> 137.4693949 | O55: =$J55*(1-'Données de base - Mon programme'!$C$63)*'Tableau d''analyse - Mon program'!G$54*(1-'Données de base - Mon programme'!$C$65) -> 141.8335027
B56: 0.52 | C56: =('Budget - Mon programme'!$I$123+'Budget - Mon programme'!$I$128+'Budget - Mon programme'!$I$129+'Budget - Mon programme'!$I$130+'Budget - Mon programme'!$I$131+'Budget - Mon programme'!$I$133+'Budget - Mon programme'!$I$136+'Budget - Mon programme'!$I$137+'Budget - Mon programme'!$I$138+'Budget - Mon programme'!$I$139+'Budget - Mon programme'!$I$140+'Budget - Mon programme'!$I$141+'Budget - Mon programme'!$I$143+'Budget - Mon programme'!$I$144+'Budget - Mon programme'!$I$158+'Budget - Mon programme'!$I$160-'Budget - Mon programme'!$I$151-'Budget - Mon programme'!$I$135-'Budget - Mon programme'!$I$134-'Budget - Mon programme'!$I$132+('Budget - Mon programme'!$F$132*'Tableau d''analyse - Mon program'!$J56)+('Budget - Mon programme'!$F$134*'Tableau d''analyse - Mon program'!K56)+('Budget - Mon programme'!$F$135*'Tableau d''analyse - Mon program'!K56)+('Budget - Mon programme'!$E$148*'Budget - Mon programme'!$D$147*'Tableau d''analyse - Mon program'!K56)+('Budget - Mon programme'!$E$149*'Budget - Mon programme'!$D$147*'Tableau d''analyse - Mon program'!K56)-('Budget - Mon programme'!$E$150*'Budget - Mon programme'!$D$147*'Tableau d''analyse - Mon program'!K56))/K56 -> 22.89133269 | D56: =('Budget - Mon programme'!$I$123+'Budget - Mon programme'!$I$128+'Budget - Mon programme'!$I$129+'Budget - Mon programme'!$I$130+'Budget - Mon programme'!$I$131+'Budget - Mon programme'!$I$133+'Budget - Mon programme'!$I$136+'Budget - Mon programme'!$I$137+'Budget - Mon programme'!$I$138+'Budget - Mon programme'!$I$139+'Budget - Mon programme'!$I$140+'Budget - Mon programme'!$I$141+'Budget - Mon programme'!$I$143+'Budget - Mon programme'!$I$144+'Budget - Mon programme'!$I$158+'Budget - Mon programme'!$I$160-'Budget - Mon programme'!$I$151-'Budget - Mon programme'!$I$135-'Budget - Mon programme'!$I$134-'Budget - Mon programme'!$I$132+('Budget - Mon programme'!$F$132*'Tableau d''analyse - Mon program'!$J56)+('Budget - Mon programme'!$F$134*'Tableau d''analyse - Mon program'!L56)+('Budget - Mon programme'!$F$135*'Tableau d''analyse - Mon program'!L56)+('Budget - Mon programme'!$E$148*'Budget - Mon programme'!$D$147*'Tableau d''analyse - Mon program'!L56)+('Budget - Mon programme'!$E$149*'Budget - Mon programme'!$D$147*'Tableau d''analyse - Mon program'!L56)-('Budget - Mon programme'!$E$150*'Budget - Mon programme'!$D$147*'Tableau d''analyse - Mon program'!L56))/L56 -> 21.34672709 | E56: =('Budget - Mon programme'!$I$123+'Budget - Mon programme'!$I$128+'Budget - Mon programme'!$I$129+'Budget - Mon programme'!$I$130+'Budget - Mon programme'!$I$131+'Budget - Mon programme'!$I$133+'Budget - Mon programme'!$I$136+'Budget - Mon programme'!$I$137+'Budget - Mon programme'!$I$138+'Budget - Mon programme'!$I$139+'Budget - Mon programme'!$I$140+'Budget - Mon programme'!$I$141+'Budget - Mon programme'!$I$143+'Budget - Mon programme'!$I$144+'Budget - Mon programme'!$I$158+'Budget - Mon programme'!$I$160-'Budget - Mon programme'!$I$151-'Budget - Mon programme'!$I$135-'Budget - Mon programme'!$I$134-'Budget - Mon programme'!$I$132+('Budget - Mon programme'!$F$132*'Tableau d''analyse - Mon program'!$J56)+('Budget - Mon programme'!$F$134*'Tableau d''analyse - Mon program'!M56)+('Budget - Mon programme'!$F$135*'Tableau d''analyse - Mon program'!M56)+('Budget - Mon programme'!$E$148*'Budget - Mon programme'!$D$147*'Tableau d''analyse - Mon program'!M56)+('Budget - Mon programme'!$E$149*'Budget - Mon programme'!$D$147*'Tableau d''analyse - Mon program'!M56)-('Budget - Mon programme'!$E$150*'Budget - Mon programme'!$D$147*'Tableau d''analyse - Mon program'!M56))/M56 -> 20.65038849 | F56: =('Budget - Mon programme'!$I$123+'Budget - Mon programme'!$I$128+'Budget - Mon programme'!$I$129+'Budget - Mon programme'!$I$130+'Budget - Mon programme'!$I$131+'Budget - Mon programme'!$I$133+'Budget - Mon programme'!$I$136+'Budget - Mon programme'!$I$137+'Budget - Mon programme'!$I$138+'Budget - Mon programme'!$I$139+'Budget - Mon programme'!$I$140+'Budget - Mon programme'!$I$141+'Budget - Mon programme'!$I$143+'Budget - Mon programme'!$I$144+'Budget - Mon programme'!$I$158+'Budget - Mon programme'!$I$160-'Budget - Mon programme'!$I$151-'Budget - Mon programme'!$I$135-'Budget - Mon programme'!$I$134-'Budget - Mon programme'!$I$132+('Budget - Mon programme'!$F$132*'Tableau d''analyse - Mon program'!$J56)+('Budget - Mon programme'!$F$134*'Tableau d''analyse - Mon program'!N56)+('Budget - Mon programme'!$F$135*'Tableau d''analyse - Mon program'!N56)+('Budget - Mon programme'!$E$148*'Budget - Mon programme'!$D$147*'Tableau d''analyse - Mon program'!N56)+('Budget - Mon programme'!$E$149*'Budget - Mon programme'!$D$147*'Tableau d''analyse - Mon program'!N56)-('Budget - Mon programme'!$E$150*'Budget - Mon programme'!$D$147*'Tableau d''analyse - Mon program'!N56))/N56 -> 19.99826187 | G56: =('Budget - Mon programme'!$I$123+'Budget - Mon programme'!$I$128+'Budget - Mon programme'!$I$129+'Budget - Mon programme'!$I$130+'Budget - Mon programme'!$I$131+'Budget - Mon programme'!$I$133+'Budget - Mon programme'!$I$136+'Budget - Mon programme'!$I$137+'Budget - Mon programme'!$I$138+'Budget - Mon programme'!$I$139+'Budget - Mon programme'!$I$140+'Budget - Mon programme'!$I$141+'Budget - Mon programme'!$I$143+'Budget - Mon programme'!$I$144+'Budget - Mon programme'!$I$158+'Budget - Mon programme'!$I$160-'Budget - Mon programme'!$I$151-'Budget - Mon programme'!$I$135-'Budget - Mon programme'!$I$134-'Budget - Mon programme'!$I$132+('Budget - Mon programme'!$F$132*'Tableau d''analyse - Mon program'!$J56)+('Budget - Mon programme'!$F$134*'Tableau d''analyse - Mon program'!O56)+('Budget - Mon programme'!$F$135*'Tableau d''analyse - Mon program'!O56)+('Budget - Mon programme'!$E$148*'Budget - Mon programme'!$D$147*'Tableau d''analyse - Mon program'!O56)+('Budget - Mon programme'!$E$149*'Budget - Mon programme'!$D$147*'Tableau d''analyse - Mon program'!O56)-('Budget - Mon programme'!$E$150*'Budget - Mon programme'!$D$147*'Tableau d''analyse - Mon program'!O56))/O56 -> 19.38626612 | J56: ='Données de base - Mon programme'!$D$61*'Tableau d''analyse - Mon program'!B56 -> 241.21344 | K56: =J56*(1-'Données de base - Mon programme'!$C$63)*'Tableau d''analyse - Mon program'!$C$54*(1-'Données de base - Mon programme'!$C$65) -> 124.8134824 | L56: =$J56*(1-'Données de base - Mon programme'!$C$63)*'Tableau d''analyse - Mon program'!D$54*(1-'Données de base - Mon programme'!$C$65) -> 133.8908266 | M56: =$J56*(1-'Données de base - Mon programme'!$C$63)*'Tableau d''analyse - Mon program'!E$54*(1-'Données de base - Mon programme'!$C$65) -> 138.4294987 | N56: =$J56*(1-'Données de base - Mon programme'!$C$63)*'Tableau d''analyse - Mon program'!F$54*(1-'Données de base - Mon programme'!$C$65) -> 142.9681707 | O56: =$J56*(1-'Données de base - Mon programme'!$C$63)*'Tableau d''analyse - Mon program'!G$54*(1-'Données de base - Mon programme'!$C$65) -> 147.5068428
B57: 0.54 | C57: =('Budget - Mon programme'!$I$123+'Budget - Mon programme'!$I$128+'Budget - Mon programme'!$I$129+'Budget - Mon programme'!$I$130+'Budget - Mon programme'!$I$131+'Budget - Mon programme'!$I$133+'Budget - Mon programme'!$I$136+'Budget - Mon programme'!$I$137+'Budget - Mon programme'!$I$138+'Budget - Mon programme'!$I$139+'Budget - Mon programme'!$I$140+'Budget - Mon programme'!$I$141+'Budget - Mon programme'!$I$143+'Budget - Mon programme'!$I$144+'Budget - Mon programme'!$I$158+'Budget - Mon programme'!$I$160-'Budget - Mon programme'!$I$151-'Budget - Mon programme'!$I$135-'Budget - Mon programme'!$I$134-'Budget - Mon programme'!$I$132+('Budget - Mon programme'!$F$132*'Tableau d''analyse - Mon program'!$J57)+('Budget - Mon programme'!$F$134*'Tableau d''analyse - Mon program'!K57)+('Budget - Mon programme'!$F$135*'Tableau d''analyse - Mon program'!K57)+('Budget - Mon programme'!$E$148*'Budget - Mon programme'!$D$147*'Tableau d''analyse - Mon program'!K57)+('Budget - Mon programme'!$E$149*'Budget - Mon programme'!$D$147*'Tableau d''analyse - Mon program'!K57)-('Budget - Mon programme'!$E$150*'Budget - Mon programme'!$D$147*'Tableau d''analyse - Mon program'!K57))/K57 -> 22.10836121 | D57: =('Budget - Mon programme'!$I$123+'Budget - Mon programme'!$I$128+'Budget - Mon programme'!$I$129+'Budget - Mon programme'!$I$130+'Budget - Mon programme'!$I$131+'Budget - Mon programme'!$I$133+'Budget - Mon programme'!$I$136+'Budget - Mon programme'!$I$137+'Budget - Mon programme'!$I$138+'Budget - Mon programme'!$I$139+'Budget - Mon programme'!$I$140+'Budget - Mon programme'!$I$141+'Budget - Mon programme'!$I$143+'Budget - Mon programme'!$I$144+'Budget - Mon programme'!$I$158+'Budget - Mon programme'!$I$160-'Budget - Mon programme'!$I$151-'Budget - Mon programme'!$I$135-'Budget - Mon programme'!$I$134-'Budget - Mon programme'!$I$132+('Budget - Mon programme'!$F$132*'Tableau d''analyse - Mon program'!$J57)+('Budget - Mon programme'!$F$134*'Tableau d''analyse - Mon program'!L57)+('Budget - Mon programme'!$F$135*'Tableau d''analyse - Mon program'!L57)+('Budget - Mon programme'!$E$148*'Budget - Mon programme'!$D$147*'Tableau d''analyse - Mon program'!L57)+('Budget - Mon programme'!$E$149*'Budget - Mon programme'!$D$147*'Tableau d''analyse - Mon program'!L57)-('Budget - Mon programme'!$E$150*'Budget - Mon programme'!$D$147*'Tableau d''analyse - Mon program'!L57))/L57 -> 20.61683841 | E57: =('Budget - Mon programme'!$I$123+'Budget - Mon programme'!$I$128+'Budget - Mon programme'!$I$129+'Budget - Mon programme'!$I$130+'Budget - Mon programme'!$I$131+'Budget - Mon programme'!$I$133+'Budget - Mon programme'!$I$136+'Budget - Mon programme'!$I$137+'Budget - Mon programme'!$I$138+'Budget - Mon programme'!$I$139+'Budget - Mon programme'!$I$140+'Budget - Mon programme'!$I$141+'Budget - Mon programme'!$I$143+'Budget - Mon programme'!$I$144+'Budget - Mon programme'!$I$158+'Budget - Mon programme'!$I$160-'Budget - Mon programme'!$I$151-'Budget - Mon programme'!$I$135-'Budget - Mon programme'!$I$134-'Budget - Mon programme'!$I$132+('Budget - Mon programme'!$F$132*'Tableau d''analyse - Mon program'!$J57)+('Budget - Mon programme'!$F$134*'Tableau d''analyse - Mon program'!M57)+('Budget - Mon programme'!$F$135*'Tableau d''analyse - Mon program'!M57)+('Budget - Mon programme'!$E$148*'Budget - Mon programme'!$D$147*'Tableau d''analyse - Mon program'!M57)+('Budget - Mon programme'!$E$149*'Budget - Mon programme'!$D$147*'Tableau d''analyse - Mon program'!M57)-('Budget - Mon programme'!$E$150*'Budget - Mon programme'!$D$147*'Tableau d''analyse - Mon program'!M57))/M57 -> 19.9444306 | F57: =('Budget - Mon programme'!$I$123+'Budget - Mon programme'!$I$128+'Budget - Mon programme'!$I$129+'Budget - Mon programme'!$I$130+'Budget - Mon programme'!$I$131+'Budget - Mon programme'!$I$133+'Budget - Mon programme'!$I$136+'Budget - Mon programme'!$I$137+'Budget - Mon programme'!$I$138+'Budget - Mon programme'!$I$139+'Budget - Mon programme'!$I$140+'Budget - Mon programme'!$I$141+'Budget - Mon programme'!$I$143+'Budget - Mon programme'!$I$144+'Budget - Mon programme'!$I$158+'Budget - Mon programme'!$I$160-'Budget - Mon programme'!$I$151-'Budget - Mon programme'!$I$135-'Budget - Mon programme'!$I$134-'Budget - Mon programme'!$I$132+('Budget - Mon programme'!$F$132*'Tableau d''analyse - Mon program'!$J57)+('Budget - Mon programme'!$F$134*'Tableau d''analyse - Mon program'!N57)+('Budget - Mon programme'!$F$135*'Tableau d''analyse - Mon program'!N57)+('Budget - Mon programme'!$E$148*'Budget - Mon programme'!$D$147*'Tableau d''analyse - Mon program'!N57)+('Budget - Mon programme'!$E$149*'Budget - Mon programme'!$D$147*'Tableau d''analyse - Mon program'!N57)-('Budget - Mon programme'!$E$150*'Budget - Mon programme'!$D$147*'Tableau d''analyse - Mon program'!N57))/N57 -> 19.31471534 | G57: =('Budget - Mon programme'!$I$123+'Budget - Mon programme'!$I$128+'Budget - Mon programme'!$I$129+'Budget - Mon programme'!$I$130+'Budget - Mon programme'!$I$131+'Budget - Mon programme'!$I$133+'Budget - Mon programme'!$I$136+'Budget - Mon programme'!$I$137+'Budget - Mon programme'!$I$138+'Budget - Mon programme'!$I$139+'Budget - Mon programme'!$I$140+'Budget - Mon programme'!$I$141+'Budget - Mon programme'!$I$143+'Budget - Mon programme'!$I$144+'Budget - Mon programme'!$I$158+'Budget - Mon programme'!$I$160-'Budget - Mon programme'!$I$151-'Budget - Mon programme'!$I$135-'Budget - Mon programme'!$I$134-'Budget - Mon programme'!$I$132+('Budget - Mon programme'!$F$132*'Tableau d''analyse - Mon program'!$J57)+('Budget - Mon programme'!$F$134*'Tableau d''analyse - Mon program'!O57)+('Budget - Mon programme'!$F$135*'Tableau d''analyse - Mon program'!O57)+('Budget - Mon programme'!$E$148*'Budget - Mon programme'!$D$147*'Tableau d''analyse - Mon program'!O57)+('Budget - Mon programme'!$E$149*'Budget - Mon programme'!$D$147*'Tableau d''analyse - Mon program'!O57)-('Budget - Mon programme'!$E$150*'Budget - Mon programme'!$D$147*'Tableau d''analyse - Mon program'!O57))/O57 -> 18.72375179 | J57: ='Données de base - Mon programme'!$D$61*'Tableau d''analyse - Mon program'!B57 -> 250.49088 | K57: =J57*(1-'Données de base - Mon programme'!$C$63)*'Tableau d''analyse - Mon program'!$C$54*(1-'Données de base - Mon programme'!$C$65) -> 129.6140009 | L57: =$J57*(1-'Données de base - Mon programme'!$C$63)*'Tableau d''analyse - Mon program'!D$54*(1-'Données de base - Mon programme'!$C$65) -> 139.0404737 | M57: =$J57*(1-'Données de base - Mon programme'!$C$63)*'Tableau d''analyse - Mon program'!E$54*(1-'Données de base - Mon programme'!$C$65) -> 143.7537101 | N57: =$J57*(1-'Données de base - Mon programme'!$C$63)*'Tableau d''analyse - Mon program'!F$54*(1-'Données de base - Mon programme'!$C$65) -> 148.4669465 | O57: =$J57*(1-'Données de base - Mon programme'!$C$63)*'Tableau d''analyse - Mon program'!G$54*(1-'Données de base - Mon programme'!$C$65) -> 153.1801829
B58: 0.56 | C58: =('Budget - Mon programme'!$I$123+'Budget - Mon programme'!$I$128+'Budget - Mon programme'!$I$129+'Budget - Mon programme'!$I$130+'Budget - Mon programme'!$I$131+'Budget - Mon programme'!$I$133+'Budget - Mon programme'!$I$136+'Budget - Mon programme'!$I$137+'Budget - Mon programme'!$I$138+'Budget - Mon programme'!$I$139+'Budget - Mon programme'!$I$140+'Budget - Mon programme'!$I$141+'Budget - Mon programme'!$I$143+'Budget - Mon programme'!$I$144+'Budget - Mon programme'!$I$158+'Budget - Mon programme'!$I$160-'Budget - Mon programme'!$I$151-'Budget - Mon programme'!$I$135-'Budget - Mon programme'!$I$134-'Budget - Mon programme'!$I$132+('Budget - Mon programme'!$F$132*'Tableau d''analyse - Mon program'!$J58)+('Budget - Mon programme'!$F$134*'Tableau d''analyse - Mon program'!K58)+('Budget - Mon programme'!$F$135*'Tableau d''analyse - Mon program'!K58)+('Budget - Mon programme'!$E$148*'Budget - Mon programme'!$D$147*'Tableau d''analyse - Mon program'!K58)+('Budget - Mon programme'!$E$149*'Budget - Mon programme'!$D$147*'Tableau d''analyse - Mon program'!K58)-('Budget - Mon programme'!$E$150*'Budget - Mon programme'!$D$147*'Tableau d''analyse - Mon program'!K58))/K58 -> 21.38131625 | D58: =('Budget - Mon programme'!$I$123+'Budget - Mon programme'!$I$128+'Budget - Mon programme'!$I$129+'Budget - Mon programme'!$I$130+'Budget - Mon programme'!$I$131+'Budget - Mon programme'!$I$133+'Budget - Mon programme'!$I$136+'Budget - Mon programme'!$I$137+'Budget - Mon programme'!$I$138+'Budget - Mon programme'!$I$139+'Budget - Mon programme'!$I$140+'Budget - Mon programme'!$I$141+'Budget - Mon programme'!$I$143+'Budget - Mon programme'!$I$144+'Budget - Mon programme'!$I$158+'Budget - Mon programme'!$I$160-'Budget - Mon programme'!$I$151-'Budget - Mon programme'!$I$135-'Budget - Mon programme'!$I$134-'Budget - Mon programme'!$I$132+('Budget - Mon programme'!$F$132*'Tableau d''analyse - Mon program'!$J58)+('Budget - Mon programme'!$F$134*'Tableau d''analyse - Mon program'!L58)+('Budget - Mon programme'!$F$135*'Tableau d''analyse - Mon program'!L58)+('Budget - Mon programme'!$E$148*'Budget - Mon programme'!$D$147*'Tableau d''analyse - Mon program'!L58)+('Budget - Mon programme'!$E$149*'Budget - Mon programme'!$D$147*'Tableau d''analyse - Mon program'!L58)-('Budget - Mon programme'!$E$150*'Budget - Mon programme'!$D$147*'Tableau d''analyse - Mon program'!L58))/L58 -> 19.93908464 | E58: =('Budget - Mon programme'!$I$123+'Budget - Mon programme'!$I$128+'Budget - Mon programme'!$I$129+'Budget - Mon programme'!$I$130+'Budget - Mon programme'!$I$131+'Budget - Mon programme'!$I$133+'Budget - Mon programme'!$I$136+'Budget - Mon programme'!$I$137+'Budget - Mon programme'!$I$138+'Budget - Mon programme'!$I$139+'Budget - Mon programme'!$I$140+'Budget - Mon programme'!$I$141+'Budget - Mon programme'!$I$143+'Budget - Mon programme'!$I$144+'Budget - Mon programme'!$I$158+'Budget - Mon programme'!$I$160-'Budget - Mon programme'!$I$151-'Budget - Mon programme'!$I$135-'Budget - Mon programme'!$I$134-'Budget - Mon programme'!$I$132+('Budget - Mon programme'!$F$132*'Tableau d''analyse - Mon program'!$J58)+('Budget - Mon programme'!$F$134*'Tableau d''analyse - Mon program'!M58)+('Budget - Mon programme'!$F$135*'Tableau d''analyse - Mon program'!M58)+('Budget - Mon programme'!$E$148*'Budget - Mon programme'!$D$147*'Tableau d''analyse - Mon program'!M58)+('Budget - Mon programme'!$E$149*'Budget - Mon programme'!$D$147*'Tableau d''analyse - Mon program'!M58)-('Budget - Mon programme'!$E$150*'Budget - Mon programme'!$D$147*'Tableau d''analyse - Mon program'!M58))/M58 -> 19.28889826 | F58: =('Budget - Mon programme'!$I$123+'Budget - Mon programme'!$I$128+'Budget - Mon programme'!$I$129+'Budget - Mon programme'!$I$130+'Budget - Mon programme'!$I$131+'Budget - Mon programme'!$I$133+'Budget - Mon programme'!$I$136+'Budget - Mon programme'!$I$137+'Budget - Mon programme'!$I$138+'Budget - Mon programme'!$I$139+'Budget - Mon programme'!$I$140+'Budget - Mon programme'!$I$141+'Budget - Mon programme'!$I$143+'Budget - Mon programme'!$I$144+'Budget - Mon programme'!$I$158+'Budget - Mon programme'!$I$160-'Budget - Mon programme'!$I$151-'Budget - Mon programme'!$I$135-'Budget - Mon programme'!$I$134-'Budget - Mon programme'!$I$132+('Budget - Mon programme'!$F$132*'Tableau d''analyse - Mon program'!$J58)+('Budget - Mon programme'!$F$134*'Tableau d''analyse - Mon program'!N58)+('Budget - Mon programme'!$F$135*'Tableau d''analyse - Mon program'!N58)+('Budget - Mon programme'!$E$148*'Budget - Mon programme'!$D$147*'Tableau d''analyse - Mon program'!N58)+('Budget - Mon programme'!$E$149*'Budget - Mon programme'!$D$147*'Tableau d''analyse - Mon program'!N58)-('Budget - Mon programme'!$E$150*'Budget - Mon programme'!$D$147*'Tableau d''analyse - Mon program'!N58))/N58 -> 18.67999355 | G58: =('Budget - Mon programme'!$I$123+'Budget - Mon programme'!$I$128+'Budget - Mon programme'!$I$129+'Budget - Mon programme'!$I$130+'Budget - Mon programme'!$I$131+'Budget - Mon programme'!$I$133+'Budget - Mon programme'!$I$136+'Budget - Mon programme'!$I$137+'Budget - Mon programme'!$I$138+'Budget - Mon programme'!$I$139+'Budget - Mon programme'!$I$140+'Budget - Mon programme'!$I$141+'Budget - Mon programme'!$I$143+'Budget - Mon programme'!$I$144+'Budget - Mon programme'!$I$158+'Budget - Mon programme'!$I$160-'Budget - Mon programme'!$I$151-'Budget - Mon programme'!$I$135-'Budget - Mon programme'!$I$134-'Budget - Mon programme'!$I$132+('Budget - Mon programme'!$F$132*'Tableau d''analyse - Mon program'!$J58)+('Budget - Mon programme'!$F$134*'Tableau d''analyse - Mon program'!O58)+('Budget - Mon programme'!$F$135*'Tableau d''analyse - Mon program'!O58)+('Budget - Mon programme'!$E$148*'Budget - Mon programme'!$D$147*'Tableau d''analyse - Mon program'!O58)+('Budget - Mon programme'!$E$149*'Budget - Mon programme'!$D$147*'Tableau d''analyse - Mon program'!O58)-('Budget - Mon programme'!$E$150*'Budget - Mon programme'!$D$147*'Tableau d''analyse - Mon program'!O58))/O58 -> 18.10855991 | J58: ='Données de base - Mon programme'!$D$61*'Tableau d''analyse - Mon program'!B58 -> 259.76832 | K58: =J58*(1-'Données de base - Mon programme'!$C$63)*'Tableau d''analyse - Mon program'!$C$54*(1-'Données de base - Mon programme'!$C$65) -> 134.4145195 | L58: =$J58*(1-'Données de base - Mon programme'!$C$63)*'Tableau d''analyse - Mon program'!D$54*(1-'Données de base - Mon programme'!$C$65) -> 144.1901209 | M58: =$J58*(1-'Données de base - Mon programme'!$C$63)*'Tableau d''analyse - Mon program'!E$54*(1-'Données de base - Mon programme'!$C$65) -> 149.0779216 | N58: =$J58*(1-'Données de base - Mon programme'!$C$63)*'Tableau d''analyse - Mon program'!F$54*(1-'Données de base - Mon programme'!$C$65) -> 153.9657223 | O58: =$J58*(1-'Données de base - Mon programme'!$C$63)*'Tableau d''analyse - Mon program'!G$54*(1-'Données de base - Mon programme'!$C$65) -> 158.853523
B59: 0.58 | C59: =('Budget - Mon programme'!$I$123+'Budget - Mon programme'!$I$128+'Budget - Mon programme'!$I$129+'Budget - Mon programme'!$I$130+'Budget - Mon programme'!$I$131+'Budget - Mon programme'!$I$133+'Budget - Mon programme'!$I$136+'Budget - Mon programme'!$I$137+'Budget - Mon programme'!$I$138+'Budget - Mon programme'!$I$139+'Budget - Mon programme'!$I$140+'Budget - Mon programme'!$I$141+'Budget - Mon programme'!$I$143+'Budget - Mon programme'!$I$144+'Budget - Mon programme'!$I$158+'Budget - Mon programme'!$I$160-'Budget - Mon programme'!$I$151-'Budget - Mon programme'!$I$135-'Budget - Mon programme'!$I$134-'Budget - Mon programme'!$I$132+('Budget - Mon programme'!$F$132*'Tableau d''analyse - Mon program'!$J59)+('Budget - Mon programme'!$F$134*'Tableau d''analyse - Mon program'!K59)+('Budget - Mon programme'!$F$135*'Tableau d''analyse - Mon program'!K59)+('Budget - Mon programme'!$E$148*'Budget - Mon programme'!$D$147*'Tableau d''analyse - Mon program'!K59)+('Budget - Mon programme'!$E$149*'Budget - Mon programme'!$D$147*'Tableau d''analyse - Mon program'!K59)-('Budget - Mon programme'!$E$150*'Budget - Mon programme'!$D$147*'Tableau d''analyse - Mon program'!K59))/K59 -> 20.70441233 | D59: =('Budget - Mon programme'!$I$123+'Budget - Mon programme'!$I$128+'Budget - Mon programme'!$I$129+'Budget - Mon programme'!$I$130+'Budget - Mon programme'!$I$131+'Budget - Mon programme'!$I$133+'Budget - Mon programme'!$I$136+'Budget - Mon programme'!$I$137+'Budget - Mon programme'!$I$138+'Budget - Mon programme'!$I$139+'Budget - Mon programme'!$I$140+'Budget - Mon programme'!$I$141+'Budget - Mon programme'!$I$143+'Budget - Mon programme'!$I$144+'Budget - Mon programme'!$I$158+'Budget - Mon programme'!$I$160-'Budget - Mon programme'!$I$151-'Budget - Mon programme'!$I$135-'Budget - Mon programme'!$I$134-'Budget - Mon programme'!$I$132+('Budget - Mon programme'!$F$132*'Tableau d''analyse - Mon program'!$J59)+('Budget - Mon programme'!$F$134*'Tableau d''analyse - Mon program'!L59)+('Budget - Mon programme'!$F$135*'Tableau d''analyse - Mon program'!L59)+('Budget - Mon programme'!$E$148*'Budget - Mon programme'!$D$147*'Tableau d''analyse - Mon program'!L59)+('Budget - Mon programme'!$E$149*'Budget - Mon programme'!$D$147*'Tableau d''analyse - Mon program'!L59)-('Budget - Mon programme'!$E$150*'Budget - Mon programme'!$D$147*'Tableau d''analyse - Mon program'!L59))/L59 -> 19.30807251 | E59: =('Budget - Mon programme'!$I$123+'Budget - Mon programme'!$I$128+'Budget - Mon programme'!$I$129+'Budget - Mon programme'!$I$130+'Budget - Mon programme'!$I$131+'Budget - Mon programme'!$I$133+'Budget - Mon programme'!$I$136+'Budget - Mon programme'!$I$137+'Budget - Mon programme'!$I$138+'Budget - Mon programme'!$I$139+'Budget - Mon programme'!$I$140+'Budget - Mon programme'!$I$141+'Budget - Mon programme'!$I$143+'Budget - Mon programme'!$I$144+'Budget - Mon programme'!$I$158+'Budget - Mon programme'!$I$160-'Budget - Mon programme'!$I$151-'Budget - Mon programme'!$I$135-'Budget - Mon programme'!$I$134-'Budget - Mon programme'!$I$132+('Budget - Mon programme'!$F$132*'Tableau d''analyse - Mon program'!$J59)+('Budget - Mon programme'!$F$134*'Tableau d''analyse - Mon program'!M59)+('Budget - Mon programme'!$F$135*'Tableau d''analyse - Mon program'!M59)+('Budget - Mon programme'!$E$148*'Budget - Mon programme'!$D$147*'Tableau d''analyse - Mon program'!M59)+('Budget - Mon programme'!$E$149*'Budget - Mon programme'!$D$147*'Tableau d''analyse - Mon program'!M59)-('Budget - Mon programme'!$E$150*'Budget - Mon programme'!$D$147*'Tableau d''analyse - Mon program'!M59))/M59 -> 18.67857505 | F59: =('Budget - Mon programme'!$I$123+'Budget - Mon programme'!$I$128+'Budget - Mon programme'!$I$129+'Budget - Mon programme'!$I$130+'Budget - Mon programme'!$I$131+'Budget - Mon programme'!$I$133+'Budget - Mon programme'!$I$136+'Budget - Mon programme'!$I$137+'Budget - Mon programme'!$I$138+'Budget - Mon programme'!$I$139+'Budget - Mon programme'!$I$140+'Budget - Mon programme'!$I$141+'Budget - Mon programme'!$I$143+'Budget - Mon programme'!$I$144+'Budget - Mon programme'!$I$158+'Budget - Mon programme'!$I$160-'Budget - Mon programme'!$I$151-'Budget - Mon programme'!$I$135-'Budget - Mon programme'!$I$134-'Budget - Mon programme'!$I$132+('Budget - Mon programme'!$F$132*'Tableau d''analyse - Mon program'!$J59)+('Budget - Mon programme'!$F$134*'Tableau d''analyse - Mon program'!N59)+('Budget - Mon programme'!$F$135*'Tableau d''analyse - Mon program'!N59)+('Budget - Mon programme'!$E$148*'Budget - Mon programme'!$D$147*'Tableau d''analyse - Mon program'!N59)+('Budget - Mon programme'!$E$149*'Budget - Mon programme'!$D$147*'Tableau d''analyse - Mon program'!N59)-('Budget - Mon programme'!$E$150*'Budget - Mon programme'!$D$147*'Tableau d''analyse - Mon program'!N59))/N59 -> 18.08904569 | G59: =('Budget - Mon programme'!$I$123+'Budget - Mon programme'!$I$128+'Budget - Mon programme'!$I$129+'Budget - Mon programme'!$I$130+'Budget - Mon programme'!$I$131+'Budget - Mon programme'!$I$133+'Budget - Mon programme'!$I$136+'Budget - Mon programme'!$I$137+'Budget - Mon programme'!$I$138+'Budget - Mon programme'!$I$139+'Budget - Mon programme'!$I$140+'Budget - Mon programme'!$I$141+'Budget - Mon programme'!$I$143+'Budget - Mon programme'!$I$144+'Budget - Mon programme'!$I$158+'Budget - Mon programme'!$I$160-'Budget - Mon programme'!$I$151-'Budget - Mon programme'!$I$135-'Budget - Mon programme'!$I$134-'Budget - Mon programme'!$I$132+('Budget - Mon programme'!$F$132*'Tableau d''analyse - Mon program'!$J59)+('Budget - Mon programme'!$F$134*'Tableau d''analyse - Mon program'!O59)+('Budget - Mon programme'!$F$135*'Tableau d''analyse - Mon program'!O59)+('Budget - Mon programme'!$E$148*'Budget - Mon programme'!$D$147*'Tableau d''analyse - Mon program'!O59)+('Budget - Mon programme'!$E$149*'Budget - Mon programme'!$D$147*'Tableau d''analyse - Mon program'!O59)-('Budget - Mon programme'!$E$150*'Budget - Mon programme'!$D$147*'Tableau d''analyse - Mon program'!O59))/O59 -> 17.53579505 | J59: ='Données de base - Mon programme'!$D$61*'Tableau d''analyse - Mon program'!B59 -> 269.04576 | K59: =J59*(1-'Données de base - Mon programme'!$C$63)*'Tableau d''analyse - Mon program'!$C$54*(1-'Données de base - Mon programme'!$C$65) -> 139.2150381 | L59: =$J59*(1-'Données de base - Mon programme'!$C$63)*'Tableau d''analyse - Mon program'!D$54*(1-'Données de base - Mon programme'!$C$65) -> 149.3397681 | M59: =$J59*(1-'Données de base - Mon programme'!$C$63)*'Tableau d''analyse - Mon program'!E$54*(1-'Données de base - Mon programme'!$C$65) -> 154.4021331 | N59: =$J59*(1-'Données de base - Mon programme'!$C$63)*'Tableau d''analyse - Mon program'!F$54*(1-'Données de base - Mon programme'!$C$65) -> 159.4644981 | O59: =$J59*(1-'Données de base - Mon programme'!$C$63)*'Tableau d''analyse - Mon program'!G$54*(1-'Données de base - Mon programme'!$C$65) -> 164.5268632

Sheet Feuil1 (hidden)
A2: PÂTURAGE (139-Mix summer, NRC 2000) | N2: PÂTURAGE (139-Mix summer, NRC 2000)
A3: kg / GMQ | B3: 0.5 | C3: 0.6 | D3: 0.7 | E3: 0.8 | F3: 0.9 | G3: 1 | H3: 1.1 | I3: 1.2 | J3: 1.3 | K3: 1.4 | L3: 1.5 | N3: kg / GMQ | O3: 0.5 | P3: 0.6 | Q3: 0.7 | R3: 0.8 | S3: 0.9 | T3: 1 | U3: 1.1 | V3: 1.2 | W3: 1.3 | X3: 1.4 | Y3: 1.5
A4: 300 | B4: 6.6 | N4: 300 | O4: 6.6
A5: 350 | D5: 7.7 | N5: 350 | Q5: 7.7
A6: 400 | E6: 8.8 | N6: 400 | R6: 8.8
A7: 450 | G7: 9.9 | N7: 450 | T7: 9.9
A8: 500 | H8: 11 | N8: 500 | U8: 11
A9: 550 | H9: 11.7 | N9: 550 | U9: 11.7
A10: 600 | H10: 12.3 | N10: 600 | U10: 12.3
A13: PÂTURAGE (139-Mix summer, NRC 2000) | N13: PÂTURAGE (139-Mix summer, NRC 2000)
A14: kg / GMQ | B14: 0.5 | C14: 0.6 | D14: 0.7 | E14: 0.8 | F14: 0.9 | G14: 1 | H14: 1.1 | I14: 1.2 | J14: 1.3 | K14: 1.4 | L14: 1.5 | N14: kg / GMQ | O14: 0.5 | P14: 0.6 | Q14: 0.7 | R14: 0.8 | S14: 0.9 | T14: 1 | U14: 1.1 | V14: 1.2 | W14: 1.3 | X14: 1.4 | Y14: 1.5
A15: 300 | C15: 5 | N15: 300 | P15: 5
A16: 350 | D16: 6.6 | E16: 4.7 | N16: 350 | Q16: 6.6 | R16: 4.7
A17: 400 | F17: 6.8 | G17: 5.2 | N17: 400 | S17: 6.8 | T17: 5.2
A18: 450 | H18: 7.5 | I18: 5.8 | N18: 450 | U18: 7.5 | V18: 5.8
A19: 500 | I19: 9.5 | J19: 6.8 | N19: 500 | V19: 9.5 | W19: 6.8
A20: 550 | I20: 9.6 | J20: 6.9 | N20: 550 | V20: 9.6 | W20: 6.9
A21: 600 | I21: 9.1 | N21: 600 | V21: 9.1
A22: AVOINE (423-Oats, NRC 2000) | N22: AVOINE (423-Oats, NRC 2000)
A23: kg / GMQ | B23: 0.5 | C23: 0.6 | D23: 0.7 | E23: 0.8 | F23: 0.9 | G23: 1 | H23: 1.1 | I23: 1.2 | J23: 1.3 | K23: 1.4 | L23: 1.5 | N23: kg / GMQ | O23: 0.5 | P23: 0.6 | Q23: 0.7 | R23: 0.8 | S23: 0.9 | T23: 1 | U23: 1.1 | V23: 1.2 | W23: 1.3 | X23: 1.4 | Y23: 1.5
A24: 300 | C24: 1.5 | N24: 300 | P24: 1.5
A25: 350 | D25: 1 | E25: 2.8 | N25: 350 | Q25: 1 | R25: 2.8
A26: 400 | F26: 1.9 | G26: 3.4 | N26: 400 | S26: 1.9 | T26: 3.4
A27: 450 | H27: 2.3 | I27: 3.9 | N27: 450 | U27: 2.3 | V27: 3.9
A28: 500 | I28: 1.4 | J28: 4 | N28: 500 | V28: 1.4 | W28: 4
A29: 550 | I29: 2 | J29: 4.6 | N29: 550 | V29: 2 | W29: 4.6
A30: 600 | I30: 3 | N30: 600 | V30: 3
A33: FOURRAGE GRAMINÉES STADE VÉGÉTATIF (124-Mix summer, NRC 2000) | N33: FOURRAGE GRAMINÉES STADE VÉGÉTATIF (124-Mix summer, NRC 2000)
A34: kg / GMQ | B34: 0.5 | C34: 0.6 | D34: 0.7 | E34: 0.8 | F34: 0.9 | G34: 1 | H34: 1.1 | I34: 1.2 | J34: 1.3 | K34: 1.4 | L34: 1.5 | N34: kg / GMQ | O34: 0.5 | P34: 0.6 | Q34: 0.7 | R34: 0.8 | S34: 0.9 | T34: 1 | U34: 1.1 | V34: 1.2 | W34: 1.3 | X34: 1.4 | Y34: 1.5
A35: 300 | C35: 6.7 | N35: 300 | P35: 6.7
A36: 350 | D36: 7.8 | N36: 350 | Q36: 7.8
A37: 400 | E37: 8.9 | N37: 400 | R37: 8.9
A38: 450 | E38: 10 | N38: 450 | R38: 10
A39: 500 | F39: 11.1 | N39: 500 | S39: 11.1
A40: 550 | F40: 11.9 | N40: 550 | S40: 11.9
A41: 600 | E41: 12.4 | N41: 600 | R41: 12.4
A44: FOURRAGE GRAMINÉES STADE VÉGÉTATIF (124-Mix summer, NRC 2000) | N44: FOURRAGE GRAMINÉES STADE VÉGÉTATIF (124-Mix summer, NRC 2000)
A45: kg / GMQ | B45: 0.5 | C45: 0.6 | D45: 0.7 | E45: 0.8 | F45: 0.9 | G45: 1 | H45: 1.1 | I45: 1.2 | J45: 1.3 | K45: 1.4 | L45: 1.5 | N45: kg / GMQ | O45: 0.5 | P45: 0.6 | Q45: 0.7 | R45: 0.8 | S45: 0.9 | T45: 1 | U45: 1.1 | V45: 1.2 | W45: 1.3 | X45: 1.4 | Y45: 1.5
A46: 300 | D46: 5.8 | N46: 300 | Q46: 5.8
A47: 350 | E47: 7.3 | F47: 4.8 | N47: 350 | R47: 7.3 | S47: 4.8
A48: 400 | F48: 7.5 | G48: 6.2 | N48: 400 | S48: 7.5 | T48: 6.2
A49: 450 | F49: 9.4 | G49: 7.9 | H49: 6.1 | N49: 450 | S49: 9.4 | T49: 7.9 | U49: 6.1
A50: 500 | G50: 9.7 | H50: 7.9 | N50: 500 | T50: 9.7 | U50: 7.9
A51: 550 | G51: 10 | H51: 8.5 | N51: 550 | T51: 10 | U51: 8.5
A52: 600 | F52: 11.6 | G52: 10 | H52: 8.1 | N52: 600 | S52: 11.6 | T52: 10 | U52: 8.1
A53: AVOINE (423-Oats, NRC 2000) | N53: AVOINE (423-Oats, NRC 2000)
A54: kg / GMQ | B54: 0.5 | C54: 0.6 | D54: 0.7 | E54: 0.8 | F54: 0.9 | G54: 1 | H54: 1.1 | I54: 1.2 | J54: 1.3 | K54: 1.4 | L54: 1.5 | N54: kg / GMQ | O54: 0.5 | P54: 0.6 | Q54: 0.7 | R54: 0.8 | S54: 0.9 | T54: 1 | U54: 1.1 | V54: 1.2 | W54: 1.3 | X54: 1.4 | Y54: 1.5
A55: 300 | D55: 0.9 | N55: 300 | Q55: 0.9
A56: 350 | E56: 0.5 | F56: 2.9 | N56: 350 | R56: 0.5 | S56: 2.9
A57: 400 | F57: 1.3 | G57: 2.6 | N57: 400 | S57: 1.3 | T57: 2.6
A58: 450 | F58: 0.6 | G58: 2 | H58: 3.7 | N58: 450 | S58: 0.6 | T58: 2 | U58: 3.7
A59: 500 | G59: 1.4 | H59: 3.1 | N59: 500 | T59: 1.4 | U59: 3.1
A60: 550 | G60: 1.8 | H60: 3.3 | N60: 550 | T60: 1.8 | U60: 3.3
A61: 600 | F61: 0.8 | G61: 2.4 | H61: 4.2 | N61: 600 | S61: 0.8 | T61: 2.4 | U61: 4.2
A64: ENSILAGE DE MAÏS 50% GRAIN (313-Corn Silage, 50% Grain, NRC 2000) | N64: ENSILAGE DE MAÏS 50% GRAIN (313-Corn Silage, 50% Grain, NRC 2000)
A65: kg / GMQ | B65: 0.5 | C65: 0.6 | D65: 0.7 | E65: 0.8 | F65: 0.9 | G65: 1 | H65: 1.1 | I65: 1.2 | J65: 1.3 | K65: 1.4 | L65: 1.5 | N65: kg / GMQ | O65: 0.5 | P65: 0.6 | Q65: 0.7 | R65: 0.8 | S65: 0.9 | T65: 1 | U65: 1.1 | V65: 1.2 | W65: 1.3 | X65: 1.4 | Y65: 1.5
A66: 300 | C66: 0 | N66: 300 | P66: 0
A67: 350 | D67: 0 | E67: 2.5 | N67: 350 | Q67: 0 | R67: 2.5
A68: 400 | E68: 0 | F68: 1.3 | G68: 3.2 | N68: 400 | R68: 0 | S68: 1.3 | T68: 3.2
A69: 450 | E69: 0 | F69: 0.9 | G69: 2.4 | H69: 3.9 | I69: 5.8 | N69: 450 | R69: 0 | S69: 0.9 | T69: 2.4 | U69: 3.9 | V69: 5.8
A70: 500 | F70: 0 | G70: 1.6 | H70: 3.6 | I70: 5.5 | J70: 7.3 | N70: 500 | S70: 0 | T70: 1.6 | U70: 3.6 | V70: 5.5 | W70: 7.3
A71: 550 | F71: 0 | G71: 2 | H71: 3.8 | I71: 6.1 | J71: 8.1 | N71: 550 | S71: 0 | T71: 2 | U71: 3.8 | V71: 6.1 | W71: 8.1
A72: 600 | G72: 2.8 | H72: 4.8 | I72: 7.2 | J72: 9.5 | N72: 600 | T72: 2.8 | U72: 4.8 | V72: 7.2 | W72: 9.5
A73: LUZERNE DÉBUT FLORAISON (206-Alfalfa Hay, Early Bloomn-N, NRC 2000) | N73: LUZERNE DÉBUT FLORAISON (206-Alfalfa Hay, Early Bloomn-N, NRC 2000)
A74: kg / GMQ | B74: 0.5 | C74: 0.6 | D74: 0.7 | E74: 0.8 | F74: 0.9 | G74: 1 | H74: 1.1 | I74: 1.2 | J74: 1.3 | K74: 1.4 | L74: 1.5 | N74: kg / GMQ | O74: 0.5 | P74: 0.6 | Q74: 0.7 | R74: 0.8 | S74: 0.9 | T74: 1 | U74: 1.1 | V74: 1.2 | W74: 1.3 | X74: 1.4 | Y74: 1.5
A75: 300 | D75: 6.7 | E75: 3.6 | N75: 300 | Q75: 6.7 | R75: 3.6
A76: 350 | D76: 7.8 | E76: 5 | F76: 5.8 | N76: 350 | Q76: 7.8 | R76: 5 | S76: 5.8
A77: 400 | E77: 8.9 | F77: 7.6 | G77: 5.8 | N77: 400 | R77: 8.9 | S77: 7.6 | T77: 5.8
A78: 450 | E78: 10 | F78: 9.1 | G78: 7.5 | H78: 6 | I78: 4 | N78: 450 | R78: 10 | S78: 9.1 | T78: 7.5 | U78: 6 | V78: 4
A79: 500 | F79: 11.1 | G79: 9.5 | H79: 7.4 | I79: 5.4 | J79: 3.5 | N79: 500 | S79: 11.1 | T79: 9.5 | U79: 7.4 | V79: 5.4 | W79: 3.5
A80: 550 | F80: 12.5 | G80: 9.8 | H80: 8 | I80: 5.5 | J80: 3.4 | N80: 550 | S80: 12.5 | T80: 9.8 | U80: 8 | V80: 5.5 | W80: 3.4
A81: 600 | E81: 12.4 | G81: 9.6 | H81: 7.5 | I81: 4.9 | J81: 2.4 | N81: 600 | R81: 12.4 | T81: 9.6 | U81: 7.5 | V81: 4.9 | W81: 2.4
A82: AVOINE (423-Oats, NRC 2000) | N82: AVOINE (423-Oats, NRC 2000)
A83: kg / GMQ | B83: 0.5 | C83: 0.6 | D83: 0.7 | E83: 0.8 | F83: 0.9 | G83: 1 | H83: 1.1 | I83: 1.2 | J83: 1.3 | K83: 1.4 | L83: 1.5 | N83: kg / GMQ | O83: 0.5 | P83: 0.6 | Q83: 0.7 | R83: 0.8 | S83: 0.9 | T83: 1 | U83: 1.1 | V83: 1.2 | W83: 1.3 | X83: 1.4 | Y83: 1.5
A84: 300 | E84: 3 | N84: 300 | R84: 3
A85: 350 | F85: 1.9 | N85: 350 | S85: 1.9
A86: 400 | N86: 400
A87: 450 | N87: 450
A88: 500 | N88: 500
A89: 550 | N89: 550
A90: 600 | N90: 600

Sheet gain permis (hidden)
A3: 300 | B3: 0.5 | F3: pat HE
A4: 350 | B4: 0.7 | F4: pat HE
A5: 400 | B5: 0.8 | F5: pat HE
A6: 450 | B6: 1 | F6: pat HE
A7: 500 | B7: 1.1 | F7: pat HE
A8: 550 | B8: 1.1 | F8: pat HE
A9: 600 | B9: 1.1 | F9: pat HE
A10: 300 | B10: 0.6 | F10: pat HE+av
A11: 350 | B11: 0.7 | C11: 0.8 | F11: pat HE+av
A12: 400 | B12: 0.9 | C12: 1 | F12: pat HE+av
A13: 450 | B13: 1.1 | C13: 1.2 | F13: pat HE+av
A14: 500 | B14: 1.2 | C14: 1.3 | F14: pat HE+av
A15: 550 | B15: 1.2 | C15: 1.3 | F15: pat HE+av
A16: 600 | B16: 1.2 | F16: pat HE+av
A17: 300 | B17: 0.6 | F17: Foin HE
A18: 350 | B18: 0.7 | F18: Foin HE
A19: 400 | B19: 0.8 | F19: Foin HE
A20: 450 | B20: 0.8 | F20: Foin HE
A21: 500 | B21: 0.9 | F21: Foin HE
A22: 550 | B22: 0.9 | F22: Foin HE
A23: 600 | B23: 1 | F23: Foin HE
A24: 300 | B24: 0.7 | F24: Foin HE+avoine
A25: 350 | B25: 0.8 | C25: 0.9 | F25: Foin HE+avoine
A26: 400 | B26: 0.9 | C26: 1 | F26: Foin HE+avoine
A27: 450 | B27: 0.9 | C27: 1 | D27: 1.1 | F27: Foin HE+avoine
A28: 500 | B28: 1 | C28: 1.1 | F28: Foin HE+avoine
A29: 550 | B29: 1 | C29: 1.1 | F29: Foin HE+avoine
A30: 600 | B30: 0.9 | C30: 1 | D30: 1.1 | F30: Foin HE+avoine
A31: 300 | F31: ENS.MAIS
A32: 350 | B32: 0.8 | F32: ENS.MAIS
A33: 400 | B33: 0.9 | C33: 1 | F33: ENS.MAIS
A34: 450 | B34: 1 | C34: 1.1 | D34: 1.2 | F34: ENS.MAIS
A35: 500 | B35: 1 | C35: 1.1 | D35: 1.2 | E35: 1.3 | F35: ENS.MAIS
A36: 550 | B36: 1 | C36: 1.1 | D36: 1.2 | E36: 1.3 | F36: ENS.MAIS
A37: 600 | B37: 1 | C37: 1.1 | D37: 1.2 | E37: 1.3 | F37: ENS.MAIS

Sheet Données de base
B1: DONNÉES DE BASE POUR ESTIMER LE PRIX DE LA VIANDE DE BOUVILLON
B2: PROGRAMME ALIMENTAIRE INTÉGRÉ
B3: Mise en garde des auteurs : Ce calculateur a été conçu pour tester différents scénarios en estimant le prix minimum et le prix cible de la viande de bouvillon produite par de petits élevages. L’onglet « Données de base » comprend des données de performance pour des bouvillons mâles de croisement CHxAN (maturité à 650 kg) dans un environnement thermoneutre et pour des rations entièrement composées d’herbe de pâturage, ou de fourrage avec ou sans ensilage de maïs, et avec ou sans avoine. L’outil Beef Cattle Nutrient Requirements Model 2016 version 1.0.37 a été utilisé pour faire les rations de base. Les données alimentaires qui sont indiquées dans les rations ne le sont qu’à titre indicatif. Par conséquent, un nutritionniste devrait adapter les rations utilisées à la ferme aux aliments et aux conditions de l’entreprise. Les quantités de grains sont limitées à 40 % de la ration afin de répondre aux normes biologiques. Cet outil n’a pas été conçu pour vérifier la cohérence des données retenues par l’utilisateur. Comme points de référence, des données ou des commentaires ont été insérés dans différentes cellules afin de faciliter la compréhension et l’utilisation du calculateur. Les données servant à poser les différentes hypothèses retenues doivent être adaptées à chaque situation, et l’utilisation des résultats de ce budget est sous la responsabilité de l’utilisateur. Éric Lepage et Véronique Poulin, agronomes, MAPAQ, 2018
B5: Client : | C5: Yvan Duboeuf
B6: Budget adapté par : | C6: M. Jean Untel
B7: Date : | C7: 2018-03-01
B8: Scénario : | C8: 10 bouvillons
W13: phase 1 | X13: phase 2 | Y13: phase 3 | Z13: phase 4
R14: 2 | T14: mâle | V14: durée | W14: =C26-C25 -> 61
B15: DONNÉES TECHNIQUES
B17: A. ANIMAUX
B19: Sexe | Q19: 300 | R19: 1
B20: Poids d’abattage visé | C20: 625 | D20: kg ou | E20: =C20*2.2 -> 1375 | F20: lb | Q20: 350 | R20: 2
B21: Alimentation | Q21: 400 | R21: 3
B22: Phase 1 | Q22: 450 | R22: 4
B23: Âge (en mois) | C23: 9 | Q23: 500 | R23: 5
B24: Poids au début de l’engraissement | C24: 325 | D24: kg ou | E24: =C24*2.2 -> 715 | F24: lb | Q24: 550 | R24: 6
B25: Date de début | C25: 2017-11-01 | Q25: 600 | R25: 7
B26: Date de fin | C26: 2018-01-01
B27: Durée de la phase | C27: =C26-C25 -> 61 | D27: jours | L27: gmq | R27: Pâturage H.E. | S27: 4 | T27: 4 | U27: 4 | V27: 2 | X27: nombre de jour au pâuurage | AB27: pâturage | AC27: logement | AD27: totale=
B28: Type d’alimentation | E28: =IF(AND(S27=6,C24<350),"N.B. ration disponible à partir de 350 kg","") ->  | L28: 2 | M28: =IF($S$27=2,VLOOKUP($C$24,'gain permis'!$A$3:$E$9,2,TRUE),IF($S$27=3,VLOOKUP($C$24,'gain permis'!$A$10:$E$16,2,TRUE),IF($S$27=4,VLOOKUP($C$24,'gain permis'!$A$17:$E$23,2,TRUE),IF($S$27=5,VLOOKUP($C$24,'gain permis'!$A$24:$E$30,2,TRUE),IF($S$27=6,VLOOKUP($C$24,'gain permis'!$A$31:$E$37,2,TRUE),""))))) -> 0.6 | R28: Pâturage H.E.+ avoine | X28: =IF(OR(S27=2,S27=3),C27,0) -> 0 | Y28: =IF(OR(T27=2,T27=3),C34,0) -> 0 | Z28: =IF(OR(U27=2,U27=3),C42,0) -> 0 | AA28: =IF(OR(V27=2,V27=3),C50,0) -> 0 | AB28: =SUM(X28:AA28) -> 0 | AC28: =(C27+C34+C42+C50)-AB28 -> 348 | AD28: =AB28+AC28 -> 348
B29: GMQ permis | D29: kg/j ou | E29: =IF(L28=2,M28*2.2,IF(L28=3,M29*2.2,IF(L28=4,M30*2.2,IF(L28=5,M31*2.2,IF(L28=6,M32*2.2,""))))) -> 1.32 | F29: lb/j | L29: =E29/2.2 -> 0.6 | M29: =IF($S$27=2,VLOOKUP($C$24,'gain permis'!$A$3:$E$9,3,TRUE),IF($S$27=3,VLOOKUP($C$24,'gain permis'!$A$10:$E$16,3,TRUE),IF($S$27=4,VLOOKUP($C$24,'gain permis'!$A$17:$E$23,3,TRUE),IF($S$27=5,VLOOKUP($C$24,'gain permis'!$A$24:$E$30,3,TRUE),IF($S$27=6,VLOOKUP($C$24,'gain permis'!$A$31:$E$37,3,TRUE),""))))) -> 0 | N29: =VLOOKUP(L29,$Q$35:$R$45,2,TRUE) -> 3 | R29: Fourrage H.E. | X29: =IF(X28=0,0,Budget!D32/M75) -> 0 | Y29: =IF(Y28=0,0,Budget!D42/M75) -> 0 | Z29: =IF(Z28=0,0,Budget!D52/$M$75) -> 0 | AA29: =IF(AA28=0,0,Budget!D63/$M$75) -> 0 | AB29: =IF(AB28=0,"",((X28*X29)+(Y28*Y29)+(Z28*Z29)+(AA28*AA29))/(X28+Y28+Z28+AA28)) -> 
B30: Poids à la fin | C30: =IF(L28=2,C24+C27*M28,IF(L28=3,C24+C27*M29,IF(L28=4,C24+C27*M30,IF(L28=5,C24+C27*M31,"")))) -> 361.6 | D30: kg ou | E30: =C30*2.2 -> 795.52 | F30: lb | G30: =IF(C30>C20," poids d'abattage dépassée, ajuster votre date","") ->  | M30: =IF($S$27=2,VLOOKUP($C$24,'gain permis'!$A$3:$E$9,4,TRUE),IF($S$27=3,VLOOKUP($C$24,'gain permis'!$A$10:$E$16,4,TRUE),IF($S$27=4,VLOOKUP($C$24,'gain permis'!$A$17:$E$23,4,TRUE),IF($S$27=5,VLOOKUP($C$24,'gain permis'!$A$24:$E$30,4,TRUE),IF($S$27=6,VLOOKUP($C$24,'gain permis'!$A$31:$E$37,4,TRUE),""))))) -> 0 | R30: Fourrage H.E. + avoine
B31: Phase 2 | M31: =IF($S$27=2,VLOOKUP($C$24,'gain permis'!$A$3:$E$9,5,TRUE),IF($S$27=3,VLOOKUP($C$24,'gain permis'!$A$10:$E$16,5,TRUE),IF($S$27=4,VLOOKUP($C$24,'gain permis'!$A$17:$E$23,5,TRUE),IF($S$27=5,VLOOKUP($C$24,'gain permis'!$A$24:$E$30,5,TRUE),IF($S$27=6,VLOOKUP($C$24,'gain permis'!$A$31:$E$37,5,TRUE),""))))) -> 0 | R31: Ensilage maïs+Fourrage H.E.(<40%grain)
B32: Date de début | C32: =C26 -> 2018-01-01
B33: Date de fin | C33: 2018-05-15 | AE33: 2 | AI33: 1
B34: Durée de la phase | C34: =IF(OR(C32=0,C33=0),0,C33-C32) -> 134 | D34: jours | R34: 2
B35: Type d'alimentation | L35: 2 | M35: =IF($T$27=2,VLOOKUP($C$36,'gain permis'!$A$3:$E$9,2,TRUE),IF($T$27=3,VLOOKUP($C$36,'gain permis'!$A$10:$E$16,2,TRUE),IF($T$27=4,VLOOKUP($C$36,'gain permis'!$A$17:$E$23,2,TRUE),IF($T$27=5,VLOOKUP($C$36,'gain permis'!$A$24:$E$30,2,TRUE),IF($T$27=6,VLOOKUP($C$36,'gain permis'!$A$31:$E$37,2,TRUE),""))))) -> 0.7 | Q35: 0.5 | R35: =R34 -> 2
B36: Poids au début de l'engraissement | C36: =C30 -> 361.6 | D36: kg ou | E36: =C36*2.2 -> 795.52 | F36: lb | L36: =E37/2.2 -> 0.7 | M36: =IF($T$27=2,VLOOKUP($C$36,'gain permis'!$A$3:$E$9,3,TRUE),IF($T$27=3,VLOOKUP($C$36,'gain permis'!$A$10:$E$16,3,TRUE),IF($T$27=4,VLOOKUP($C$36,'gain permis'!$A$17:$E$23,3,TRUE),IF($T$27=5,VLOOKUP($C$36,'gain permis'!$A$24:$E$30,3,TRUE),IF($T$27=6,VLOOKUP($C$36,'gain permis'!$A$31:$E$37,3,TRUE),""))))) -> 0 | N36: =VLOOKUP(L36,$Q$35:$R$45,2,TRUE) -> 4 | Q36: 0.6 | R36: =R35+1 -> 3
B37: GMQ visé | D37: kg/j ou | E37: =IF(L35=2,M35*2.2,IF(L35=3,M36*2.2,IF(L35=4,M37*2.2,IF(L35=5,M38*2.2,IF(L35=6,M39*2.2,""))))) -> 1.54 | F37: lb/j | M37: =IF($T$27=2,VLOOKUP($C$36,'gain permis'!$A$3:$E$9,4,TRUE),IF($T$27=3,VLOOKUP($C$36,'gain permis'!$A$10:$E$16,4,TRUE),IF($T$27=4,VLOOKUP($C$36,'gain permis'!$A$17:$E$23,4,TRUE),IF($T$27=5,VLOOKUP($C$36,'gain permis'!$A$24:$E$30,4,TRUE),IF($T$27=6,VLOOKUP($C$36,'gain permis'!$A$31:$E$37,4,TRUE),""))))) -> 0 | Q37: 0.7 | R37: =R36+1 -> 4
B38: Poids à la fin | C38: =IF(C34=0,C36,IF(L35=2,C36+C34*M35,IF(L35=3,C36+C34*M36,IF(L35=4,C36+C34*M37,IF(L35=5,C36+C34*M38,""))))) -> 455.4 | D38: kg ou | E38: =C38*2.2 -> 1001.88 | F38: lb | G38: =IF(C38>C20," poids d'abattage dépassée, ajuster votre date","") ->  | M38: =IF($T$27=2,VLOOKUP($C$36,'gain permis'!$A$3:$E$9,5,TRUE),IF($T$27=3,VLOOKUP($C$36,'gain permis'!$A$10:$E$16,5,TRUE),IF($T$27=4,VLOOKUP($C$36,'gain permis'!$A$17:$E$23,5,TRUE),IF($T$27=5,VLOOKUP($C$36,'gain permis'!$A$24:$E$30,5,TRUE),IF($T$27=6,VLOOKUP($C$36,'gain permis'!$A$31:$E$37,5,TRUE),""))))) -> 0 | Q38: 0.8 | R38: 5
B39: Phase 3 | Q39: 0.9 | R39: 6
B40: Date de début | C40: =C33 -> 2018-05-15 | Q40: 1 | R40: 7
B41: Date de fin | C41: 2018-10-15 | Q41: 1.1 | R41: 8
B42: Durée de la phase | C42: =IF(OR(C40=0,C41=0),0,C41-C40) -> 153 | Q42: 1.2 | R42: 9
B43: Type d'alimentation | L43: 2 | M43: =IF($U$27=2,VLOOKUP($C$44,'gain permis'!$A$3:$E$9,2,TRUE),IF($U$27=3,VLOOKUP($C$44,'gain permis'!$A$10:$E$16,2,TRUE),IF($U$27=4,VLOOKUP($C$44,'gain permis'!$A$17:$E$23,2,TRUE),IF($U$27=5,VLOOKUP($C$44,'gain permis'!$A$24:$E$30,2,TRUE),IF($U$27=6,VLOOKUP($C$44,'gain permis'!$A$31:$E$37,2,TRUE),""))))) -> 0.8 | Q43: 1.3 | R43: 10
B44: Poids au début de l’engraissement | C44: =C38 -> 455.4 | D44: kg ou | E44: =C44*2.2 -> 1001.88 | F44: lb | L44: =E45/2.2 -> 0.8 | M44: =IF($U$27=2,VLOOKUP($C$44,'gain permis'!$A$3:$E$9,3,TRUE),IF($U$27=3,VLOOKUP($C$44,'gain permis'!$A$10:$E$16,3,TRUE),IF($U$27=4,VLOOKUP($C$44,'gain permis'!$A$17:$E$23,3,TRUE),IF($U$27=5,VLOOKUP($C$44,'gain permis'!$A$24:$E$30,3,TRUE),IF($U$27=6,VLOOKUP($C$44,'gain permis'!$A$31:$E$37,3,TRUE),""))))) -> 0 | N44: =VLOOKUP(L44,$Q$35:$R$45,2,TRUE) -> 5 | Q44: 1.4 | R44: 11
B45: GMQ visé | D45: kg/j ou | E45: =IF(L43=1,"",IF(L43=2,M43*2.2,IF(L43=3,M44*2.2,IF(L43=4,M45*2.2,IF(L43=5,M46*2.2,IF(L43=6,M47*2.2,"")))))) -> 1.76 | F45: lb/j | M45: =IF($U$27=2,VLOOKUP($C$44,'gain permis'!$A$3:$E$9,4,TRUE),IF($U$27=3,VLOOKUP($C$44,'gain permis'!$A$10:$E$16,4,TRUE),IF($U$27=4,VLOOKUP($C$44,'gain permis'!$A$17:$E$23,4,TRUE),IF($U$27=5,VLOOKUP($C$44,'gain permis'!$A$24:$E$30,4,TRUE),IF($U$27=6,VLOOKUP($C$44,'gain permis'!$A$31:$E$37,4,TRUE),""))))) -> 0 | Q45: 1.5 | R45: 12
B46: Poids à la fin | C46: =IF(C42=0,C44,IF(L43=1,C44,IF(L43=2,C44+C42*M43,IF(L43=3,C44+C42*M44,IF(L43=4,C44+C42*M45,IF(L43=5,C44+C42*M46,"")))))) -> 577.8 | D46: kg ou | E46: =C46*2.2 -> 1271.16 | F46: lb | G46: =IF(C46>C20," poids d'abattage dépassé, ajuster votre date","") ->  | M46: =IF($U$27=2,VLOOKUP($C$44,'gain permis'!$A$3:$E$9,5,TRUE),IF($U$27=3,VLOOKUP($C$44,'gain permis'!$A$10:$E$16,5,TRUE),IF($U$27=4,VLOOKUP($C$44,'gain permis'!$A$17:$E$23,5,TRUE),IF($U$27=5,VLOOKUP($C$44,'gain permis'!$A$24:$E$30,5,TRUE),IF($U$27=6,VLOOKUP($C$44,'gain permis'!$A$31:$E$37,5,TRUE),""))))) -> 0
B47: Phase 4
B48: Date de début | C48: =C41 -> 2018-10-15
B49: Date de fin | D49: =IF(AND(C46>C20,C50<>0),"svp inscrire la même date que celle du début","") -> 
B50: Durée de la phase | C50: =IF(OR(C48=0,C49=0),0,C49-C48) -> 0
B51: Type d'alimentation | L51: 2 | M51: =IF($V$27=2,VLOOKUP($C$52,'gain permis'!$A$3:$E$9,2,TRUE),IF($V$27=3,VLOOKUP($C$52,'gain permis'!$A$10:$E$16,2,TRUE),IF($V$27=4,VLOOKUP($C$52,'gain permis'!$A$17:$E$23,2,TRUE),IF($V$27=5,VLOOKUP($C$52,'gain permis'!$A$24:$E$30,2,TRUE),IF($V$27=6,VLOOKUP($C$52,'gain permis'!$A$31:$E$37,2,TRUE),""))))) -> 1.1
B52: Poids au début de l’engraissement | C52: =C46 -> 577.8 | D52: kg ou | E52: =C52*2.2 -> 1271.16 | F52: lb | L52: =E53/2.2 -> 1.1 | M52: =IF($V$27=2,VLOOKUP($C$52,'gain permis'!$A$3:$E$9,3,TRUE),IF($V$27=3,VLOOKUP($C$52,'gain permis'!$A$10:$E$16,3,TRUE),IF($V$27=4,VLOOKUP($C$52,'gain permis'!$A$17:$E$23,3,TRUE),IF($V$27=5,VLOOKUP($C$52,'gain permis'!$A$24:$E$30,3,TRUE),IF($V$27=6,VLOOKUP($C$52,'gain permis'!$A$31:$E$37,3,TRUE),""))))) -> 0 | N52: =VLOOKUP(L52,$Q$35:$R$45,2,TRUE) -> 8
B53: GMQ visé | D53: kg/j ou | E53: =IF(L51=2,M51*2.2,IF(L51=3,M52*2.2,IF(L51=4,M53*2.2,IF(L51=5,M54*2.2,IF(L51=6,M55*2.2,""))))) -> 2.42 | F53: lb/j | M53: =IF($V$27=2,VLOOKUP($C$52,'gain permis'!$A$3:$E$9,4,TRUE),IF($V$27=3,VLOOKUP($C$52,'gain permis'!$A$10:$E$16,4,TRUE),IF($V$27=4,VLOOKUP($C$52,'gain permis'!$A$17:$E$23,4,TRUE),IF($V$27=5,VLOOKUP($C$52,'gain permis'!$A$24:$E$30,4,TRUE),IF($V$27=6,VLOOKUP($C$52,'gain permis'!$A$31:$E$37,4,TRUE),""))))) -> 0
B54: Poids à la fin | C54: =IF(C50=0,C52,IF(L51=1,C52,IF(L51=2,C52+C50*M51,IF(L51=3,C52+C50*M52,IF(L51=4,C52+C50*M53,IF(L51=5,C52+C50*M54,"")))))) -> 577.8 | D54: kg ou | E54: =IF(C54="","",C54*2.2) -> 1271.16 | F54: lb | G54: =IF(C54>C20," poids d'abattage dépassée, ajuster votre date","") ->  | M54: =IF($V$27=2,VLOOKUP($C$52,'gain permis'!$A$3:$E$9,5,TRUE),IF($V$27=3,VLOOKUP($C$52,'gain permis'!$A$10:$E$16,5,TRUE),IF($V$27=4,VLOOKUP($C$52,'gain permis'!$A$17:$E$23,5,TRUE),IF($V$27=5,VLOOKUP($C$52,'gain permis'!$A$24:$E$30,5,TRUE),IF($V$27=6,VLOOKUP($C$52,'gain permis'!$A$31:$E$37,5,TRUE),""))))) -> 0
B57: Abattage
B58: Âge à l’abattage (en mois) | C58: =C23+(C27+C34+C42+C50)/30 -> 20.6
B59: GMQ de l’engraissement | C59: =(C54-C24)/(C27+C34+C42+C50) -> 0.7264367816 | D59: kg/j ou | E59: =C59*2.2 -> 1.59816092 | F59: lb/j
B60: Poids à la ferme (en kg) | C60: =C54 -> 577.8 | D60: Poids après la perte | L60: 1
B61: Freinte pré-abattage | C61: 0.04 | D61: =C60*(1-C61) -> 554.688 | E61: kg ou | F61: =D61*2.2 -> 1220.3136 | G61: lb
B62: Rendement de la carcasse | C62: 0.54 | D62: =D61*C62 -> 299.53152 | E62: kg ou | F62: =D62*2.2 -> 658.969344 | G62: lb
B63: Perte lors du ressuyage, maturation | C63: 0.04 | D63: =D62*(1-C63) -> 287.5502592 | E63: kg ou | F63: =D63*2.2 -> 632.6105702 | G63: lb | L63: 3
B64: Perte à la découpe | C64: 0.3458 | D64: =D63*(1-C64) -> 188.1153796 | E64: kg ou | F64: =D64*2.2 -> 413.8538351 | G64: lb = poids en viande maigre
B65: Perte due à des problèmes de qualité | C65: 0.02 | L65: 2
B67: B- CHAMPS | C67: =IF(AE33=5,"SVP utilisez la feuille BUDGET PERSONNALISÉ pour la suite","") -> 
B69: Hectares disponibles | C69: 8
B70: Prairie, tonne m.s./ha | C70: 3500
B71: Maïs-ensilage, tonne m.s./ha | C71: 12 | E71: Estimateur du rendement des pâturages
E72: % de la productivité des prairies | H72: 0.9 | L72: 3 | M72: en bande | N72: 4 | O72: à forfait, $/tête/saison | Q72: =IF(N72=2,(C75/C73)*0.2,"") ->  | R72: "$/t
B73: Pâturage, tonne m.s./ha | C73: 3.825 | E73: Mode de paissance | H73: =IF(L72=2,0.85,IF(L72=3,0.75,IF(L72=4,"non recommandé",""))) -> 0.75 | M73: en rotation | O73: à forfait,$/tête/jour | Q73: =C75/M75 -> 0.000126984127 | R73: "$/t
B74: Pâturage: forfait ou à la ferme | E74: Rendement, tonnes m.s./ha | H74: =IF(L72=4,"",C70*H72*H73) -> 2362.5 | M74: en continu | O74: à la ferme | Q74: =IF(N72=4,C75*0.2,"") -> 0.4 | R74: "$/t
B75: =IF(N72=2,"Coût du pâturage à forfait, $/tête/saison",IF(N72=3,"Coût du pâturage à forfait, $/tête/j",IF(N72=4,"Coût de production à la ferme, $/t m.s.",""))) -> Coût de production à la ferme, $/t m.s. | C75: 2 | M75: =H74*1000/C76 -> 15750 | N75: kg/j
B76: Durée | C76: 150

Sheet Budget
B1: BUDGET POUR ESTIMER LES PRIX CIBLE ET MINIMUM DE LA VIANDE DE BOUVILLON
B2: PROGRAMME ALIMENTAIRE INTÉGRÉ
B3: Client : | D3: ='Données de base'!C5 -> Yvan Duboeuf
B4: Budget adapté par : | D4: ='Données de base'!C6 -> M. Jean Untel
B5: Date : | D5: ='Données de base'!C7 -> 2018-03-01
B6: Scénario : | D6: ='Données de base'!C8 -> 10 bouvillons
B8: ÉLEVAGE
B9: A. Valeur estimée du veau | BJ9: type
I11: $/bouvillon | J11: ($/kg de viande)
B13: Coût de production du veau à la ferme | D13: 2.5 | E13: /livre ou | F13: =D13*2.2 -> 5.5 | G13: /kg= | H13: ='Données de base'!C24*Budget!F13 -> 1787.5
B15: Poids à l’encan | D15: 0.05 | E15: perte de poids | F15: pour un poids de vente | G15: ='Données de base'!C24*(1-D15) -> 308.75 | H15: kg
B17: Bouvillon (sexe et poids) | D17: =IF('Données de base'!R14=2,"Mâle","") -> Mâle | E17: =CONCATENATE(G15*2.2," lb ou ",G15," kg") -> 679,25 lb ou 308,75 kg
B18: =CONCATENATE("Prix au ",TEXT('Données de base'!C25,"AAAA/MM/JJ")) -> Prix au 2017/11/01 | D18: 2.25 | E18: /livre
B19: Prix de vente à l’encan | D19: =D18*2.2 -> 4.95 | E19: /kg | G19: =D19*G15 -> 1528.3125
B20: Frais de transport | D20: 30 | E20: /animal | G20: =D20 -> 30
B21: Frais de vente | D21: 22 | E21: /animal | G21: =D21 -> 22
B22: Valeur nette estimée du veau | G22: =G19-G20-G21 -> 1476.3125
M23: 1 | N23: valeur à l'encan
B24: Valeur estimée du veau pour les calculs | D24: option: | I24: =IF(L24=1,G22,H13) -> 1787.5 | J24: =I24/'Données de base'!$D$64 -> 9.502147055 | L24: 2 | M24: 2 | N24: coût de production
B26: Nombre de bouvillons par lot (volume de la production annuelle) | D26: 10
B28: B. Alimentation
B29: =CONCATENATE(" PHASE 1 : Durée de ",'Données de base'!C27," jours"," et GMQ de ",'Données de base'!E29/2.2, " kg/jour avec un poids moyen de ",O32," kg") -> PHASE 1 : Durée de 61 jours et GMQ de 0,6 kg/jour avec un poids moyen de 343,3 kg
B30: Aliments | C30: MS | D30: Quantité | E30: Perte | F30: Prix | H30: Quantité
C31: % | D31: (MS kg/j) | E31: (%) | F31: ($/t TQS) | H31: (t TQS) | I31: $/bouvillon | J31: ($/kg de viande) | M31: =VLOOKUP('Données de base'!C24,'gain permis'!$A$3:$A$9,1) -> 300
B32: =IF(OR('Données de base'!$S$27=2,'Données de base'!$S$27=3),"Pâturage jeune Haute Énergie",IF(OR('Données de base'!S$27=4,'Données de base'!$S$27=5),"Fourrage jeune Haute Énergie",IF('Données de base'!$S$27=6,"Maïs ensilage",""))) -> Fourrage jeune Haute Énergie | C32: 0.55 | D32: =P32 -> 7.667033333 | E32: 0.045 | F32: 100 | H32: =IF(D32="",0,'Données de base'!$C$27*((D32/C32)/(1-E32))/1000) -> 0.8904122481 | I32: =H32*F32 -> 89.04122481 | J32: =I32/'Données de base'!$D$64 -> 0.4733330418 | M32: =IF('Données de base'!$S$27=2,VLOOKUP('Données de base'!$C$24,Feuil1!$A$3:$L$10,'Données de base'!$N$29,TRUE),IF('Données de base'!$S$27=3,VLOOKUP('Données de base'!$C$24,Feuil1!$A$14:$L$21,'Données de base'!$N$29,TRUE),IF('Données de base'!$S$27=4,VLOOKUP('Données de base'!$C$24,Feuil1!$A$34:$L$41,'Données de base'!$N$29,TRUE),IF('Données de base'!$S$27=5,VLOOKUP('Données de base'!$C$24,Feuil1!$A$45:$L$52,'Données de base'!$N$29,TRUE),IF('Données de base'!$S$27=6,VLOOKUP('Données de base'!$C$24,Feuil1!A65:L72,'Données de base'!$N$29,TRUE),""))))) -> 6.7 | N32: =IF(M32="",0,M32/$M$31) -> 0.02233333333 | O32: =AVERAGE('Données de base'!$C$24,'Données de base'!$C$30) -> 343.3 | P32: =N32*O32 -> 7.667033333 | R32: =N32+N33+N34 -> 0.02233333333
B33: =IF(OR('Données de base'!$S$27=2,'Données de base'!$S$27=4),"",IF(OR('Données de base'!S$27=3,'Données de base'!$S$27=5),"Avoine",IF('Données de base'!$S$27=6,"Luzerne début floraison",""))) ->  | C33: 0.86 | D33: =P33 -> 0 | E33: 0.025 | F33: 180 | H33: =IF(D33="",0,'Données de base'!$C$27*((D33/C33)/(1-E33))/1000) -> 0 | I33: =H33*F33 -> 0 | J33: =I33/'Données de base'!$D$64 -> 0 | M33: =IF('Données de base'!$S$27=3,VLOOKUP('Données de base'!$C$24,Feuil1!$A$23:$L$30,'Données de base'!$N$29,TRUE),IF('Données de base'!$S$27=5,VLOOKUP('Données de base'!$C$24,Feuil1!$A$54:$L$61,'Données de base'!$N$29,TRUE),IF('Données de base'!$S$27=6,VLOOKUP('Données de base'!$C$24,Feuil1!$A$74:$L$81,'Données de base'!$N$29,TRUE),""))) ->  | N33: =IF(M33="",0,M33/$M$31) -> 0 | O33: =AVERAGE('Données de base'!$C$24,'Données de base'!$C$30) -> 343.3 | P33: =O33*N33 -> 0
B34: =IF(OR('Données de base'!$S$27=2,'Données de base'!S$27=3,'Données de base'!$S$27=4,'Données de base'!$S$27=5),"",IF('Données de base'!$S$27=6,"Avoine","")) ->  | C34: 0.87 | D34: =P34 -> 0 | E34: 0 | H34: =IF(D34="",0,'Données de base'!$C$27*((D34/C34)/(1-E34))/1000) -> 0 | I34: =H34*F34 -> 0 | J34: =I34/'Données de base'!$D$64 -> 0 | N34: 0
B35: Minéraux (kg) | C35: 0.98 | D35: =IF('Données de base'!C27=0,"",0.005*O32*0.023) -> 0.0394795 | E35: 0.025 | F35: 1500 | H35: =IF(D35="",0,'Données de base'!$C$27*((D35/C35)/(1-E35))/1000) -> 0.00252040764 | I35: =H35*F35 -> 3.78061146 | J35: =I35/'Données de base'!$D$64 -> 0.02009730129
B36: Sel (kg) | C36: 0.98 | E36: 0.025 | H36: =IF(D36="",0,'Données de base'!$C$27*((D36/C36)/(1-E36))/1000) -> 0 | I36: =H36*F36 -> 0 | J36: =I36/'Données de base'!$D$64 -> 0
B37: Coût total des aliments pour la période | I37: =SUM(I32:I36) -> 92.82183627 | J37: =SUM(J32:J36) -> 0.4934303431
B39: =CONCATENATE(" PHASE 2 : Durée de ",'Données de base'!C34," jours"," et GMQ de ",'Données de base'!E37/2.2, " kg/jour avec un poids moyen de ",O42," kg") -> PHASE 2 : Durée de 134 jours et GMQ de 0,7 kg/jour avec un poids moyen de 408,5 kg
B40: Aliments | C40: MS | D40: Quantité | E40: Perte | F40: Prix | H40: Quantité
C41: % | D41: (MS kg/j) | E41: (%) | F41: ($/t TQS) | H41: (t TQS) | I41: $/bouvillon | J41: ($/kg de viande) | M41: =VLOOKUP('Données de base'!C36,'gain permis'!$A$3:$A$9,1) -> 350
B42: =IF(OR('Données de base'!$T$27=2,'Données de base'!$T$27=3),"Pâturage jeune Haute Énergie",IF(OR('Données de base'!T$27=4,'Données de base'!$T$27=5),"Fourrage jeune Haute Énergie",IF('Données de base'!$T$27=6,"Maïs ensilage",""))) -> Fourrage jeune Haute Énergie | C42: 0.55 | D42: =P42 -> 9.103714286 | E42: 0.045 | F42: 100 | H42: =IF(D42="",0,'Données de base'!$C$34*((D42/C42)/(1-E42))/1000) -> 2.322508737 | I42: =H42*F42 -> 232.2508737 | J42: =I42/'Données de base'!$D$64 -> 1.234619276 | M42: =IF('Données de base'!$T$27=2,VLOOKUP('Données de base'!$C$36,Feuil1!$A$3:$L$10,'Données de base'!$N$36,TRUE),IF('Données de base'!$T$27=3,VLOOKUP('Données de base'!$C$36,Feuil1!$A$14:$L$21,'Données de base'!$N$36,TRUE),IF('Données de base'!$T$27=4,VLOOKUP('Données de base'!$C$36,Feuil1!$A$34:$L$41,'Données de base'!$N$36,TRUE),IF('Données de base'!$T$27=5,VLOOKUP('Données de base'!$C$36,Feuil1!$A$45:$L$52,'Données de base'!$N$36,TRUE),IF('Données de base'!$T$27=6,VLOOKUP('Données de base'!$C$36,Feuil1!$A$65:$L$72,'Données de base'!$N$36,TRUE),""))))) -> 7.8 | N42: =IF(M42="",0,M42/$M$41) -> 0.02228571429 | O42: =AVERAGE('Données de base'!$C$36,'Données de base'!$C$38) -> 408.5 | P42: =N42*O42 -> 9.103714286 | R42: =N42+N43+N44 -> 0.02228571429
B43: =IF(OR('Données de base'!$T$27=2,'Données de base'!$T$27=4),"",IF(OR('Données de base'!T$27=3,'Données de base'!T$27=5),"Avoine",IF('Données de base'!$T$27=6,"Luzerne début floraison",""))) ->  | C43: 0.86 | D43: =P43 -> 0 | E43: 0.025 | F43: 180 | H43: =IF(D43="",0,'Données de base'!$C$34*((D43/C43)/(1-E43))/1000) -> 0 | I43: =H43*F43 -> 0 | J43: =I43/'Données de base'!$D$64 -> 0 | M43: =IF('Données de base'!$T$27=3,VLOOKUP('Données de base'!$C$36,Feuil1!$A$23:$L$30,'Données de base'!$N$36,TRUE),IF('Données de base'!$T$27=5,VLOOKUP('Données de base'!$C$36,Feuil1!$A$54:$L$61,'Données de base'!$N$36,TRUE),IF('Données de base'!$T$27=6,VLOOKUP('Données de base'!$C$36,Feuil1!$A$74:$L$81,'Données de base'!$N$36,TRUE),""))) ->  | N43: =IF(M43="",0,M43/$M$41) -> 0 | O43: =O42 -> 408.5 | P43: =O43*N43 -> 0
B44: =IF(OR('Données de base'!$T$27=2,'Données de base'!T$27=3,'Données de base'!$T$27=4,'Données de base'!$T$27=5),"",IF('Données de base'!$T$27=6,"Avoine","")) ->  | C44: 0.87 | D44: =IF('Données de base'!$T$27=6,VLOOKUP('Données de base'!$C$36,Feuil1!$A$83:$L$90,'Données de base'!$N$36,TRUE),"") ->  | E44: 0 | H44: =IF(D44="",0,'Données de base'!$C$34*((D44/C44)/(1-E44))/1000) -> 0 | I44: =H44*F44 -> 0 | J44: =I44/'Données de base'!$D$64 -> 0 | N44: 0 | O44: =O42 -> 408.5 | P44: =O44*N44 -> 0
B45: Minéraux (kg) | C45: 0.98 | D45: =IF('Données de base'!C34=0,"",0.005*O42*0.023) -> 0.0469775 | E45: 0.025 | F45: 1500 | H45: =IF(D45="",0,'Données de base'!$C$34*((D45/C45)/(1-E45))/1000) -> 0.006588158032 | I45: =H45*F45 -> 9.882237049 | J45: =I45/'Données de base'!$D$64 -> 0.05253285017
B46: Sel (kg) | C46: 0.98 | E46: 0.025 | H46: =IF(D46="",0,'Données de base'!$C$34*((D46/C46)/(1-E46))/1000) -> 0 | I46: =H46*F46 -> 0 | J46: =I46/'Données de base'!$D$64 -> 0
B47: Coût total des aliments pour la période | I47: =SUM(I42:I46) -> 242.1331108 | J47: =SUM(J42:J46) -> 1.287152126
B49: =CONCATENATE(" PHASE 3 : Durée de ",'Données de base'!C42," jours"," et GMQ de ",'Données de base'!E45/2.2, " kg/jour avec un poids moyen de ",O52," kg") -> PHASE 3 : Durée de 153 jours et GMQ de 0,8 kg/jour avec un poids moyen de 516,6 kg
B50: Aliments | C50: MS | D50: Quantité | E50: Perte | F50: Prix | H50: Quantité
C51: % | D51: (MS kg/j) | E51: (%) | F51: ($/t TQS) | H51: (t TQS) | I51: $/bouvillon | J51: ($/kg de viande) | M51: =VLOOKUP('Données de base'!C44,'gain permis'!$A$3:$A$9,1) -> 450
B52: =IF(OR('Données de base'!$U$27=2,'Données de base'!$U$27=3),"Pâturage jeune Haute Énergie",IF(OR('Données de base'!U$27=4,'Données de base'!$U$27=5),"Fourrage jeune Haute Énergie",IF('Données de base'!$U$27=6,"Maïs ensilage",""))) -> Fourrage jeune Haute Énergie | C52: 0.2 | D52: =P52 -> 11.48 | E52: 0 | F52: 18 | H52: =IF(D52="",0,'Données de base'!$C$42*(D52/C52/(1-E52))/1000) -> 8.7822 | I52: =H52*F52 -> 158.0796 | J52: =I52/'Données de base'!$D$64 -> 0.8403332059 | M52: =IF('Données de base'!$U$27=2,VLOOKUP('Données de base'!$C$44,Feuil1!$A$3:$L$10,'Données de base'!$N$44,TRUE),IF('Données de base'!$U$27=3,VLOOKUP('Données de base'!$C$44,Feuil1!$A$14:$L$21,'Données de base'!$N$44,TRUE),IF('Données de base'!$U$27=4,VLOOKUP('Données de base'!$C$44,Feuil1!$A$34:$L$41,'Données de base'!$N$44,TRUE),IF('Données de base'!$U$27=5,VLOOKUP('Données de base'!$C$44,Feuil1!$A$45:$L$52,'Données de base'!$N$44,TRUE),IF('Données de base'!$U$27=6,VLOOKUP('Données de base'!$C$44,Feuil1!$A$65:$L$72,'Données de base'!$N$44,TRUE),""))))) -> 10 | N52: =IF(M52="",0,M52/$M$51) -> 0.02222222222 | O52: =AVERAGE('Données de base'!$C$44,'Données de base'!$C$46) -> 516.6 | P52: =N52*O52 -> 11.48 | R52: =N52+N53+N54 -> 0.02222222222
B53: =IF(OR('Données de base'!$U$27=2,'Données de base'!$U$27=4),"",IF(OR('Données de base'!U$27=3,'Données de base'!$U$27=5),"Avoine",IF('Données de base'!$U$27=6,"Luzerne début floraison",""))) ->  | C53: 0.5 | D53: =P53 -> 0 | E53: 0.05 | H53: =IF(D53="",0,'Données de base'!$C$42*(D53/C53/(1-E53))/1000) -> 0 | I53: =H53*F53 -> 0 | J53: =I53/'Données de base'!$D$64 -> 0 | M53: =IF('Données de base'!$U$27=3,VLOOKUP('Données de base'!$C$44,Feuil1!$A$23:$L$30,'Données de base'!$N$44,TRUE),IF('Données de base'!$U$27=5,VLOOKUP('Données de base'!$C$44,Feuil1!$A$54:$L$61,'Données de base'!$N$44,TRUE),IF('Données de base'!$U$27=6,VLOOKUP('Données de base'!$C$44,Feuil1!$A$74:$L$81,'Données de base'!$N$44,TRUE),""))) ->  | N53: =IF(M53="",0,M53/$M$51) -> 0 | O53: =O52 -> 516.6 | P53: =O53*N53 -> 0
B54: =IF(OR('Données de base'!$U$27=2,'Données de base'!U$27=3,'Données de base'!$U$27=4,'Données de base'!$U$27=5),"",IF('Données de base'!$U$27=6,"Avoine","")) ->  | C54: 0.87 | D54: =IF('Données de base'!$U$27=6,VLOOKUP('Données de base'!$C$44,Feuil1!$A$83:$L$90,'Données de base'!$N$44,TRUE),"") ->  | E54: 0.025 | H54: =IF(D54="",0,'Données de base'!$C$42*(D54/C54/(1-E54))/1000) -> 0 | I54: =H54*F54 -> 0 | J54: =I54/'Données de base'!$D$64 -> 0 | N54: 0 | O54: =O52 -> 516.6 | P54: =O54*N54 -> 0
B55: Minéraux (kg) | C55: 0.98 | D55: =IF('Données de base'!C44=0,"",0.005*O52*0.023) -> 0.059409 | E55: 0.025 | F55: 1500 | H55: =IF(D55="",0,'Données de base'!$C$42*(D55/C55/(1-E55))/1000) -> 0.009512901099 | I55: =H55*F55 -> 14.26935165 | J55: =I55/'Données de base'!$D$64 -> 0.07585425328
B56: Sel (kg) | C56: 0.98 | E56: 0.025 | H56: =IF(D56="",0,'Données de base'!$C$42*(D56/C56/(1-E56))/1000) -> 0 | I56: =H56*F56 -> 0 | J56: =I56/'Données de base'!$D$64 -> 0
B57: Coût total des aliments pour la période | I57: =SUM(I52:I56) -> 172.3489516 | J57: =SUM(J52:J56) -> 0.9161874592
B60: =CONCATENATE(" PHASE 4 : Durée de ",'Données de base'!C50," jours"," et GMQ de ",'Données de base'!E53/2.2, " kg/jour avec un poids moyen de ",O63," kg") -> PHASE 4 : Durée de 0 jours et GMQ de 1,1 kg/jour avec un poids moyen de 577,8 kg
B61: Aliments | C61: MS | D61: Quantité | E61: Perte | F61: Prix | H61: Quantité
C62: % | D62: (MS kg/j) | E62: (%) | F62: ($/t TQS) | H62: (t TQS) | I62: $/bouvillon | J62: ($/kg de viande) | M62: =VLOOKUP('Données de base'!C52,'gain permis'!$A$3:$A$9,1) -> 550
B63: =IF(OR('Données de base'!$V$27=2,'Données de base'!$V$27=3),"Pâturage jeune Haute Énergie",IF(OR('Données de base'!V$27=4,'Données de base'!$V$27=5),"Fourrage jeune Haute Énergie",IF('Données de base'!$V$27=6,"Maïs ensilage",""))) -> Pâturage jeune Haute Énergie | C63: 0.2 | D63: =P63 -> 12.29138182 | E63: 0 | F63: 18 | H63: =IF(D63="",0,'Données de base'!$C$50*(D63/C63/(1-E63))/1000) -> 0 | I63: =H63*F63 -> 0 | J63: =I63/'Données de base'!$D$64 -> 0 | M63: =IF('Données de base'!$V$27=2,VLOOKUP('Données de base'!$C$52,Feuil1!$A$3:$L$10,'Données de base'!$N$52,TRUE),IF('Données de base'!$V$27=3,VLOOKUP('Données de base'!$C$52,Feuil1!$A$14:$L$21,'Données de base'!$N$52,TRUE),IF('Données de base'!$V$27=4,VLOOKUP('Données de base'!$C$52,Feuil1!$A$34:$L$41,'Données de base'!$N$52,TRUE),IF('Données de base'!$V$27=5,VLOOKUP('Données de base'!$C$52,Feuil1!$A$45:$L$52,'Données de base'!$N$52,TRUE),IF('Données de base'!$V$27=6,VLOOKUP('Données de base'!$C$52,Feuil1!$A$65:$L$72,'Données de base'!$N$52,TRUE),""))))) -> 11.7 | N63: =IF(M63="",0,M63/$M$62) -> 0.02127272727 | O63: =AVERAGE('Données de base'!$C$52,'Données de base'!$C$54) -> 577.8 | P63: =N63*O63 -> 12.29138182 | R63: =N63+N64+N65 -> 0.02127272727
B64: =IF(OR('Données de base'!$V$27=2,'Données de base'!$V$27=4),"",IF(OR('Données de base'!V$27=3,'Données de base'!$V$27=5),"Avoine",IF('Données de base'!$V$27=6,"Luzerne début floraison",""))) ->  | C64: 0.5 | D64: =P64 -> 0 | E64: 0.05 | H64: =IF(D64="",0,'Données de base'!$C$50*(D64/C64/(1-E64))/1000) -> 0 | I64: =H64*F64 -> 0 | J64: =I64/'Données de base'!$D$64 -> 0 | M64: =IF('Données de base'!$V$27=3,VLOOKUP('Données de base'!$C$52,Feuil1!$A$23:$L$30,'Données de base'!$N$52,TRUE),IF('Données de base'!$V$27=5,VLOOKUP('Données de base'!$C$52,Feuil1!$A$54:$L$61,'Données de base'!$N$52,TRUE),IF('Données de base'!$V$27=6,VLOOKUP('Données de base'!$C$52,Feuil1!$A$74:$L$81,'Données de base'!$N$52,TRUE),""))) ->  | N64: =IF(M64="",0,M64/$M$62) -> 0 | O64: =O63 -> 577.8 | P64: =O64*N64 -> 0
B65: =IF(OR('Données de base'!$V$27=2,'Données de base'!V$27=3,'Données de base'!$V$27=4,'Données de base'!$V$27=5),"",IF('Données de base'!$V$27=6,"Avoine","")) ->  | C65: 0.87 | D65: =IF('Données de base'!$V$27=6,VLOOKUP('Données de base'!$C$52,Feuil1!$A$83:$L$90,'Données de base'!$N$52,TRUE),"") ->  | E65: 0.025 | H65: =IF(D65="",0,'Données de base'!$C$50*(D65/C65/(1-E65))/1000) -> 0 | I65: =H65*F65 -> 0 | J65: =I65/'Données de base'!$D$64 -> 0 | N65: 0 | O65: =O63 -> 577.8 | P65: =O65*N65 -> 0
B66: Minéraux (kg) | C66: 0.98 | D66: =IF('Données de base'!C50=0,"",0.005*O63*0.023) ->  | E66: 0.025 | F66: 1500 | H66: =IF(D66="",0,'Données de base'!$C$50*(D66/C66/(1-E66))/1000) -> 0 | I66: =H66*F66 -> 0 | J66: =I66/'Données de base'!$D$64 -> 0
B67: Sel (kg) | C67: 0.98 | E67: 0.025 | H67: =IF(D67="",0,'Données de base'!$C$50*(D67/C67/(1-E67))/1000) -> 0 | I67: =H67*F67 -> 0 | J67: =I67/'Données de base'!$D$64 -> 0
B68: Coût total des aliments pour la période | I68: =SUM(I63:I67) -> 0 | J68: =SUM(J63:J67) -> 0
B70: Coût total des aliments | I70: =I68+I57+I47+I37 -> 507.3038987 | J70: =I70/'Données de base'!D64 -> 2.696769928
B72: C. Autres coûts
B74: Médicaments, vermifuge et vétérinaire | D74: 1 | G74: 10 | I74: =D74*G74 -> 10 | J74: =I74/'Données de base'!$D$64 -> 0.05315886464
B75: Litière (kg/j) | D75: 1.75 | E75: kg/j | F75: =CONCATENATE('Données de base'!AC28," j") -> 348 j | G75: 130 | H75: / t | I75: =G75*(D75*'Données de base'!AC28)/1000 -> 79.17 | J75: =I75/'Données de base'!$D$64 -> 0.4208587314
B76: Autres frais liés aux animaux | D76: 1 | G76: 5 | I76: =G76*D76 -> 5 | J76: =I76/'Données de base'!$D$64 -> 0.02657943232
B77: Fumier ($/tête) | D77: 0.02 | E77: m3/tête/jour | F77: =F75 -> 348 j | G77: 1.88 | H77: $/m3 | I77: ='Données de base'!AC28*D77*G77 -> 13.0848 | J77: =I77/'Données de base'!$D$64 -> 0.06955731121
B78: Rejets | D78: 0.02 | E78: par élevage | G78: =I24+(I70+I74+I75+I76+I77)/2 -> 2094.779349 | I78: =(G78*D78) -> 41.89558699 | J78: =I78/'Données de base'!$D$64 -> 0.2227121838
B79: Perte par mortalité | D79: 0.014 | E79: par élevage | G79: =(G78) -> 2094.779349 | I79: =D79*G79 -> 29.32691089 | J79: =I79/'Données de base'!$D$64 -> 0.1558985286
B80: Frais pour l’élimination des animaux morts | D80: =D79 -> 0.014 | G80: 80 | I80: =G80*D80 -> 1.12 | J80: =I80/'Données de base'!$D$64 -> 0.00595379284
B81: Assurance animaux | D81: =G79+I79+I80 -> 2125.22626 | G81: 5.5 | H81: /1000 $ | I81: =G81*D81/1000 -> 11.68874443 | J81: =I81/'Données de base'!$D$64 -> 0.06213603831
B82: Logement - réparation, taxes, assurances (30 ans) | C82: m2/tête | D82: 4.5 | E82: 265 | F82: $/m2 | G82: 0.028 | H82: /1000$/élevage | I82: =D82*E82*G82*(('Données de base'!AB28+'Données de base'!AC28)/365) -> 31.83484932 | J82: =I82/'Données de base'!$D$64 -> 0.1692304446
B83: Main-d’œuvre pour la phase 1 (heure/jour/lot) | D83: 1.25 | E83: ='Données de base'!C27 -> 61 | F83: 15 | G83: / h payé | H83: 0.25 | I83: =(D83*E83*F83*H83)/$D$26 -> 28.59375 | J83: =I83/'Données de base'!$D$64 -> 0.1520011286
B84: Main-d’œuvre pour la phase 2 (heure/jour/lot) | D84: 1.25 | E84: ='Données de base'!C34 -> 134 | F84: 15 | G84: / h payé | H84: 0.25 | I84: =(D84*E84*F84*H84)/$D$26 -> 62.8125 | J84: =I84/'Données de base'!$D$64 -> 0.3339041185
B85: Main-d’œuvre pour la phase 3 (heure/jour/lot) | D85: 0.75 | E85: ='Données de base'!C42 -> 153 | F85: 15 | G85: / h payé | H85: 0 | I85: 0 | J85: =I85/'Données de base'!$D$64 -> 0
B86: Main-d’œuvre pour la phase 4 (heure/jour/lot) | D86: 0.75 | E86: ='Données de base'!C50 -> 0 | F86: 15 | G86: / h payé | H86: 0 | I86: 0 | J86: =I86/'Données de base'!$D$64 -> 0
B87: Intérêt sur emprunt à moyen ou long terme | D87: 5 | E87: % emprunt | F87: 2000 | G87: /2 montant= | H87: =D87*F87/100/2 -> 50 | I87: =H87/D26 -> 5 | J87: =I87/'Données de base'!$D$64 -> 0.02657943232
B88: Intérêt sur l’ouverture de crédit | D88: 1 | E88: =G79+I79+I80+I81+I82+I83+I84+I85+I86 -> 2260.156104 | G88: 0.042 | H88: =CONCATENATE('Données de base'!AD28,"/365 j") -> 348/365 j | I88: =D88*E88*G88 -> 94.92655637 | J88: =I88/'Données de base'!$D$64 -> 0.5046187961
B89: Total des coûts | I89: =SUM(I74:I88) -> 414.453698 | J89: =SUM(J74:J88) -> 2.203188803
B91: Total des frais variables | I91: =I24+I70+I89 -> 2709.257597 | J91: =I91/'Données de base'!D64 -> 14.40210579
B94: D. Frais généraux
I95: $/bouvillon | J95: ($/kg de viande)
B96: Téléphone et électricité | D96: 100 | F96: =$D$26 -> 10 | G96: têtes | I96: =D96/F96 -> 10 | J96: =I96/'Données de base'!$D$64 -> 0.05315886464
B97: Frais professionnels (comptable, UPA, consultant, association, etc.) | D97: 400 | F97: =$D$26 -> 10 | G97: têtes | I97: =D97/F97 -> 40 | J97: =I97/'Données de base'!$D$64 -> 0.2126354586
B98: Divers (fournitures de bureau ou autres) | D98: 100 | F98: =$D$26 -> 10 | G98: têtes | I98: =D98/F98 -> 10 | J98: =I98/'Données de base'!$D$64 -> 0.05315886464
F99: =$D$26 -> 10 | G99: têtes | I99: =D99/F99 -> 0 | J99: =I99/'Données de base'!$D$64 -> 0
I100: =SUM(I96:I99) -> 60 | J100: =I100/'Données de base'!$D$64 -> 0.3189531879
B102: E. Revenus à déduire
P103: =I123/#REF! ->  | Q103: =P103/2.2 -> 
B104: Moins : | I104: $/bouvillon | J104: ($/kg de viande)
B105: Revenus nets des rejets | D105: =D78 -> 0.02 | E105: =('Données de base'!C60+'Données de base'!C24)/2 -> 451.4 | F105: kg poids moyen | G105: 4 | H105: /kg | I105: =(D105*E105*G105)-(D105*(G20+G21)) -> 35.072 | J105: =I105/'Données de base'!$D$64 -> 0.1864387701
B106: Compensation nette de l’ASRA pour les rejets | D106: =D105 -> 0.02 | E106: =IF('Données de base'!$C$24>340,$E$105-'Données de base'!C24,$E$105-340) -> 111.4 | F106: kg gain animal rejeté | G106: =0.3302-0.0731 -> 0.2571 | H106: /kg | I106: =IF((E107*D26)<(1500/2.2),"",(D106*E106*G106)) -> 0.5728188 | J106: =I106/'Données de base'!$D$64 -> 0.003045039705
B107: Compensation nette de l’ASRA pour les bouvillons | D107: =1-D106 -> 0.98 | E107: =IF('Données de base'!$C$24>340,'Données de base'!$C$60-'Données de base'!C24,'Données de base'!$C$60-340) -> 237.8 | F107: kg gain bouvillon | G107: 0.257 | H107: /kg | I107: =IF((E107*D26)<(1500/2.2),"",(D107*E107*G107)) -> 59.892308 | J107: =I107/'Données de base'!$D$64 -> 0.3183807094
G108: , | I108: =SUM(I105:I107) -> 95.5371268 | J108: =I108/'Données de base'!D64 -> 0.5078645192
B111: Valeur du bouvillon avant l’amortissement et la rémunération du travail de l’exploitant : | I111: =I91+I100-I108 -> 2673.72047 | J111: =I111/'Données de base'!D64 -> 14.21319446
B113: F. Amortissement des bâtiments et des équipements d’élevage | I113: $/bouvillon | J113: ($/kg de viande)
B115: Logement: bâtiment ou enclos d’hivernage | D115: =E82*D82 -> 1192.5 | E115: valeur de remplacement | F115: 0.03 | G115: ='Données de base'!AD28 -> 348 | H115: /365 j | I115: =D115*F115*G115/365 -> 34.10876712 | J115: =I115/'Données de base'!D64 -> 0.1813183335
B116: Équipement | D116: 3000 | E116: valeur de remplacement | F116: 0.06 | G116: =G115 -> 348 | H116: /365 j | I116: =(D116*F116*G116/365)/D26 -> 17.16164384 | J116: =I116/'Données de base'!D64 -> 0.09122935017
I117: =SUM(I115:I116) -> 51.27041096 | J117: =I117/'Données de base'!D64 -> 0.2725476836
B119: G. Travail de l’exploitant | P119: prix - base carcasse
I120: $/bouvillon | J120: ($/kg de viande) | P120: $/kg | Q120: $/lb
B121: Travail non rémunéré (heures) | E121: =((D83*E83*(1-H83))+(D84*E84*(1-H84))+(D85*E85*(1-H85))+(D86*E86*(1-H86)))/D26 -> 29.75625 | F121: heures non payées | G121: 15 | H121: /h | I121: =E121*G121 -> 446.34375 | J121: =I121/'Données de base'!D64 -> 2.372712699 | P121: =#REF!/#REF! ->  | Q121: =P121/2.2 -> 
B123: Prix cible du bouvillon avant la mise en marché (avant la rémunération de l’avoir du propriétaire) | I123: =I111+I121+I117 -> 3171.334631 | J123: =I123/'Données de base'!D64 -> 16.85845484
B126: H. Frais de transformation et de mise en marché
I127: $/bouvillon | J127: ($/kg de viande)
B128: Transport vers l’abattoir | E128: 50 | F128: /voyage | G128: 1 | H128: animal/voyage | I128: =E128/G128 -> 50 | J128: =I128/'Données de base'!$D$64 -> 0.2657943232
B129: Frais d’abattage | E129: 100 | F129: /animal | I129: =E129 -> 100 | J129: =I129/'Données de base'!$D$64 -> 0.5315886464
B130: Frais de réfrigération (vieillissement) | F130: /jour/carcasse | G130: 14 | H130: jours | I130: =E130*G130 -> 0 | J130: =I130/'Données de base'!$D$64 -> 0
B131: Frais de vente (communication, transport) | G131: =D26 -> 10 | I131: =E131/G131 -> 0 | J131: =I131/'Données de base'!$D$64 -> 0 | L131: =(#REF!-(D150*(1-G150)*(E150-E149-E148)))/(#REF!*(1-#REF!)) ->  | P131: =I163/#REF! ->  | Q131: =P131/2.2 -> 
B132: Frais de découpe, d’emballage et d’étiquetage | D132: kg de carcasse | E132: ='Données de base'!D62 -> 299.53152 | F132: 0.85 | G132: $/kg de carcasse | I132: =E132*F132 -> 254.601792 | J132: =I132/'Données de base'!$D$64 -> 1.35343422
B133: Transport de la viande (retour) | F133: 50 | G133: =G128 -> 1 | H133: animal/voyage | I133: =F133/G133 -> 50 | J133: =I133/'Données de base'!$D$64 -> 0.2657943232
B134: Frais de congélation | E134: ='Données de base'!D64 -> 188.1153796 | F134: 0 | G134: /kg de viande | I134: =E134*F134 -> 0 | J134: =I134/'Données de base'!$D$64 -> 0
B135: Frais de livraison et autres | E135: ='Données de base'!D64 -> 188.1153796 | F135: 0 | G135: /kg de viande | I135: =F135*E135 -> 0 | J135: =I135/'Données de base'!$D$64 -> 0
B136: Frais de promotion | F136: 0 | G136: =D26 -> 10 | H136: animal/an | I136: =F136/G136 -> 0 | J136: =I136/'Données de base'!$D$64 -> 0
B137: Frais de location d'un kiosque ou autre | F137: 0 | G137: =D26 -> 10 | H137: animal/an | I137: =F137/G137 -> 0 | J137: =I137/'Données de base'!$D$64 -> 0
B138: Frais de permis | F138: 300 | G138: =D26 -> 10 | H138: animal/an | I138: 30 | J138: =I138/'Données de base'!$D$64 -> 0.1594765939
B139: Réparation, taxes, assurances des équipements | D139: 0.0519 | E139: %/an valeur | F139: 5000 | G139: =D26 -> 10 | H139: animal/an | I139: =(F139*D139)/G139 -> 25.95 | J139: =I139/'Données de base'!$D$64 -> 0.1379472538
B140: Réparation, taxes, assurances des bâtiments | D140: 0.04 | E140: %/an valeur | F140: 0 | G140: =D26 -> 10 | H140: animal/an | I140: =(F140*D140)/G140 -> 0 | J140: =I140/'Données de base'!$D$64 -> 0
B141: Intérêt sur emprunt à moyen ou long terme | D141: 5 | E141: % emprunt | F141: 5000 | G141: /2 montant= | H141: =D141*F141/100/2 -> 125 | I141: =H141/D26 -> 12.5 | J141: =I141/'Données de base'!$D$64 -> 0.06644858081
B142: Main-d’œuvre : | D142: 250 | E142: heures
B143: Salaire payé (lot, heures) | D143: 0.4 | E143: =D142*D143 -> 100 | F143: 15 | G143: / h | I143: =E143*F143/D26 -> 150 | J143: =I143/'Données de base'!$D$64 -> 0.7973829697
B144: Propriétaire (lot, heures) | D144: =(1-D143) -> 0.6 | E144: =D142*D144 -> 150 | I144: =E144*F144/D26 -> 0 | J144: =I144/'Données de base'!$D$64 -> 0
I145: =SUM(I128:I144) -> 673.051792 | J145: =I145/'Données de base'!$D$64 -> 3.577866911
B147: Frais dus à des problèmes de qualité | D147: ='Données de base'!C65 -> 0.02 | F147: =I123+I145 -> 3844.386423 | I147: =F147*D147 -> 76.88772846 | J147: =I147/'Données de base'!$D$64 -> 0.408726435
B148: Récupération, transport, etc. (kg) | D148: ='Données de base'!D64*Budget!D147 -> 3.762307591 | E148: 0.22 | F148: /kg | I148: =D148*E148 -> 0.8277076701 | J148: =I148/'Données de base'!$D$64 -> 0.0044
B149: Création de produits transformés (kg) | D149: =D148 -> 3.762307591 | E149: 5.2 | F149: /kg | I149: =D149*E149 -> 19.56399948 | J149: =I149/'Données de base'!$D$64 -> 0.104
B150: Moins la vente de produits transformés (kg) | D150: =D148 -> 3.762307591 | E150: 11 | F150: /kg avec un pourcentage de perte de | G150: 0.1 | I150: =D150*E150*(1-G150) -> 37.24684515 | J150: =I150/'Données de base'!$D$64 -> 0.198
I151: =I147+I148+I149-I150 -> 60.03259045 | J151: =I151/'Données de base'!$D$64 -> 0.319126435
B153: Frais de mise en marché avant l’amortissement et la rémunération du travail du propriétaire | I153: =I145+I151 -> 733.0843824 | J153: =I153/'Données de base'!$D$64 -> 3.896993346
B155: Amortissement du bâtiment et des équipements liés à la mise en marché
B156: Bâtiment | D156: 0.03 | E156: %/an valeur | F156: =F140 -> 0 | G156: =D26 -> 10 | H156: animal/an | I156: =(F156*D156)/G156 -> 0 | J156: =I156/'Données de base'!$D$64 -> 0
B157: Équipement | D157: 0.0633 | E157: %/an valeur | F157: =F139 -> 5000 | G157: =D26 -> 10 | H157: animal/an | I157: =(F157*D157)/G157 -> 31.65 | J157: =I157/'Données de base'!$D$64 -> 0.1682478066
I158: =I156+I157 -> 31.65 | J158: =I158/'Données de base'!$D$64 -> 0.1682478066
B159: Travail de l’exploitant
B160: Travail non rémunéré (heures) | E160: =E144/D26 -> 15 | F160: heures non payées | G160: 15 | H160: /h | I160: =(E160*G160) -> 225 | J160: =I160/'Données de base'!$D$64 -> 1.196074454
B163: Prix cible du bouvillon en découpe avant la rémunération de l’avoir du propriétaire | I163: =I123+I153+I158+I160 -> 4161.069013 | J163: =I163/'Données de base'!D64 -> 22.11977045
B164: (Le prix cible tient compte de l’amortissement ainsi que de la rémunération du travail et de l'avoir du propriétaire)
B167: I. Remboursement en capital annuel
B168: Emprunts pour l'élevage | E168: 10000 | F168: Pourcentage attribué à l’atelier bouvillon viande = | H168: 0.1 | I168: =(E168*H168)/D26 -> 100 | J168: =I168/'Données de base'!$D$64 -> 0.5315886464
B169: Emprunt pour la transformation et la mise en marché | E169: 1000 | F169: Pourcentage attribué à l'atelier bouvillon viande = | H169: 1 | I169: =(E169*H169)/D26 -> 100 | J169: =I169/'Données de base'!$D$64 -> 0.5315886464
I170: =I168+I169 -> 200 | J170: =I170/'Données de base'!$D$64 -> 1.063177293
B172: Prix minimum du bouvillon en découpe | I172: =I163-I158-I117+I170 -> 4278.148602 | J172: =I172/'Données de base'!D64 -> 22.74215225
B173: (Le prix minimum inclut les annuités, mais il exclut l’amortissement et la rémunération de l’avoir du propriétaire)
U178: Veau | V178: =J24/$J$172 -> 0.4178209235
U179: Alimentation | V179: =J70/$J$172 -> 0.1185802425
U180: Autres coûts variables + fixes + intérêts Court Terme - revenus ASRA | V180: =(J74+J75+J76+J77++J78+J79+J80+J81+J82+J88+J100-J108)/$J$172 -> 0.0660356494
U181: Travail de production | V181: =(J83+J84+J85+J86+J121)/J172 -> 0.125696896
U182: Mise en marché | V182: =(SUM(J128:J140))/$J$172 -> 0.1193394245
U183: Travail de mise en marché | V183: =(J143+J160)/$J$172 -> 0.0876547392
U184: Problème de qualité | V184: =J151/$J$172 -> 0.01403237616
U185: Annuité (capital + intérêts) | V185: =(J87+J141+J170)/J172 -> 0.05083974874

Sheet PÂTURAGE INTENSIF (hidden)
A1: BUDGET PÂTURAGE INTENSIF AVEC AVOINE 2007 l' HECTARE
B3: NOM DE LA FERME: | H3: 2007-12-03
B4: Adapté par:
B5: Réalisé par G. Beauregard et D. Ruel, agronomes
A7: ITEM | C7: QTÉ | D7: PRIX | E7: UNITÉ | F7: COÛTS | G7: DÉBOURS | H7: LE
F8: TOTAUX | H8: VÔTRE
A9: A- PRODUITS
A10: Herbe 89 % m.s. ( t ) | C10: 5 | D10: 130 | E10: 1 | F10: 780 | G10: =+F10 -> 780 | H10: =C10*D10/E10 -> 650
A11: B- DÉBOURS
A12: 1- APPROVISIONNEMENTS:
A13: Semence avoine cert. ( kg ) | C13: 91 | D13: 19.5 | E13: 40 | F13: 44.36 | G13: =+F13 -> 44.36 | H13: =C13*D13/E13 -> 44.3625
A14: Mil Hokuo | C14: 7 | D14: 127.5 | E14: 25 | F14: 35.7 | G14: =+F14 -> 35.7 | H14: =C14*D14/E14 -> 35.7
A15: Trèfle Ladino | C15: 2 | D15: 175 | E15: 25 | F15: 14 | G15: =+F15 -> 14 | H15: =C15*D15/E15 -> 14
A16: Fertilisants :
A17: Etablissement | F17: 204.3 | G17: =+F17 -> 204.3 | H17: 204.3
A18: Entretien 1 ère an | F18: 122.34 | G18: 122.34 | H18: 122.34
A19: Entretien 2 ème an | F19: 122.34 | G19: 122.34 | H19: 122.34
A20: Entretien 3 ème an | F20: 162.65 | G20: 162.65 | H20: 162.65
A21: Entretien 4 ème an | F21: 162.65 | G21: 162.65 | H21: 162.65
A22: Pierre à chaux | C22: 2.5 | D22: 30 | E22: 1 | F22: 75 | G22: 75 | H22: =C22*D22/E22 -> 75
A23: Pesticide TROPOTOX | C23: 3.5 | D23: 147.25 | E23: 10 | F23: 51.54 | G23: 51.54 | H23: =C23*D23/E23 -> 51.5375
A24: Total pour la rotation en pâturage | D24: =I27-1 -> 7 | E24: ans | F24: =SUM(F13:F23) -> 994.88 | G24: 994.88 | H24: =SUM(H13:H23) -> 994.88
A25: Par année | F25: =F24/$I$27 -> 124.36 | G25: 124.36 | H25: =H24/$I$27 -> 124.36
A27: 2- OPÉRATIONS CULTURALES | F27: À FORFAIT | G27: Coûts variables | I27: 8 | J27: Nombre d'années de rotation
A28: Labour ( loam ) | D28: 1 année sur | E28: =+$I$27 -> 8 | F28: =I28/$I$27 -> 8.885 | G28: 5 | H28: =J28/$I$27 -> 3.1275 | I28: 71.08 | J28: 25.02
A29: Hersage lourd (loam) | D29: 1 année sur | E29: =+$I$27 -> 8 | F29: =I29/$I$27 -> 2.10375 | G29: 1.19 | H29: =J29/$I$27 -> 0.7425 | I29: 16.83 | J29: 5.94
A30: Cultivateur (loam | D30: 1 année sur | E30: =+$I$27 -> 8 | F30: =I30/$I$27 -> 1.6725 | G30: 0.88 | H30: =J30/$I$27 -> 0.55125 | I30: 13.38 | J30: 4.41
A31: Épandage engrais | D31: 2 | E31: fois | F31: =I31*2 -> 7.62 | G31: 1.46 | H31: =J31*D31 -> 1.46 | I31: 3.81 | J31: 0.73
A32: Semoir à céréales | D32: 1 année sur | E32: =+$I$27 -> 8 | F32: =I32/$I$27 -> 3.49125 | G32: 1.2 | H32: =J32/$I$27 -> 0.74875 | I32: 27.93 | J32: 5.99
A33: Pulvérisation 1 fois | D33: 1 année sur | E33: =+$I$27 -> 8 | F33: =I33/$I$27 -> 1.47125 | G33: 0.47 | H33: =J33/$I$27 -> 0.2975 | I33: 11.77 | J33: 2.38
A34: Fauchage | D34: 1 | E34: fois | F34: =+I34*D34 -> 27.41 | G34: 8.43 | H34: =J34*D34 -> 8.43 | I34: 27.41 | J34: 8.43
A35: Épandage des bouses | D35: 1 | E35: fois | F35: =+I35*D35 -> 16.36 | G35: 5.19 | H35: =J35*D35 -> 5.19 | I35: 16.36 | J35: 5.19
A36: Total | F36: =SUM(F28:F35) -> 69.01375 | G36: =SUM(G28:G35) -> 23.82 | H36: =SUM(H28:H35) -> 20.5475
A37: 3- AUTRES FRAIS
A38: Assur-récol. collec. 90 % | C38: =C10*89/85 -> 5.235294118 | D38: 110 | E38: 0.0204 | F38: 12.69 | G38: =+F38 -> 12.69 | H38: =C38*0.9*D38*E38 -> 10.5732
A39: Entretien des clôtures électriques | F39: =49.93*1.02 -> 50.9286 | G39: 2.5 | H39: =2.45*1.02 -> 2.499 | I39: 7.5
A40: Location de la terre | F40: =4000*0.03 -> 120 | G40: 0 | H40: 0
A41: Entretien de la terre et taxes foncières | F41: =4000*0.67/100 -> 26.8 | G41: =+H41 -> 37 | H41: =4000*0.925/100 -> 37
A42: Intérêts marge crédit | C42: =H25+H36+SUM(H38:H41) -> 194.9797 | D42: 0.075 | E42: 9 | F42: 15.47 | G42: =+F42 -> 15.47 | H42: =C42*D42*E42/12 -> 10.96760812
A43: Total | E43: mois | F43: =SUM(F38:F42) -> 225.8886 | G43: =SUM(G38:G42) -> 67.66 | H43: =SUM(H38:H42) -> 61.03980813
A45: TOTAL DÉBOURS | F45: =F25+F36+F43 -> 419.26235 | G45: =G25+G36+G43 -> 215.84 | H45: =H25+H36+H43 -> 205.9473081
A46: C- MARGE SUR DÉBOURS ( A - B ) | F46: =F10-F45 -> 360.73765 | G46: =G10-G45 -> 564.16 | H46: =H10-H45 -> 444.0526919
A47: D- COÛT MOYEN | D47: =(F47+H47)/2 -> 62.52096581 | E47: $ / tonne | F47: =F45/C10 -> 83.85247 | H47: =H45/C10 -> 41.18946162
A49: Déboursés basés sur les frais variables pour les autres frais et les frais à forfait | H49: =F45-F43+H43 -> 254.4135581
A50: pour tenir compte du temps et de la rémunération de la machinerie

Sheet Tableau sensibilité
B1: TABLEAU D’ANALYSE DE SENSIBILITÉ
B2: PROGRAMME ALIMENTAIRE INTÉGRÉ
B4: Client : | D4: ='Données de base'!C5 -> Yvan Duboeuf
B5: Budget adapté par : | D5: ='Données de base'!C6 -> M. Jean Untel
B6: Date : | D6: ='Données de base'!C7 -> 2018-03-01
B7: Scénario : | D7: ='Données de base'!C8 -> 10 bouvillons
B9: Effet du taux de rémunération du travail du propriétaire ($/h)
C10: Salaire du propriétaire | D10: Prix cible | F10: Prix minimum
B11: $/heure | C11: $/lot | D11: $/bouvillon | E11: $/kg de viande | F11: $/bouvillon | G11: $/kg de viande
B12: 0 | C12: =(Budget!$E$160+Budget!$E$121)*Budget!$D$26*B12 -> 0 | D12: =Budget!$I$163-Budget!$I$160+(Budget!$E$160*'Tableau sensibilité'!B12)-Budget!$I$121+(Budget!$E$121*'Tableau sensibilité'!B12) -> 3489.725263 | E12: =D12/'Données de base'!$D$64 -> 18.55098329 | F12: =Budget!$I$172-Budget!$I$160+(Budget!$E$160*'Tableau sensibilité'!B12)-Budget!$I$121+(Budget!$E$121*'Tableau sensibilité'!B12) -> 3606.804852 | G12: =F12/'Données de base'!$D$64 -> 19.17336509
B13: 5 | C13: =(Budget!$E$160+Budget!$E$121)*Budget!$D$26*B13 -> 2237.8125 | D13: =Budget!$I$163-Budget!$I$160+(Budget!$E$160*'Tableau sensibilité'!B13)-Budget!$I$121+(Budget!$E$121*'Tableau sensibilité'!B13) -> 3713.506513 | E13: =D13/'Données de base'!$D$64 -> 19.74057901 | F13: =Budget!$I$172-Budget!$I$160+(Budget!$E$160*'Tableau sensibilité'!B13)-Budget!$I$121+(Budget!$E$121*'Tableau sensibilité'!B13) -> 3830.586102 | G13: =F13/'Données de base'!$D$64 -> 20.36296081
B14: 10 | C14: =(Budget!$E$160+Budget!$E$121)*Budget!$D$26*B14 -> 4475.625 | D14: =Budget!$I$163-Budget!$I$160+(Budget!$E$160*'Tableau sensibilité'!B14)-Budget!$I$121+(Budget!$E$121*'Tableau sensibilité'!B14) -> 3937.287763 | E14: =D14/'Données de base'!$D$64 -> 20.93017473 | F14: =Budget!$I$172-Budget!$I$160+(Budget!$E$160*'Tableau sensibilité'!B14)-Budget!$I$121+(Budget!$E$121*'Tableau sensibilité'!B14) -> 4054.367352 | G14: =F14/'Données de base'!$D$64 -> 21.55255653
B15: 15 | C15: =(Budget!$E$160+Budget!$E$121)*Budget!$D$26*B15 -> 6713.4375 | D15: =Budget!$I$163-Budget!$I$160+(Budget!$E$160*'Tableau sensibilité'!B15)-Budget!$I$121+(Budget!$E$121*'Tableau sensibilité'!B15) -> 4161.069013 | E15: =D15/'Données de base'!$D$64 -> 22.11977045 | F15: =Budget!$I$172-Budget!$I$160+(Budget!$E$160*'Tableau sensibilité'!B15)-Budget!$I$121+(Budget!$E$121*'Tableau sensibilité'!B15) -> 4278.148602 | G15: =F15/'Données de base'!$D$64 -> 22.74215225
B16: 20 | C16: =(Budget!$E$160+Budget!$E$121)*Budget!$D$26*B16 -> 8951.25 | D16: =Budget!$I$163-Budget!$I$160+(Budget!$E$160*'Tableau sensibilité'!B16)-Budget!$I$121+(Budget!$E$121*'Tableau sensibilité'!B16) -> 4384.850263 | E16: =D16/'Données de base'!$D$64 -> 23.30936616 | F16: =Budget!$I$172-Budget!$I$160+(Budget!$E$160*'Tableau sensibilité'!B16)-Budget!$I$121+(Budget!$E$121*'Tableau sensibilité'!B16) -> 4501.929852 | G16: =F16/'Données de base'!$D$64 -> 23.93174797
B19: Salaire du propriétaire | C19: $/heure | D19: Prix cible | F19: Prix minimum
B20: $/lot | D20: $/bouvillon | E20: $/kg de viande | F20: $/bouvillon | G20: $/kg de viande
B21: 0 | C21: =B21/((Budget!$E$121+Budget!$E$160)*Budget!$D$26) -> 0 | D21: =Budget!$I$163-Budget!$I$160+(Budget!$E$160*'Tableau sensibilité'!C21)-Budget!$I$121+(Budget!$E$121*'Tableau sensibilité'!C21) -> 3489.725263 | E21: =D21/'Données de base'!$D$64 -> 18.55098329 | F21: =Budget!$I$172-Budget!$I$160+(Budget!$E$160*'Tableau sensibilité'!E21)-Budget!$I$121+(Budget!$E$121*'Tableau sensibilité'!E21) -> 4437.077298 | G21: =F21/'Données de base'!$D$64 -> 23.58699915
B22: 5000 | C22: =B22/((Budget!$E$121+Budget!$E$160)*Budget!$D$26) -> 11.17162407 | D22: =Budget!$I$163-Budget!$I$160+(Budget!$E$160*'Tableau sensibilité'!C22)-Budget!$I$121+(Budget!$E$121*'Tableau sensibilité'!C22) -> 3989.725263 | E22: =D22/'Données de base'!$D$64 -> 21.20892652 | F22: =Budget!$I$172-Budget!$I$160+(Budget!$E$160*'Tableau sensibilité'!E22)-Budget!$I$121+(Budget!$E$121*'Tableau sensibilité'!E22) -> 4556.03687 | G22: =F22/'Données de base'!$D$64 -> 24.21937473
B23: 8000 | C23: =B23/((Budget!$E$121+Budget!$E$160)*Budget!$D$26) -> 17.87459852 | D23: =Budget!$I$163-Budget!$I$160+(Budget!$E$160*'Tableau sensibilité'!C23)-Budget!$I$121+(Budget!$E$121*'Tableau sensibilité'!C23) -> 4289.725263 | E23: =D23/'Données de base'!$D$64 -> 22.80369246 | F23: =Budget!$I$172-Budget!$I$160+(Budget!$E$160*'Tableau sensibilité'!E23)-Budget!$I$121+(Budget!$E$121*'Tableau sensibilité'!E23) -> 4627.412613 | G23: =F23/'Données de base'!$D$64 -> 24.59880008
B24: 12000 | C24: =B24/((Budget!$E$121+Budget!$E$160)*Budget!$D$26) -> 26.81189778 | D24: =Budget!$I$163-Budget!$I$160+(Budget!$E$160*'Tableau sensibilité'!C24)-Budget!$I$121+(Budget!$E$121*'Tableau sensibilité'!C24) -> 4689.725263 | E24: =D24/'Données de base'!$D$64 -> 24.93004705 | F24: =Budget!$I$172-Budget!$I$160+(Budget!$E$160*'Tableau sensibilité'!E24)-Budget!$I$121+(Budget!$E$121*'Tableau sensibilité'!E24) -> 4722.580271 | G24: =F24/'Données de base'!$D$64 -> 25.10470054
B25: 15000 | C25: =B25/((Budget!$E$121+Budget!$E$160)*Budget!$D$26) -> 33.51487222 | D25: =Budget!$I$163-Budget!$I$160+(Budget!$E$160*'Tableau sensibilité'!C25)-Budget!$I$121+(Budget!$E$121*'Tableau sensibilité'!C25) -> 4989.725263 | E25: =D25/'Données de base'!$D$64 -> 26.52481299 | F25: =Budget!$I$172-Budget!$I$160+(Budget!$E$160*'Tableau sensibilité'!E25)-Budget!$I$121+(Budget!$E$121*'Tableau sensibilité'!E25) -> 4793.956014 | G25: =F25/'Données de base'!$D$64 -> 25.48412588
B26: *Un lot correspond au volume annuel de production.
B28: Effet du prix du veau ($/kg)
B29: Prix du veau $/kg | C29: Valeur du veau $ | D29: Prix cible | F29: Prix minimum
D30: $/bouvillon | E30: $/kg de viande | F30: $/bouvillon | G30: $/kg de viande
B31: 3 | C31: =('Données de base'!$C$24*'Tableau sensibilité'!B31) -> 975 | D31: =('Données de base'!$C$24*'Tableau sensibilité'!B31)+Budget!$I$163-Budget!$I$24 -> 3348.569013 | E31: =D31/'Données de base'!$D$64 -> 17.80061269 | F31: =('Données de base'!$C$24*'Tableau sensibilité'!B31)+Budget!$I$172-Budget!$I$24 -> 3465.648602 | G31: =F31/'Données de base'!$D$64 -> 18.4229945
B32: 4 | C32: =('Données de base'!$C$24*'Tableau sensibilité'!B32) -> 1300 | D32: =('Données de base'!$C$24*'Tableau sensibilité'!B32)+Budget!$I$163-Budget!$I$24 -> 3673.569013 | E32: =D32/'Données de base'!$D$64 -> 19.52827579 | F32: =('Données de base'!$C$24*'Tableau sensibilité'!B32)+Budget!$I$172-Budget!$I$24 -> 3790.648602 | G32: =F32/'Données de base'!$D$64 -> 20.1506576
B33: 5 | C33: =('Données de base'!$C$24*'Tableau sensibilité'!B33) -> 1625 | D33: =('Données de base'!$C$24*'Tableau sensibilité'!B33)+Budget!$I$163-Budget!$I$24 -> 3998.569013 | E33: =D33/'Données de base'!$D$64 -> 21.25593889 | F33: =('Données de base'!$C$24*'Tableau sensibilité'!B33)+Budget!$I$172-Budget!$I$24 -> 4115.648602 | G33: =F33/'Données de base'!$D$64 -> 21.8783207
B34: 6 | C34: =('Données de base'!$C$24*'Tableau sensibilité'!B34) -> 1950 | D34: =('Données de base'!$C$24*'Tableau sensibilité'!B34)+Budget!$I$163-Budget!$I$24 -> 4323.569013 | E34: =D34/'Données de base'!$D$64 -> 22.983602 | F34: =('Données de base'!$C$24*'Tableau sensibilité'!B34)+Budget!$I$172-Budget!$I$24 -> 4440.648602 | G34: =F34/'Données de base'!$D$64 -> 23.6059838
B35: 7 | C35: =('Données de base'!$C$24*'Tableau sensibilité'!B35) -> 2275 | D35: =('Données de base'!$C$24*'Tableau sensibilité'!B35)+Budget!$I$163-Budget!$I$24 -> 4648.569013 | E35: =D35/'Données de base'!$D$64 -> 24.7112651 | F35: =('Données de base'!$C$24*'Tableau sensibilité'!B35)+Budget!$I$172-Budget!$I$24 -> 4765.648602 | G35: =F35/'Données de base'!$D$64 -> 25.3336469
B38: Effet du coût de la mise en marché (avant le remboursement du capital ou l’amortissement)
B39: (Inclure la congélation,la livraison, la promotion, le kiosque, le permis, l’entretien et la réparation, le salaire payé et le travail.)
B40: Frais de mise en marché $/lot | C40: Frais par | D40: Prix cible | F40: Prix minimum
C41: bouvillon $ | D41: $/bouvillon | E41: $/kg de viande | F41: $/bouvillon | G41: $/kg de viande
B42: Carcasse | C42: 0 | D42: =Budget!I163-Budget!I160-Budget!I158-Budget!I144-Budget!I143-Budget!I140-Budget!I139-Budget!I138-Budget!I137-Budget!I136-Budget!I135-Budget!I134-Budget!I132-Budget!I133 -> 3393.867221 | E42: =Budget!J163-Budget!J160-Budget!J158-Budget!J144-Budget!J143-Budget!J140-Budget!J139-Budget!J138-Budget!J137-Budget!J136-Budget!J135-Budget!J134-Budget!J132-Budget!J133 -> 18.04141282 | F42: =Budget!I172-Budget!I169-Budget!I160-Budget!I158-Budget!I144-Budget!I143-Budget!I140-Budget!I139-Budget!I138-Budget!I137-Budget!I136-Budget!I135-Budget!I134-Budget!I132-Budget!I133 -> 3410.94681 | G42: =Budget!J172-Budget!J169-Budget!J160-Budget!J158-Budget!J144-Budget!J143-Budget!J140-Budget!J139-Budget!J138-Budget!J137-Budget!J136-Budget!J135-Budget!J134-Budget!J132-Budget!J133 -> 18.13220598
B43: Vente au détail
B44: 0 | C44: =B44/Budget!$D$26 -> 0 | D44: =Budget!$I$163-Budget!$I$160-Budget!$I$158-Budget!$I$144-Budget!$I$143-Budget!$I$140-Budget!$I$139-Budget!$I$138-Budget!$I$137-Budget!$I$136-Budget!$I$135-Budget!$I$134+'Tableau sensibilité'!C44 -> 3698.469013 | E44: =Budget!$J$163-Budget!$J$160-Budget!J158-Budget!$J$144-Budget!$J$143-Budget!$J$140-Budget!$J$139-Budget!$J$138-Budget!$J$137-Budget!$J$136-Budget!$J$135-Budget!$J$134+('Tableau sensibilité'!C44/'Données de base'!$D$64) -> 19.66064137 | F44: =Budget!$I$172-Budget!$I$169-Budget!$I$160-Budget!$I$144-Budget!$I$143-Budget!$I$140-Budget!$I$139-Budget!$I$138-Budget!$I$137-Budget!I$136-Budget!$I$135-Budget!$I$134+'Tableau sensibilité'!B44 -> 3747.198602 | G44: =Budget!$J$172-Budget!$J$169-Budget!$J$160-Budget!$J$144-Budget!$J$143-Budget!$J$140-Budget!$J$139-Budget!$J$137-Budget!$J$136-Budget!$J$135-Budget!$J$134+('Tableau sensibilité'!B44/('Données de base'!$D$64*10)) -> 20.07915892
B45: 2000 | C45: =B45/Budget!$D$26 -> 200 | D45: =Budget!$I$163-Budget!$I$160-Budget!$I$158-Budget!$I$144-Budget!$I$143-Budget!$I$140-Budget!$I$139-Budget!$I$138-Budget!$I$137-Budget!$I$136-Budget!$I$135-Budget!$I$134+'Tableau sensibilité'!C45 -> 3898.469013 | E45: =Budget!$J$163-Budget!$J$160-Budget!J159-Budget!$J$144-Budget!$J$143-Budget!$J$140-Budget!$J$139-Budget!$J$138-Budget!$J$137-Budget!$J$136-Budget!$J$135-Budget!$J$134+('Tableau sensibilité'!C45/'Données de base'!$D$64) -> 20.89206647 | F45: =Budget!$I$172-Budget!$I$169-Budget!$I$160-Budget!$I$144-Budget!$I$143-Budget!$I$140-Budget!$I$139-Budget!$I$138-Budget!$I$137-Budget!I$136-Budget!$I$135-Budget!$I$134+'Tableau sensibilité'!B45 -> 5747.198602 | G45: =Budget!$J$172-Budget!$J$169-Budget!$J$160-Budget!$J$144-Budget!$J$143-Budget!$J$140-Budget!$J$139-Budget!$J$137-Budget!$J$136-Budget!$J$135-Budget!$J$134+('Tableau sensibilité'!B45/('Données de base'!$D$64*10)) -> 21.14233622
B46: 4000 | C46: =B46/Budget!$D$26 -> 400 | D46: =Budget!$I$163-Budget!$I$160-Budget!$I$158-Budget!$I$144-Budget!$I$143-Budget!$I$140-Budget!$I$139-Budget!$I$138-Budget!$I$137-Budget!$I$136-Budget!$I$135-Budget!$I$134+'Tableau sensibilité'!C46 -> 4098.469013 | E46: =Budget!$J$163-Budget!$J$160-Budget!J160-Budget!$J$144-Budget!$J$143-Budget!$J$140-Budget!$J$139-Budget!$J$138-Budget!$J$137-Budget!$J$136-Budget!$J$135-Budget!$J$134+('Tableau sensibilité'!C46/'Données de base'!$D$64) -> 20.7591693 | F46: =Budget!$I$172-Budget!$I$169-Budget!$I$160-Budget!$I$144-Budget!$I$143-Budget!$I$140-Budget!$I$139-Budget!$I$138-Budget!$I$137-Budget!I$136-Budget!$I$135-Budget!$I$134+'Tableau sensibilité'!B46 -> 7747.198602 | G46: =Budget!$J$172-Budget!$J$169-Budget!$J$160-Budget!$J$144-Budget!$J$143-Budget!$J$140-Budget!$J$139-Budget!$J$137-Budget!$J$136-Budget!$J$135-Budget!$J$134+('Tableau sensibilité'!B46/('Données de base'!$D$64*10)) -> 22.20551351
B47: 5000 | C47: =B47/Budget!$D$26 -> 500 | D47: =Budget!$I$163-Budget!$I$160-Budget!$I$158-Budget!$I$144-Budget!$I$143-Budget!$I$140-Budget!$I$139-Budget!$I$138-Budget!$I$137-Budget!$I$136-Budget!$I$135-Budget!$I$134+'Tableau sensibilité'!C47 -> 4198.469013 | E47: =Budget!$J$163-Budget!$J$160-Budget!J161-Budget!$J$144-Budget!$J$143-Budget!$J$140-Budget!$J$139-Budget!$J$138-Budget!$J$137-Budget!$J$136-Budget!$J$135-Budget!$J$134+('Tableau sensibilité'!C47/'Données de base'!$D$64) -> 22.48683241 | F47: =Budget!$I$172-Budget!$I$169-Budget!$I$160-Budget!$I$144-Budget!$I$143-Budget!$I$140-Budget!$I$139-Budget!$I$138-Budget!$I$137-Budget!I$136-Budget!$I$135-Budget!$I$134+'Tableau sensibilité'!B47 -> 8747.198602 | G47: =Budget!$J$172-Budget!$J$169-Budget!$J$160-Budget!$J$144-Budget!$J$143-Budget!$J$140-Budget!$J$139-Budget!$J$137-Budget!$J$136-Budget!$J$135-Budget!$J$134+('Tableau sensibilité'!B47/('Données de base'!$D$64*10)) -> 22.73710216
B48: 10000 | C48: =B48/Budget!$D$26 -> 1000 | D48: =Budget!$I$163-Budget!$I$160-Budget!$I$158-Budget!$I$144-Budget!$I$143-Budget!$I$140-Budget!$I$139-Budget!$I$138-Budget!$I$137-Budget!$I$136-Budget!$I$135-Budget!$I$134+'Tableau sensibilité'!C48 -> 4698.469013 | E48: =Budget!$J$163-Budget!$J$160-Budget!J162-Budget!$J$144-Budget!$J$143-Budget!$J$140-Budget!$J$139-Budget!$J$138-Budget!$J$137-Budget!$J$136-Budget!$J$135-Budget!$J$134+('Tableau sensibilité'!C48/'Données de base'!$D$64) -> 25.14477564 | F48: =Budget!$I$172-Budget!$I$169-Budget!$I$160-Budget!$I$144-Budget!$I$143-Budget!$I$140-Budget!$I$139-Budget!$I$138-Budget!$I$137-Budget!I$136-Budget!$I$135-Budget!$I$134+'Tableau sensibilité'!B48 -> 13747.1986 | G48: =Budget!$J$172-Budget!$J$169-Budget!$J$160-Budget!$J$144-Budget!$J$143-Budget!$J$140-Budget!$J$139-Budget!$J$137-Budget!$J$136-Budget!$J$135-Budget!$J$134+('Tableau sensibilité'!B48/('Données de base'!$D$64*10)) -> 25.39504539
B51: Effet du rendement de la carcasse et en viande sur le prix cible (kg de viande)
B52: Rendement de la | C52: Rendement en viande
B53: carcasse | C53: 0.55 | D53: 0.59 | E53: 0.61 | F53: 0.63 | G53: 0.65 | J53: kg carcasse | K53: kg viande
B54: 0.5 | C54: =(Budget!$I$123+Budget!$I$128+Budget!$I$129+Budget!$I$130+Budget!$I$131+Budget!$I$133+Budget!$I$136+Budget!$I$137+Budget!$I$138+Budget!$I$139+Budget!$I$140+Budget!$I$141+Budget!$I$143+Budget!$I$144+Budget!$I$158+Budget!$I$160-Budget!$I$151-Budget!$I$135-Budget!$I$134-Budget!$I$132+(Budget!$F$132*'Tableau sensibilité'!$J54)+(Budget!$F$134*'Tableau sensibilité'!K54)+(Budget!$F$135*'Tableau sensibilité'!K54)+(Budget!$E$148*Budget!$D$147*'Tableau sensibilité'!K54)+(Budget!$E$149*Budget!$D$147*'Tableau sensibilité'!K54)-(Budget!$E$150*Budget!$D$147*'Tableau sensibilité'!K54))/K54 -> 26.14142814 | D54: =(Budget!$I$123+Budget!$I$128+Budget!$I$129+Budget!$I$130+Budget!$I$131+Budget!$I$133+Budget!$I$136+Budget!$I$137+Budget!$I$138+Budget!$I$139+Budget!$I$140+Budget!$I$141+Budget!$I$143+Budget!$I$144+Budget!$I$158+Budget!$I$160-Budget!$I$151-Budget!$I$135-Budget!$I$134-Budget!$I$132+(Budget!$F$132*'Tableau sensibilité'!$J54)+(Budget!$F$134*'Tableau sensibilité'!L54)+(Budget!$F$135*'Tableau sensibilité'!L54)+(Budget!$E$148*Budget!$D$147*'Tableau sensibilité'!L54)+(Budget!$E$149*Budget!$D$147*'Tableau sensibilité'!L54)-(Budget!$E$150*Budget!$D$147*'Tableau sensibilité'!L54))/L54 -> 24.36156183 | E54: =(Budget!$I$123+Budget!$I$128+Budget!$I$129+Budget!$I$130+Budget!$I$131+Budget!$I$133+Budget!$I$136+Budget!$I$137+Budget!$I$138+Budget!$I$139+Budget!$I$140+Budget!$I$141+Budget!$I$143+Budget!$I$144+Budget!$I$158+Budget!$I$160-Budget!$I$151-Budget!$I$135-Budget!$I$134-Budget!$I$132+(Budget!$F$132*'Tableau sensibilité'!$J54)+(Budget!$F$134*'Tableau sensibilité'!M54)+(Budget!$F$135*'Tableau sensibilité'!M54)+(Budget!$E$148*Budget!$D$147*'Tableau sensibilité'!M54)+(Budget!$E$149*Budget!$D$147*'Tableau sensibilité'!M54)-(Budget!$E$150*Budget!$D$147*'Tableau sensibilité'!M54))/M54 -> 23.55916308 | F54: =(Budget!$I$123+Budget!$I$128+Budget!$I$129+Budget!$I$130+Budget!$I$131+Budget!$I$133+Budget!$I$136+Budget!$I$137+Budget!$I$138+Budget!$I$139+Budget!$I$140+Budget!$I$141+Budget!$I$143+Budget!$I$144+Budget!$I$158+Budget!$I$160-Budget!$I$151-Budget!$I$135-Budget!$I$134-Budget!$I$132+(Budget!$F$132*'Tableau sensibilité'!$J54)+(Budget!$F$134*'Tableau sensibilité'!N54)+(Budget!$F$135*'Tableau sensibilité'!N54)+(Budget!$E$148*Budget!$D$147*'Tableau sensibilité'!N54)+(Budget!$E$149*Budget!$D$147*'Tableau sensibilité'!N54)-(Budget!$E$150*Budget!$D$147*'Tableau sensibilité'!N54))/N54 -> 22.80771028 | G54: =(Budget!$I$123+Budget!$I$128+Budget!$I$129+Budget!$I$130+Budget!$I$131+Budget!$I$133+Budget!$I$136+Budget!$I$137+Budget!$I$138+Budget!$I$139+Budget!$I$140+Budget!$I$141+Budget!$I$143+Budget!$I$144+Budget!$I$158+Budget!$I$160-Budget!$I$151-Budget!$I$135-Budget!$I$134-Budget!$I$132+(Budget!$F$132*'Tableau sensibilité'!$J54)+(Budget!$F$134*'Tableau sensibilité'!O54)+(Budget!$F$135*'Tableau sensibilité'!O54)+(Budget!$E$148*Budget!$D$147*'Tableau sensibilité'!O54)+(Budget!$E$149*Budget!$D$147*'Tableau sensibilité'!O54)-(Budget!$E$150*Budget!$D$147*'Tableau sensibilité'!O54))/O54 -> 22.10250074 | J54: ='Données de base'!$D$61*'Tableau sensibilité'!B54 -> 277.344 | K54: =J54*(1-'Données de base'!$C$63)*'Tableau sensibilité'!$C$53*(1-'Données de base'!$C$65) -> 143.5088794 | L54: =$J54*(1-'Données de base'!$C$63)*'Tableau sensibilité'!D$53*(1-'Données de base'!$C$65) -> 153.9458888 | M54: =$J54*(1-'Données de base'!$C$63)*'Tableau sensibilité'!E$53*(1-'Données de base'!$C$65) -> 159.1643935 | N54: =$J54*(1-'Données de base'!$C$63)*'Tableau sensibilité'!F$53*(1-'Données de base'!$C$65) -> 164.3828982 | O54: =$J54*(1-'Données de base'!$C$63)*'Tableau sensibilité'!G$53*(1-'Données de base'!$C$65) -> 169.6014029
B55: 0.52 | C55: =(Budget!$I$123+Budget!$I$128+Budget!$I$129+Budget!$I$130+Budget!$I$131+Budget!$I$133+Budget!$I$136+Budget!$I$137+Budget!$I$138+Budget!$I$139+Budget!$I$140+Budget!$I$141+Budget!$I$143+Budget!$I$144+Budget!$I$158+Budget!$I$160-Budget!$I$151-Budget!$I$135-Budget!$I$134-Budget!$I$132+(Budget!$F$132*'Tableau sensibilité'!$J55)+(Budget!$F$134*'Tableau sensibilité'!K55)+(Budget!$F$135*'Tableau sensibilité'!K55)+(Budget!$E$148*Budget!$D$147*'Tableau sensibilité'!K55)+(Budget!$E$149*Budget!$D$147*'Tableau sensibilité'!K55)-(Budget!$E$150*Budget!$D$147*'Tableau sensibilité'!K55))/K55 -> 25.19487716 | D55: =(Budget!$I$123+Budget!$I$128+Budget!$I$129+Budget!$I$130+Budget!$I$131+Budget!$I$133+Budget!$I$136+Budget!$I$137+Budget!$I$138+Budget!$I$139+Budget!$I$140+Budget!$I$141+Budget!$I$143+Budget!$I$144+Budget!$I$158+Budget!$I$160-Budget!$I$151-Budget!$I$135-Budget!$I$134-Budget!$I$132+(Budget!$F$132*'Tableau sensibilité'!$J55)+(Budget!$F$134*'Tableau sensibilité'!L55)+(Budget!$F$135*'Tableau sensibilité'!L55)+(Budget!$E$148*Budget!$D$147*'Tableau sensibilité'!L55)+(Budget!$E$149*Budget!$D$147*'Tableau sensibilité'!L55)-(Budget!$E$150*Budget!$D$147*'Tableau sensibilité'!L55))/L55 -> 23.47918379 | E55: =(Budget!$I$123+Budget!$I$128+Budget!$I$129+Budget!$I$130+Budget!$I$131+Budget!$I$133+Budget!$I$136+Budget!$I$137+Budget!$I$138+Budget!$I$139+Budget!$I$140+Budget!$I$141+Budget!$I$143+Budget!$I$144+Budget!$I$158+Budget!$I$160-Budget!$I$151-Budget!$I$135-Budget!$I$134-Budget!$I$132+(Budget!$F$132*'Tableau sensibilité'!$J55)+(Budget!$F$134*'Tableau sensibilité'!M55)+(Budget!$F$135*'Tableau sensibilité'!M55)+(Budget!$E$148*Budget!$D$147*'Tableau sensibilité'!M55)+(Budget!$E$149*Budget!$D$147*'Tableau sensibilité'!M55)-(Budget!$E$150*Budget!$D$147*'Tableau sensibilité'!M55))/M55 -> 22.70571547 | F55: =(Budget!$I$123+Budget!$I$128+Budget!$I$129+Budget!$I$130+Budget!$I$131+Budget!$I$133+Budget!$I$136+Budget!$I$137+Budget!$I$138+Budget!$I$139+Budget!$I$140+Budget!$I$141+Budget!$I$143+Budget!$I$144+Budget!$I$158+Budget!$I$160-Budget!$I$151-Budget!$I$135-Budget!$I$134-Budget!$I$132+(Budget!$F$132*'Tableau sensibilité'!$J55)+(Budget!$F$134*'Tableau sensibilité'!N55)+(Budget!$F$135*'Tableau sensibilité'!N55)+(Budget!$E$148*Budget!$D$147*'Tableau sensibilité'!N55)+(Budget!$E$149*Budget!$D$147*'Tableau sensibilité'!N55)-(Budget!$E$150*Budget!$D$147*'Tableau sensibilité'!N55))/N55 -> 21.98135625 | G55: =(Budget!$I$123+Budget!$I$128+Budget!$I$129+Budget!$I$130+Budget!$I$131+Budget!$I$133+Budget!$I$136+Budget!$I$137+Budget!$I$138+Budget!$I$139+Budget!$I$140+Budget!$I$141+Budget!$I$143+Budget!$I$144+Budget!$I$158+Budget!$I$160-Budget!$I$151-Budget!$I$135-Budget!$I$134-Budget!$I$132+(Budget!$F$132*'Tableau sensibilité'!$J55)+(Budget!$F$134*'Tableau sensibilité'!O55)+(Budget!$F$135*'Tableau sensibilité'!O55)+(Budget!$E$148*Budget!$D$147*'Tableau sensibilité'!O55)+(Budget!$E$149*Budget!$D$147*'Tableau sensibilité'!O55)-(Budget!$E$150*Budget!$D$147*'Tableau sensibilité'!O55))/O55 -> 21.30157298 | J55: ='Données de base'!$D$61*'Tableau sensibilité'!B55 -> 288.43776 | K55: =J55*(1-'Données de base'!$C$63)*'Tableau sensibilité'!$C$53*(1-'Données de base'!$C$65) -> 149.2492345 | L55: =$J55*(1-'Données de base'!$C$63)*'Tableau sensibilité'!D$53*(1-'Données de base'!$C$65) -> 160.1037243 | M55: =$J55*(1-'Données de base'!$C$63)*'Tableau sensibilité'!E$53*(1-'Données de base'!$C$65) -> 165.5309692 | N55: =$J55*(1-'Données de base'!$C$63)*'Tableau sensibilité'!F$53*(1-'Données de base'!$C$65) -> 170.9582141 | O55: =$J55*(1-'Données de base'!$C$63)*'Tableau sensibilité'!G$53*(1-'Données de base'!$C$65) -> 176.385459
B56: 0.54 | C56: =(Budget!$I$123+Budget!$I$128+Budget!$I$129+Budget!$I$130+Budget!$I$131+Budget!$I$133+Budget!$I$136+Budget!$I$137+Budget!$I$138+Budget!$I$139+Budget!$I$140+Budget!$I$141+Budget!$I$143+Budget!$I$144+Budget!$I$158+Budget!$I$160-Budget!$I$151-Budget!$I$135-Budget!$I$134-Budget!$I$132+(Budget!$F$132*'Tableau sensibilité'!$J56)+(Budget!$F$134*'Tableau sensibilité'!K56)+(Budget!$F$135*'Tableau sensibilité'!K56)+(Budget!$E$148*Budget!$D$147*'Tableau sensibilité'!K56)+(Budget!$E$149*Budget!$D$147*'Tableau sensibilité'!K56)-(Budget!$E$150*Budget!$D$147*'Tableau sensibilité'!K56))/K56 -> 24.31844106 | D56: =(Budget!$I$123+Budget!$I$128+Budget!$I$129+Budget!$I$130+Budget!$I$131+Budget!$I$133+Budget!$I$136+Budget!$I$137+Budget!$I$138+Budget!$I$139+Budget!$I$140+Budget!$I$141+Budget!$I$143+Budget!$I$144+Budget!$I$158+Budget!$I$160-Budget!$I$151-Budget!$I$135-Budget!$I$134-Budget!$I$132+(Budget!$F$132*'Tableau sensibilité'!$J56)+(Budget!$F$134*'Tableau sensibilité'!L56)+(Budget!$F$135*'Tableau sensibilité'!L56)+(Budget!$E$148*Budget!$D$147*'Tableau sensibilité'!L56)+(Budget!$E$149*Budget!$D$147*'Tableau sensibilité'!L56)-(Budget!$E$150*Budget!$D$147*'Tableau sensibilité'!L56))/L56 -> 22.66216709 | E56: =(Budget!$I$123+Budget!$I$128+Budget!$I$129+Budget!$I$130+Budget!$I$131+Budget!$I$133+Budget!$I$136+Budget!$I$137+Budget!$I$138+Budget!$I$139+Budget!$I$140+Budget!$I$141+Budget!$I$143+Budget!$I$144+Budget!$I$158+Budget!$I$160-Budget!$I$151-Budget!$I$135-Budget!$I$134-Budget!$I$132+(Budget!$F$132*'Tableau sensibilité'!$J56)+(Budget!$F$134*'Tableau sensibilité'!M56)+(Budget!$F$135*'Tableau sensibilité'!M56)+(Budget!$E$148*Budget!$D$147*'Tableau sensibilité'!M56)+(Budget!$E$149*Budget!$D$147*'Tableau sensibilité'!M56)-(Budget!$E$150*Budget!$D$147*'Tableau sensibilité'!M56))/M56 -> 21.9154862 | F56: =(Budget!$I$123+Budget!$I$128+Budget!$I$129+Budget!$I$130+Budget!$I$131+Budget!$I$133+Budget!$I$136+Budget!$I$137+Budget!$I$138+Budget!$I$139+Budget!$I$140+Budget!$I$141+Budget!$I$143+Budget!$I$144+Budget!$I$158+Budget!$I$160-Budget!$I$151-Budget!$I$135-Budget!$I$134-Budget!$I$132+(Budget!$F$132*'Tableau sensibilité'!$J56)+(Budget!$F$134*'Tableau sensibilité'!N56)+(Budget!$F$135*'Tableau sensibilité'!N56)+(Budget!$E$148*Budget!$D$147*'Tableau sensibilité'!N56)+(Budget!$E$149*Budget!$D$147*'Tableau sensibilité'!N56)-(Budget!$E$150*Budget!$D$147*'Tableau sensibilité'!N56))/N56 -> 21.21621362 | G56: =(Budget!$I$123+Budget!$I$128+Budget!$I$129+Budget!$I$130+Budget!$I$131+Budget!$I$133+Budget!$I$136+Budget!$I$137+Budget!$I$138+Budget!$I$139+Budget!$I$140+Budget!$I$141+Budget!$I$143+Budget!$I$144+Budget!$I$158+Budget!$I$160-Budget!$I$151-Budget!$I$135-Budget!$I$134-Budget!$I$132+(Budget!$F$132*'Tableau sensibilité'!$J56)+(Budget!$F$134*'Tableau sensibilité'!O56)+(Budget!$F$135*'Tableau sensibilité'!O56)+(Budget!$E$148*Budget!$D$147*'Tableau sensibilité'!O56)+(Budget!$E$149*Budget!$D$147*'Tableau sensibilité'!O56)-(Budget!$E$150*Budget!$D$147*'Tableau sensibilité'!O56))/O56 -> 20.5599732 | J56: ='Données de base'!$D$61*'Tableau sensibilité'!B56 -> 299.53152 | K56: =J56*(1-'Données de base'!$C$63)*'Tableau sensibilité'!$C$53*(1-'Données de base'!$C$65) -> 154.9895897 | L56: =$J56*(1-'Données de base'!$C$63)*'Tableau sensibilité'!D$53*(1-'Données de base'!$C$65) -> 166.2615599 | M56: =$J56*(1-'Données de base'!$C$63)*'Tableau sensibilité'!E$53*(1-'Données de base'!$C$65) -> 171.8975449 | N56: =$J56*(1-'Données de base'!$C$63)*'Tableau sensibilité'!F$53*(1-'Données de base'!$C$65) -> 177.53353 | O56: =$J56*(1-'Données de base'!$C$63)*'Tableau sensibilité'!G$53*(1-'Données de base'!$C$65) -> 183.1695151
B57: 0.56 | C57: =(Budget!$I$123+Budget!$I$128+Budget!$I$129+Budget!$I$130+Budget!$I$131+Budget!$I$133+Budget!$I$136+Budget!$I$137+Budget!$I$138+Budget!$I$139+Budget!$I$140+Budget!$I$141+Budget!$I$143+Budget!$I$144+Budget!$I$158+Budget!$I$160-Budget!$I$151-Budget!$I$135-Budget!$I$134-Budget!$I$132+(Budget!$F$132*'Tableau sensibilité'!$J57)+(Budget!$F$134*'Tableau sensibilité'!K57)+(Budget!$F$135*'Tableau sensibilité'!K57)+(Budget!$E$148*Budget!$D$147*'Tableau sensibilité'!K57)+(Budget!$E$149*Budget!$D$147*'Tableau sensibilité'!K57)-(Budget!$E$150*Budget!$D$147*'Tableau sensibilité'!K57))/K57 -> 23.50460754 | D57: =(Budget!$I$123+Budget!$I$128+Budget!$I$129+Budget!$I$130+Budget!$I$131+Budget!$I$133+Budget!$I$136+Budget!$I$137+Budget!$I$138+Budget!$I$139+Budget!$I$140+Budget!$I$141+Budget!$I$143+Budget!$I$144+Budget!$I$158+Budget!$I$160-Budget!$I$151-Budget!$I$135-Budget!$I$134-Budget!$I$132+(Budget!$F$132*'Tableau sensibilité'!$J57)+(Budget!$F$134*'Tableau sensibilité'!L57)+(Budget!$F$135*'Tableau sensibilité'!L57)+(Budget!$E$148*Budget!$D$147*'Tableau sensibilité'!L57)+(Budget!$E$149*Budget!$D$147*'Tableau sensibilité'!L57)-(Budget!$E$150*Budget!$D$147*'Tableau sensibilité'!L57))/L57 -> 21.90350872 | E57: =(Budget!$I$123+Budget!$I$128+Budget!$I$129+Budget!$I$130+Budget!$I$131+Budget!$I$133+Budget!$I$136+Budget!$I$137+Budget!$I$138+Budget!$I$139+Budget!$I$140+Budget!$I$141+Budget!$I$143+Budget!$I$144+Budget!$I$158+Budget!$I$160-Budget!$I$151-Budget!$I$135-Budget!$I$134-Budget!$I$132+(Budget!$F$132*'Tableau sensibilité'!$J57)+(Budget!$F$134*'Tableau sensibilité'!M57)+(Budget!$F$135*'Tableau sensibilité'!M57)+(Budget!$E$148*Budget!$D$147*'Tableau sensibilité'!M57)+(Budget!$E$149*Budget!$D$147*'Tableau sensibilité'!M57)-(Budget!$E$150*Budget!$D$147*'Tableau sensibilité'!M57))/M57 -> 21.18170188 | F57: =(Budget!$I$123+Budget!$I$128+Budget!$I$129+Budget!$I$130+Budget!$I$131+Budget!$I$133+Budget!$I$136+Budget!$I$137+Budget!$I$138+Budget!$I$139+Budget!$I$140+Budget!$I$141+Budget!$I$143+Budget!$I$144+Budget!$I$158+Budget!$I$160-Budget!$I$151-Budget!$I$135-Budget!$I$134-Budget!$I$132+(Budget!$F$132*'Tableau sensibilité'!$J57)+(Budget!$F$134*'Tableau sensibilité'!N57)+(Budget!$F$135*'Tableau sensibilité'!N57)+(Budget!$E$148*Budget!$D$147*'Tableau sensibilité'!N57)+(Budget!$E$149*Budget!$D$147*'Tableau sensibilité'!N57)-(Budget!$E$150*Budget!$D$147*'Tableau sensibilité'!N57))/N57 -> 20.50572404 | G57: =(Budget!$I$123+Budget!$I$128+Budget!$I$129+Budget!$I$130+Budget!$I$131+Budget!$I$133+Budget!$I$136+Budget!$I$137+Budget!$I$138+Budget!$I$139+Budget!$I$140+Budget!$I$141+Budget!$I$143+Budget!$I$144+Budget!$I$158+Budget!$I$160-Budget!$I$151-Budget!$I$135-Budget!$I$134-Budget!$I$132+(Budget!$F$132*'Tableau sensibilité'!$J57)+(Budget!$F$134*'Tableau sensibilité'!O57)+(Budget!$F$135*'Tableau sensibilité'!O57)+(Budget!$E$148*Budget!$D$147*'Tableau sensibilité'!O57)+(Budget!$E$149*Budget!$D$147*'Tableau sensibilité'!O57)-(Budget!$E$150*Budget!$D$147*'Tableau sensibilité'!O57))/O57 -> 19.87134484 | J57: ='Données de base'!$D$61*'Tableau sensibilité'!B57 -> 310.62528 | K57: =J57*(1-'Données de base'!$C$63)*'Tableau sensibilité'!$C$53*(1-'Données de base'!$C$65) -> 160.7299449 | L57: =$J57*(1-'Données de base'!$C$63)*'Tableau sensibilité'!D$53*(1-'Données de base'!$C$65) -> 172.4193954 | M57: =$J57*(1-'Données de base'!$C$63)*'Tableau sensibilité'!E$53*(1-'Données de base'!$C$65) -> 178.2641207 | N57: =$J57*(1-'Données de base'!$C$63)*'Tableau sensibilité'!F$53*(1-'Données de base'!$C$65) -> 184.108846 | O57: =$J57*(1-'Données de base'!$C$63)*'Tableau sensibilité'!G$53*(1-'Données de base'!$C$65) -> 189.9535712
B58: 0.58 | C58: =(Budget!$I$123+Budget!$I$128+Budget!$I$129+Budget!$I$130+Budget!$I$131+Budget!$I$133+Budget!$I$136+Budget!$I$137+Budget!$I$138+Budget!$I$139+Budget!$I$140+Budget!$I$141+Budget!$I$143+Budget!$I$144+Budget!$I$158+Budget!$I$160-Budget!$I$151-Budget!$I$135-Budget!$I$134-Budget!$I$132+(Budget!$F$132*'Tableau sensibilité'!$J58)+(Budget!$F$134*'Tableau sensibilité'!K58)+(Budget!$F$135*'Tableau sensibilité'!K58)+(Budget!$E$148*Budget!$D$147*'Tableau sensibilité'!K58)+(Budget!$E$149*Budget!$D$147*'Tableau sensibilité'!K58)-(Budget!$E$150*Budget!$D$147*'Tableau sensibilité'!K58))/K58 -> 22.74690047 | D58: =(Budget!$I$123+Budget!$I$128+Budget!$I$129+Budget!$I$130+Budget!$I$131+Budget!$I$133+Budget!$I$136+Budget!$I$137+Budget!$I$138+Budget!$I$139+Budget!$I$140+Budget!$I$141+Budget!$I$143+Budget!$I$144+Budget!$I$158+Budget!$I$160-Budget!$I$151-Budget!$I$135-Budget!$I$134-Budget!$I$132+(Budget!$F$132*'Tableau sensibilité'!$J58)+(Budget!$F$134*'Tableau sensibilité'!L58)+(Budget!$F$135*'Tableau sensibilité'!L58)+(Budget!$E$148*Budget!$D$147*'Tableau sensibilité'!L58)+(Budget!$E$149*Budget!$D$147*'Tableau sensibilité'!L58)-(Budget!$E$150*Budget!$D$147*'Tableau sensibilité'!L58))/L58 -> 21.19717163 | E58: =(Budget!$I$123+Budget!$I$128+Budget!$I$129+Budget!$I$130+Budget!$I$131+Budget!$I$133+Budget!$I$136+Budget!$I$137+Budget!$I$138+Budget!$I$139+Budget!$I$140+Budget!$I$141+Budget!$I$143+Budget!$I$144+Budget!$I$158+Budget!$I$160-Budget!$I$151-Budget!$I$135-Budget!$I$134-Budget!$I$132+(Budget!$F$132*'Tableau sensibilité'!$J58)+(Budget!$F$134*'Tableau sensibilité'!M58)+(Budget!$F$135*'Tableau sensibilité'!M58)+(Budget!$E$148*Budget!$D$147*'Tableau sensibilité'!M58)+(Budget!$E$149*Budget!$D$147*'Tableau sensibilité'!M58)-(Budget!$E$150*Budget!$D$147*'Tableau sensibilité'!M58))/M58 -> 20.49852338 | F58: =(Budget!$I$123+Budget!$I$128+Budget!$I$129+Budget!$I$130+Budget!$I$131+Budget!$I$133+Budget!$I$136+Budget!$I$137+Budget!$I$138+Budget!$I$139+Budget!$I$140+Budget!$I$141+Budget!$I$143+Budget!$I$144+Budget!$I$158+Budget!$I$160-Budget!$I$151-Budget!$I$135-Budget!$I$134-Budget!$I$132+(Budget!$F$132*'Tableau sensibilité'!$J58)+(Budget!$F$134*'Tableau sensibilité'!N58)+(Budget!$F$135*'Tableau sensibilité'!N58)+(Budget!$E$148*Budget!$D$147*'Tableau sensibilité'!N58)+(Budget!$E$149*Budget!$D$147*'Tableau sensibilité'!N58)-(Budget!$E$150*Budget!$D$147*'Tableau sensibilité'!N58))/N58 -> 19.84423375 | G58: =(Budget!$I$123+Budget!$I$128+Budget!$I$129+Budget!$I$130+Budget!$I$131+Budget!$I$133+Budget!$I$136+Budget!$I$137+Budget!$I$138+Budget!$I$139+Budget!$I$140+Budget!$I$141+Budget!$I$143+Budget!$I$144+Budget!$I$158+Budget!$I$160-Budget!$I$151-Budget!$I$135-Budget!$I$134-Budget!$I$132+(Budget!$F$132*'Tableau sensibilité'!$J58)+(Budget!$F$134*'Tableau sensibilité'!O58)+(Budget!$F$135*'Tableau sensibilité'!O58)+(Budget!$E$148*Budget!$D$147*'Tableau sensibilité'!O58)+(Budget!$E$149*Budget!$D$147*'Tableau sensibilité'!O58)-(Budget!$E$150*Budget!$D$147*'Tableau sensibilité'!O58))/O58 -> 19.23020809 | J58: ='Données de base'!$D$61*'Tableau sensibilité'!B58 -> 321.71904 | K58: =J58*(1-'Données de base'!$C$63)*'Tableau sensibilité'!$C$53*(1-'Données de base'!$C$65) -> 166.4703001 | L58: =$J58*(1-'Données de base'!$C$63)*'Tableau sensibilité'!D$53*(1-'Données de base'!$C$65) -> 178.577231 | M58: =$J58*(1-'Données de base'!$C$63)*'Tableau sensibilité'!E$53*(1-'Données de base'!$C$65) -> 184.6306964 | N58: =$J58*(1-'Données de base'!$C$63)*'Tableau sensibilité'!F$53*(1-'Données de base'!$C$65) -> 190.6841619 | O58: =$J58*(1-'Données de base'!$C$63)*'Tableau sensibilité'!G$53*(1-'Données de base'!$C$65) -> 196.7376273
